Workbook

Sheet TestResults (hidden)
B2: Cell address | C2: Value | E2: Exceptions
E3: TRUE
E4: FALSE
E5: USD/t
E6: USD/m3
E7: USD/t/km
E8: USD/l
E9: km
E10: USD/kWh
E11: USD
E12: %
E13: t
E14: (USD/l)
E15: (USD)
E16: (%)
E17: FS1
E18: FD2
E19: FS3
E20: FS4
E21: 5 ML
E22: 25 ML
E23: 50 ML
E24: 100 ML
E25: CO2
E26: Sc1
E27: L/t
E28: Sc2
E29: Sc3
E30: g
E31: i
E32: k
E33: m
E34: AI
E35: AJ
E36: AK
E37: AL
E38: M. USD
E39: AB
E40: P
E41: MJ/L
E42: kWh/L
E43: f
E44: h
E45: j
E46: l
E47: M USD
E48: kgCO2eq/kg
E49: AC
E50: AD
E51: AE
E52: AF
E53: AG
E54: SC1
E55: SC2
E56: SC3
E57: ML
E58: Total SC1
E59: Total SC2
E60: Total SC3
E61: 5ML
E62: kg CO2e/MJ
E63: kg CO2e/L
E64: lim_sup
E65: Total Sc1
E66: tco2 eq
E67: Total Sc2
E68: Total Sc3
E69: lim_inf
E70: kg CO2eq/L
E71: g CO2eq/MJ
E72: -
E73: +
E74: (USD/t)
E75: fs
E76: USD/ton
E77: No.
E78: l/h
E79: 100ML
E80: gCO2/kWh
E81: MJ/kg
E82: 25ML
E83: 50ML
E84: Miscanthus giganteus
E85: Arundo donax
E86: _FS1
E87: MJ/m3
E88: Kg/m3
E89: Peres, A., B. H. Lunelli, et al. (2013). "Application of biomass to hydrogen and syngas production." Chemical Engineering Transactions 32: 589-594.
E90: MJ/t
E91: tCO2eq/tkm
E92: t/t total -%
E93: Fs1
E94: Fs2
E95: Fs3
E96: Fs4
E97: kg/h
E98: wt
E99: L/h
E100: kg/kg EtOh
E101: kWh/kg EtOH
E102: MJ/h
E103: % (w/v)
E104: MW
E105: kmol/h
E106: kg/L
E107: USD/h
E108: (USD/h)

Sheet Calculation (hidden)
C2: 5 | D2: 25 | E2: 50 | F2: 100 | H2: =title280 -> Ethanol Density | J2: 0.789 | K2: t/m3
B3: =title13 -> Molasses | C3: =C$2*1000*0.789/Database!$C$4 -> -4753012.048 | D3: =D$2*1000*0.789/Database!$C$4 -> -23765060.24 | E3: =E$2*1000*0.789/Database!$C$4 -> -47530120.48 | F3: =F$2*1000*0.789/Database!$C$4 -> -95060240.96 | G3: =title47 -> t/year
B4: =title276 -> Fermentable Sugars | C4: =C3*'Data Entry Needs'!$H$23 -> 0 | D4: =D3*'Data Entry Needs'!$H$23 -> 0 | E4: =E3*'Data Entry Needs'!$H$23 -> 0 | F4: =F3*'Data Entry Needs'!$H$23 -> 0 | G4: t/year
B5: =title173 -> Lime | C5: =+Database!$C13*C$4^3+Database!$D13*C$4^2+Database!$E13*C$4+Database!$F13 -> 5.2107 | D5: =+Database!$C13*D$4^3+Database!$D13*D$4^2+Database!$E13*D$4+Database!$F13 -> 5.2107 | E5: =+Database!$C13*E$4^3+Database!$D13*E$4^2+Database!$E13*E$4+Database!$F13 -> 5.2107 | F5: =+Database!$C13*F$4^3+Database!$D13*F$4^2+Database!$E13*F$4+Database!$F13 -> 5.2107 | G5: t/year
B6: =title174 -> Sulfuric acid | C6: =+Database!$C14*C$4^3+Database!$D14*C$4^2+Database!$E14*C$4+Database!$F14 -> 6.6092 | D6: =+Database!$C14*D$4^3+Database!$D14*D$4^2+Database!$E14*D$4+Database!$F14 -> 6.6092 | E6: =+Database!$C14*E$4^3+Database!$D14*E$4^2+Database!$E14*E$4+Database!$F14 -> 6.6092 | F6: =+Database!$C14*F$4^3+Database!$D14*F$4^2+Database!$E14*F$4+Database!$F14 -> 6.6092 | G6: t/year
B7: =title14 -> Water | C7: =+Database!$C15*C$4^3+Database!$D15*C$4^2+Database!$E15*C$4+Database!$F15 -> -1060.8 | D7: =+Database!$C15*D$4^3+Database!$D15*D$4^2+Database!$E15*D$4+Database!$F15 -> -1060.8 | E7: =+Database!$C15*E$4^3+Database!$D15*E$4^2+Database!$E15*E$4+Database!$F15 -> -1060.8 | F7: =+Database!$C15*F$4^3+Database!$D15*F$4^2+Database!$E15*F$4+Database!$F15 -> -1060.8 | G7: t/year
B8: =title50 -> Ammonia | C8: =+Database!$C16*C$4^3+Database!$D16*C$4^2+Database!$E16*C$4+Database!$F16 -> 1.7744 | D8: =+Database!$C16*D$4^3+Database!$D16*D$4^2+Database!$E16*D$4+Database!$F16 -> 1.7744 | E8: =+Database!$C16*E$4^3+Database!$D16*E$4^2+Database!$E16*E$4+Database!$F16 -> 1.7744 | F8: =+Database!$C16*F$4^3+Database!$D16*F$4^2+Database!$E16*F$4+Database!$F16 -> 1.7744 | G8: t/year
B9: =title51 -> Yeast | C9: =+Database!$C17*C$4^3+Database!$D17*C$4^2+Database!$E17*C$4+Database!$F17 -> 0.30096 | D9: =+Database!$C17*D$4^3+Database!$D17*D$4^2+Database!$E17*D$4+Database!$F17 -> 0.30096 | E9: =+Database!$C17*E$4^3+Database!$D17*E$4^2+Database!$E17*E$4+Database!$F17 -> 0.30096 | F9: =+Database!$C17*F$4^3+Database!$D17*F$4^2+Database!$E17*F$4+Database!$F17 -> 0.30096 | G9: t/year
B10: =title19 -> Electricity | C10: =C$2*Database!$C$8*1000000000 -> 250000 | D10: =D$2*Database!$C$8*1000000000 -> 1250000 | E10: =E$2*Database!$C$8*1000000000 -> 2500000 | F10: =F$2*Database!$C$8*1000000000 -> 5000000 | G10: =title278 -> kWh/year
B11: =title56 -> Steam | C11: =C$2*Database!$C$9*1000000 -> 19834.5 | D11: =D$2*Database!$C$9*1000000 -> 99172.5 | E11: =E$2*Database!$C$9*1000000 -> 198345 | F11: =F$2*Database!$C$9*1000000 -> 396690 | G11: =title279 -> t Steam/year
B12: CO2 | C12: =Database!$C$6*Calculation!C$3 -> -973168.6389 | D12: =Database!$C$6*Calculation!D$3 -> -4865843.195 | E12: =Database!$C$6*Calculation!E$3 -> -9731686.389 | F12: =Database!$C$6*Calculation!F$3 -> -19463372.78 | G12: =title47 -> t/year
B13: =title277 -> Vinasse | C13: =Database!$C$7*Calculation!C$3 -> -15570698.22 | D13: =Database!$C$7*Calculation!D$3 -> -77853491.12 | E13: =Database!$C$7*Calculation!E$3 -> -155706982.2 | F13: =Database!$C$7*Calculation!F$3 -> -311413964.5 | G13: =title47 -> t/year
B15: =title239 -> Installation | C15: =Database!D22 -> 2145907.99 | D15: =Database!E22 -> 2632099.392 | E15: =Database!F22 -> 3760328.662 | F15: =Database!G22 -> 4116576.618
B16: =title184 -> Construction | C16: =Database!D31 -> 4851995.4 | D16: =Database!E31 -> 8583081.6 | E16: =Database!F31 -> 9409852.8 | F16: =Database!G31 -> 10202629.2
B17: =title185 -> Installation cost | C17: =Database!D35 -> 2572030.8 | D17: =Database!E35 -> 2663197.8 | E17: =Database!F35 -> 3069895.8 | F17: =Database!G35 -> 3386912.4
F20: =title74 -> Transport | I20: Price | J20: Kg/L | K20: =title74 -> Transport | L20: Total
H21: =title154 -> Gasoline | I21: ='Data Entry Needs'!$H$56 -> 0 | J21: 0.745 | K21: =+VLOOKUP($H$25&$I$25,$D$22:$F$26,3,FALSE)*$J$27*'Data Entry Needs'!$I$19*$J$21/1000 ->  | L21: =+K21+I21 ->  | M21: =IF($I$27=title40,"",VLOOKUP($H$25&$I$25,$D$22:$G$26,4,FALSE)) -> 
B22: =title281 -> Fossil Fuel | C22: =title37 -> Net Importer | D22: =+B22&C22 -> Fossil FuelNet Importer | E22: =title82 -> Gasoline FOB price | F22: 1 | G22: =" + "&title74 -> + Transport | H22: =title121 -> Ethanol | I22: ='Data Entry Needs'!$D$56 -> 0 | J22: 0.789 | K22: =+VLOOKUP($H$26&$I$26,$D$22:$F$26,3,FALSE)*$J$27*'Data Entry Needs'!$I$19*$J$22/1000 ->  | L22: =+K22+I22 ->  | M22: =IF($I$27=title40,"",VLOOKUP($H$26&$I$26,$D$22:$G$26,4,FALSE)) -> 
B23: =title281 -> Fossil Fuel | C23: =title38 -> Net Exporter | D23: =+B23&C23 -> Fossil FuelNet Exporter | E23: =title196 -> Gasoline FGP price | F23: 0
B24: =title282 -> Biofuel | C24: =title37 -> Net Importer | D24: =+B24&C24 -> BiofuelNet Importer | E24: =title80 -> Ethanol FOB price | F24: 1 | G24: =" + "&title74 -> + Transport
B25: =title282 -> Biofuel | C25: =title38 -> Net Exporter | D25: =+B25&C25 -> BiofuelNet Exporter | E25: =title197 -> Ethanol FGP price | F25: 0 | H25: =title281 -> Fossil Fuel | I25: ='Data Entry Needs'!$D$17 -> Select | J25: =IF($I25=title38,TRUE,FALSE) -> FALSE
B26: =title282 -> Biofuel | C26: =title39 -> Interested in Exporting | D26: =+B26&C26 -> BiofuelInterested in Exporting | E26: =title80 -> Ethanol FOB price | F26: -1 | G26: =" - "&title74 -> - Transport | H26: =title282 -> Biofuel | I26: ='Data Entry Needs'!$H$17 -> Select | J26: =IF($I26=title38,TRUE,FALSE) -> FALSE
H27: =title74 -> Transport | I27: ='Data Entry Needs'!E19 -> Decision | J27: =IF($I$27=title40,0,1) -> 1

Sheet Database (hidden)
C1: =8.3/33.7 -> 0.2462908012 | I1: Menus
B2: =title283 -> Sugar | C2: =132.5/1000 -> 0.1325 | D2: =title300 -> t Sugar/t Sugarcane | I2: =title310 -> trade_balance_bio | J2: =title311 -> trade_balance_fossil | K2: =title41 -> Decision | L2: Combustibles
B3: =title171 -> Molasses | C3: =33.7/1000 -> 0.0337 | D3: =title301 -> t Molasses C/t Sugarcane | I3: =title36 -> Select | J3: =title36 -> Select | K3: =title40 -> yes | L3: =title36 -> Select
B4: =title121 -> Ethanol | C4: =$D$4*'Data Entry Needs'!$H$23+Database!$E$4 -> -0.00083 | D4: 0.562 | E4: -0.00083 | F4: =title302 -> t EtOH/t Molasses | I4: =title37 -> Net Importer | J4: =title37 -> Net Importer | K4: no | L4: =title153 -> Bagasse
B5: =title284 -> Cachaza | C5: =30/33.7 -> 0.8902077151 | D5: =title303 -> t cachaza/t Molasses | I5: =title38 -> Net Exporter | J5: =title38 -> Net Exporter | L5: =title154 -> Gasoline
B6: CO2 | C6: =6.9/33.7 -> 0.2047477745 | D6: =title304 -> t CO2/t Molasses | F6: =C4*1000/0.789 -> -1.051964512 | I6: =title39 -> Interested in Exporting | L6: =title155 -> Diesel
B7: =title277 -> Vinasse | C7: =110.4/33.7 -> 3.275964392 | D7: =title305 -> t Vinasse/t Molasses | L7: =title156 -> Used Oils
B8: =title19 -> Electricity | C8: 5e-05 | D8: =title306 -> GWh/m3 ethanol | L8: =title157 -> LPG
B9: =title56 -> Steam | C9: 0.0039669 | D9: =title307 -> 1000 t steam/m3 ethanol | L9: =title158 -> Natural Gas
B10: =title285 -> Workers | C10: 22 | D10: =title308 -> Fixed Year | L10: =title159 -> Butane
C11: 18 | D11: =title309 -> Zafra (Sugarcane Harvest) (6 Months) | L11: =title160 -> Propane
C12: A | D12: B | E12: C | F12: D | L12: =title161 -> Methanol
B13: =title173 -> Lime | C13: 0 | D13: 2.2005e-09 | E13: 0.053195 | F13: 5.2107 | L13: =title121 -> Ethanol
B14: =title174 -> Sulfuric acid | C14: 0 | D14: 2.7911e-09 | E14: 0.067472 | F14: 6.6092 | L14: =title162 -> Biodiesel
B15: =title14 -> Water | C15: 1.6173e-11 | D15: -3.5937e-06 | E15: 4.5564 | F15: -1060.8 | L15: =title163 -> Coal
B16: =title50 -> Ammonia | C16: 0 | D16: 7.4935e-10 | E16: 0.018115 | F16: 1.7744 | L16: =title164 -> Firewood
B17: =title51 -> Yeast | C17: -1.2322e-14 | D17: 1.4982e-09 | E17: 0.0010874 | F17: 0.30096
B19: =title286 -> Ethanol Plant | D19: 5 | E19: 25 | F19: 50 | G19: 100
A20: =title171 -> Molasses | B20: =title287 -> Purchased Equipment | C20: =title239 -> Installation | D20: 2070059.168 | E20: 2565895.841 | F20: 3640291.682 | G20: 3999683.365
A21: =title171 -> Molasses | B21: =title288 -> Equipment Setting | C21: =title239 -> Installation | D21: 75848.82151 | E21: 66203.55042 | F21: 120036.9795 | G21: 116893.253
B22: Sub-total | D22: =SUM(D20:D21) -> 2145907.99 | E22: =SUM(E20:E21) -> 2632099.392 | F22: =SUM(F20:F21) -> 3760328.662 | G22: =SUM(G20:G21) -> 4116576.618
B23: =title289 -> Piping | C23: =title184 -> Construction | D23: 912300 | E23: 979176 | F23: 1097034 | G23: 1307658
B24: =title290 -> Civil | C24: Construction | D24: 245608.8 | E24: 254208 | F24: 375318 | G24: 416241
B25: =title291 -> Steel | C25: Construction | D25: 100268.4 | E25: 119076 | F25: 143934 | G25: 173073.6
B26: =title292 -> Instrumentation | C26: Construction | D26: 1769010 | E26: 1808874 | F26: 1871064 | G26: 1930194
B27: =title293 -> Electrical | C27: Construction | D27: 384238.8 | E27: 375465.6 | F27: 409084.2 | G27: 461489.4
B28: =title294 -> Insulation | C28: Construction | D28: 198903.6 | E28: 225252 | F28: 265274.4 | G28: 321391.8
B29: =title295 -> Paint | C29: Construction | D29: 85849.8 | E29: 80670 | F29: 90784.2 | G29: 103001.4
B30: =title296 -> Other | C30: Construction | D30: 1155816 | E30: 4740360 | F30: 5157360 | G30: 5489580
B31: Sub-total | C31: =+C30 -> Construction | D31: =SUM(D23:D30) -> 4851995.4 | E31: =SUM(E23:E30) -> 8583081.6 | F31: =SUM(F23:F30) -> 9409852.8 | G31: =SUM(G23:G30) -> 10202629.2
B32: =title297 -> G. and A. Overheads | C32: =title185 -> Installation cost | D32: 211911.6 | E32: 224551.8 | F32: 269826 | G32: 304827.6
B33: =title298 -> Contract Fee | C33: =title185 -> Installation cost | D33: 467641.2 | E33: 460422 | F33: 508681.8 | G33: 545344.8
B34: =title299 -> Contingencies | C34: =title185 -> Installation cost | D34: 1892478 | E34: 1978224 | F34: 2291388 | G34: 2536740
B35: Sub-total | C35: =+C34 -> Installation cost | D35: =SUM(D32:D34) -> 2572030.8 | E35: =SUM(E32:E34) -> 2663197.8 | F35: =SUM(F32:F34) -> 3069895.8 | G35: =SUM(G32:G34) -> 3386912.4
D36: =D22+D31+D35 -> 9569934.19 | E36: =E22+E31+E35 -> 13878378.79 | F36: =F22+F31+F35 -> 16240077.26 | G36: =G22+G31+G35 -> 17706118.22

Sheet Title (hidden)
B2: Selection | C2: =VLOOKUP(START!B2,$A$3:$C$5,3,FALSE) -> 1
A3: EN | B3: English | C3: 1
A4: FR | B4: French | C4: 2
A5: ES | B5: Spanish | C5: 3
A7: ID | B7: English | C7: French | D7: Spanish | E7: Typeof | F7: Ref | G7: Name
A8: 1 | B8: 1 | C8: 2 | D8: 3
A9: 2 | B9: RAPID APPRAISAL ABRIDGED TOOL FOR THE PRODUCTION OF ETHANOL FROM MOLASSES | C9: OUTIL ABRÉGÉ D'ÉVALUATION RAPIDE POUR LA PRODUCTION D'ÉTHANOL À PARTIR DE MÉLASSES | D9: HERRAMIENTA ABREVIADA DE EVALUACIÓN RÁPIDA PARA LA PRODUCCIÓN DE ETANOL DE MELAZAS | E9: title | F9: =HLOOKUP($C$2,$B$8:$D9,$A9,FALSE) -> RAPID APPRAISAL ABRIDGED TOOL FOR THE PRODUCTION OF ETHANOL FROM MOLASSES | G9: =$E9&$A9 -> title2
A10: 3 | B10: Disclaimer | C10: Déni de responsabilité | D10: Descargo de Responsabilidad | E10: title | F10: =HLOOKUP($C$2,$B$8:$D10,$A10,FALSE) -> Disclaimer | G10: title3
A11: 4 | B11: FAO declines all responsibility for errors or deficiencies in the database or software or in the documentation accompanying it, for program maintenance and upgrading as well as for any damage that may arise from them. FAO also declines any responsibility for updating the data and assumes no responsibility for errors and omissions in the data provided. Users are, however, kindly asked to report any errors or deficiencies in this product to FAO. The choices of calculation made in this tool are those of the author(s) and do not necessarily reflect the views and choices of the Food and Agriculture Organization of the United Nations. | C11: La FAO décline toute responsabilité quant aux erreurs ou défauts des textes du présent site et des bases de données y afférentes, ainsi que pour les dommages pouvant en résulter. La FAO décline également toute responsabilité quant à la mise à jour des données et se dégage de toute responsabilité quant aux erreurs ou omissions concernant les données fournies. Les utilisateurs sont toutefois invités à signaler toute erreur ou lacune de ce produit à la FAO. Les choix des calculs faits dans le présent outil sont celles du/des auteur(s) et ne reflètent pas nécessairement les choix et opinions de l’Organisation des Nations Unies pour l’alimentation et l’agriculture (FAO). | D11: La FAO declina cualquier responsabilidad por errores u otros defectos del banco de datos, programa o de la documentación que los acompaña, o por cualquier daño derivado de ellos, así como por el mantenimiento y el mejoramiento de los programas. La FAO declina asimismo cualquier responsabilidad por la actualización de los datos, o por errores u omisiones en los datos que se han proporcionado. Se pide no obstante a los usuarios que señalen eventuales errores o defectos de este producto a la FAO. La elección de los cálculos presente en esta herramienta son las del/de los autor(es) y no reflejan necesariamente las opiniones y elecciones de la Organización de las Naciones Unidas para la Agricultura y la Alimentación. | E11: title | F11: =HLOOKUP($C$2,$B$8:$D11,$A11,FALSE) -> FAO declines all responsibility for errors or deficiencies in the database or software or in the documentation accompanying it, for program maintenance and upgrading as well as for any damage that may arise from them. FAO also declines any responsibility for updating the data and assumes no responsibility for errors and omissions in the data provided. Users are, however, kindly asked to report any errors or deficiencies in this product to FAO. The choices of calculation made in this tool are those of the author(s) and do not necessarily reflect the views and choices of the Food and Agriculture Organization of the United Nations. | G11: title4
A12: 5 | B12: PROCESSING SYSTEMS OF LIQUID BIOFUELS FOR TRANSPORTATION | C12: SYSTÈME DE TRAITEMENT DES BIOCARBURANTS LIQUIDES POUR LE TRANSPORT | D12: SISTEMAS DE PROCESAMIENTO DE BIOCOMBUSTIBLES LÍQUIDOS PARA EL TRANSPORTE | E12: title | F12: =HLOOKUP($C$2,$B$8:$D12,$A12,FALSE) -> PROCESSING SYSTEMS OF LIQUID BIOFUELS FOR TRANSPORTATION | G12: title5
A13: 6 | B13: PROCESSING OF ETHANOL FROM MOLASSES | C13: TRAITEMENT DE L'ÉTHANOL À PARTIR DE MÉLASSES | D13: PROCESAMIENTO DE ETANOL A PARTIR DE MELAZAS | E13: title | F13: =HLOOKUP($C$2,$B$8:$D13,$A13,FALSE) -> PROCESSING OF ETHANOL FROM MOLASSES | G13: title6
A14: 7 | B14: Chemical/Energy Inputs | C14: Apports énergétiques/chimiques | D14: Insumos Químicos/Energéticos | E14: title | F14: =HLOOKUP($C$2,$B$8:$D14,$A14,FALSE) -> Chemical/Energy Inputs | G14: title7
A15: 8 | B15: Ethanol Transport | C15: Transport de l'éthanol | D15: Transporte de Etanol | E15: title | F15: =HLOOKUP($C$2,$B$8:$D15,$A15,FALSE) -> Ethanol Transport | G15: title8
A16: 9 | B16: Collection & Storage | C16: Collecte et Stockage | D16: Recolección & Almacenamiento | E16: title | F16: =HLOOKUP($C$2,$B$8:$D16,$A16,FALSE) -> Collection & Storage | G16: title9
A17: 10 | B17: Clarification | C17: Expliquer | D17: Clarificado | E17: title | F17: =HLOOKUP($C$2,$B$8:$D17,$A17,FALSE) -> Clarification | G17: title10
A18: 11 | B18: Processing (fermentation) & Purification | C18: Traitement (fermentation) & Purification | D18: Procesamiento (fermentación) & Purificación | E18: title | F18: =HLOOKUP($C$2,$B$8:$D18,$A18,FALSE) -> Processing (fermentation) & Purification | G18: title11
A19: 12 | B19: Feedstock Rich in Sugars | C19: Matières Premières Riches en Sucres | D19: Materia Prima Rica en Azucares | E19: title | F19: =HLOOKUP($C$2,$B$8:$D19,$A19,FALSE) -> Feedstock Rich in Sugars | G19: title12
A20: 13 | B20: Molasses | C20: MÉLASSES | D20: Melazas | E20: title | F20: =HLOOKUP($C$2,$B$8:$D20,$A20,FALSE) -> Molasses | G20: title13
A21: 14 | B21: Water | C21: Eau | D21: Agua | E21: title | F21: =HLOOKUP($C$2,$B$8:$D21,$A21,FALSE) -> Water | G21: title14
A22: 15 | B22: Boiler | C22: Chaudière | D22: Caldera | E22: title | F22: =HLOOKUP($C$2,$B$8:$D22,$A22,FALSE) -> Boiler | G22: title15
A23: 16 | B23: Steam and Electricity Generation | C23: Production de vapeur et d'électricité | D23: Generación de Vapor y Electricidad | E23: title | F23: =HLOOKUP($C$2,$B$8:$D23,$A23,FALSE) -> Steam and Electricity Generation | G23: title16
A24: 17 | B24: Biomass Residues or other types of fuels | C24: Résidues de la biomasse ou d'autres types de carburants | D24: Residuos de Biomasa u otro tipo de combustibles | E24: title | F24: =HLOOKUP($C$2,$B$8:$D24,$A24,FALSE) -> Biomass Residues or other types of fuels | G24: title17
A25: 18 | B25: Heat | C25: Chaleur | D25: Calor | E25: title | F25: =HLOOKUP($C$2,$B$8:$D25,$A25,FALSE) -> Heat | G25: title18
A26: 19 | B26: Electricity | C26: Électricité | D26: Electricidad | E26: title | F26: =HLOOKUP($C$2,$B$8:$D26,$A26,FALSE) -> Electricity | G26: title19
A27: 20 | B27: BEFSRA ABRIDGED TOOL FOR THE PRODUCTION OF ETHANOL FROM MOLASSES | C27: OUTIL BEFS RA ABRÉGÉ POUR LA PRODUCTION D'ÉTHANOL À PARTIR DE MÉLASSES | D27: HERRAMIENTA ABREVIADA BEFSRA PARA PRODUCCIÓN DE ETANOL DE MELAZAS | E27: title | F27: =HLOOKUP($C$2,$B$8:$D27,$A27,FALSE) -> BEFSRA ABRIDGED TOOL FOR THE PRODUCTION OF ETHANOL FROM MOLASSES | G27: title20
A28: 21 | B28: Step 1: Demand and Trade Balance for Fuels | C28: Étape 1: Demande et balance commerciale pour les carburants | D28: Paso 1 : Demanda y Balance Comercial de Combustibles | E28: title | F28: =HLOOKUP($C$2,$B$8:$D28,$A28,FALSE) -> Step 1: Demand and Trade Balance for Fuels | G28: title21
A29: 22 | B29: Fossil Fuels Demand | C29: Demande en Combustibles Fossiles | D29: Demanda Combustibles Fósiles | E29: title | F29: =HLOOKUP($C$2,$B$8:$D29,$A29,FALSE) -> Fossil Fuels Demand | G29: title22
A30: 23 | B30: Biofuel Production and Trade | C30: Production et Commerce de Biocarburant | D30: Balance Producción Biocombustibles | E30: title | F30: =HLOOKUP($C$2,$B$8:$D30,$A30,FALSE) -> Biofuel Production and Trade | G30: title23
A31: 24 | B31: Consumption | C31: Consommation | D31: Consumo | E31: title | F31: =HLOOKUP($C$2,$B$8:$D31,$A31,FALSE) -> Consumption | G31: title24
A32: 25 | B32: Domestic Production | C32: Production nationale | D32: Producción Domestica | E32: title | F32: =HLOOKUP($C$2,$B$8:$D32,$A32,FALSE) -> Domestic Production | G32: title25
A33: 26 | B33: Import | C33: Importations | D33: Importación | E33: title | F33: =HLOOKUP($C$2,$B$8:$D33,$A33,FALSE) -> Import | G33: title26
A34: 27 | B34: Export | C34: Exportations | D34: Exportación | E34: title | F34: =HLOOKUP($C$2,$B$8:$D34,$A34,FALSE) -> Export | G34: title27
A35: 28 | B35: Gasoline (ML/year) | C35: Essence (ML/an) | D35: Gasolina (ML/año) | E35: title | F35: =HLOOKUP($C$2,$B$8:$D35,$A35,FALSE) -> Gasoline (ML/year) | G35: title28
A36: 29 | B36: Ethanol (ML/year) | C36: Éthanol (ML/an) | D36: Etanol (ML/año) | E36: title | F36: =HLOOKUP($C$2,$B$8:$D36,$A36,FALSE) -> Ethanol (ML/year) | G36: title29
A37: 30 | B37: Net Balance (ML/year) | C37: Balance Nette (ML/an) | D37: Balance Neto (ML/año) | E37: title | F37: =HLOOKUP($C$2,$B$8:$D37,$A37,FALSE) -> Net Balance (ML/year) | G37: title30
A38: 31 | B38: Fuels Trade Balance | C38: Balance Commerciale des Carburants | D38: Balance comercial Combustibles | E38: title | F38: =HLOOKUP($C$2,$B$8:$D38,$A38,FALSE) -> Fuels Trade Balance | G38: title31
A39: 32 | B39: Fossil Fuels - Net Trade Position | C39: Position Commerciale Nette - Combustibles Fossiles | D39: Combustibles fósiles - posición comercial neta | E39: title | F39: =HLOOKUP($C$2,$B$8:$D39,$A39,FALSE) -> Fossil Fuels - Net Trade Position | G39: title32
A40: 33 | B40: Biofuels - Net Trade Position | C40: Position Commerciale Nette - Biocarburants | D40: Biocombustibles - posición comercial neta | E40: title | F40: =HLOOKUP($C$2,$B$8:$D40,$A40,FALSE) -> Biofuels - Net Trade Position | G40: title33
A41: 34 | B41: Is the main port located in the main city of the country? | C41: Le principal port se trouve t-il dans la ville principale du pays ? | D41: ¿Esta el principal puerto situado en la ciudad principal del país? | E41: title | F41: =HLOOKUP($C$2,$B$8:$D41,$A41,FALSE) -> Is the main port located in the main city of the country? | G41: title34
A42: 35 | B42: Distance from the port to the main town (km) | C42: Distance du port à la principale ville | D42: Distancia desde el puerto a la ciudad principal (km) | E42: title | F42: =HLOOKUP($C$2,$B$8:$D42,$A42,FALSE) -> Distance from the port to the main town (km) | G42: title35
A43: 36 | B43: Select | C43: Sélectionnez | D43: Seleccione | E43: title | F43: =HLOOKUP($C$2,$B$8:$D43,$A43,FALSE) -> Select | G43: title36
A44: 37 | B44: Net Importer | C44: Importateur net | D44: Importador Neto | E44: title | F44: =HLOOKUP($C$2,$B$8:$D44,$A44,FALSE) -> Net Importer | G44: title37
A45: 38 | B45: Net Exporter | C45: Exportateur net | D45: Exportador Neto | E45: title | F45: =HLOOKUP($C$2,$B$8:$D45,$A45,FALSE) -> Net Exporter | G45: title38
A46: 39 | B46: Interested in Exporting | C46: Intéressé par l'exportation | D46: Interesado en Exportar | E46: title | F46: =HLOOKUP($C$2,$B$8:$D46,$A46,FALSE) -> Interested in Exporting | G46: title39
A47: 40 | B47: yes | C47: oui | D47: si | E47: title | F47: =HLOOKUP($C$2,$B$8:$D47,$A47,FALSE) -> yes | G47: title40
A48: 41 | B48: Decision | C48: Décision | D48: Decision | E48: title | F48: =HLOOKUP($C$2,$B$8:$D48,$A48,FALSE) -> Decision | G48: title41
A49: 42 | B49: Step 2: Define Molasses Availability and Cost | C49: Étape 2: Définissez la Disponibilité et le Coût des mélasses | D49: Paso 2: Definición Disponibilidad de Melaza y Costo | E49: title | F49: =HLOOKUP($C$2,$B$8:$D49,$A49,FALSE) -> Step 2: Define Molasses Availability and Cost | G49: title42
A50: 43 | B50: Feedstock available | C50: Matière Première Disponible | D50: Materia prima disponible | E50: title | F50: =HLOOKUP($C$2,$B$8:$D50,$A50,FALSE) -> Feedstock available | G50: title43
A51: 44 | B51: Feedstock cost | C51: Coût de la matière Première | D51: Costo de materia prima | E51: title | F51: =HLOOKUP($C$2,$B$8:$D51,$A51,FALSE) -> Feedstock cost | G51: title44
A52: 45 | B52: Fermentable Sugars in Molasses | C52: Sucres fermentescibles dans les mélasses | D52: Azucares Fermentables en Melaza | E52: title | F52: =HLOOKUP($C$2,$B$8:$D52,$A52,FALSE) -> Fermentable Sugars in Molasses | G52: title45
A53: 46 | B53: Molasses Supply | C53: Approvisionnement en mélasses | D53: Suministro de Melaza | E53: title | F53: =HLOOKUP($C$2,$B$8:$D53,$A53,FALSE) -> Molasses Supply | G53: title46
A54: 47 | B54: t/year | C54: t/an | D54: t/año | E54: title | F54: =HLOOKUP($C$2,$B$8:$D54,$A54,FALSE) -> t/year | G54: title47
A55: 48 | B55: Step 3: Define Input Costs, Services and Wages | C55: Étape 3: Définissez les Coûts des Intrants, des Prestations de services et des Salaires | D55: Paso 3: Definición Costos de Insumos, Servicios y Salarios | E55: title | F55: =HLOOKUP($C$2,$B$8:$D55,$A55,FALSE) -> Step 3: Define Input Costs, Services and Wages | G55: title48
A56: 49 | B56: Ethanol Inputs | C56: Apports en Éthanol | D56: Insumos de etanol | E56: title | F56: =HLOOKUP($C$2,$B$8:$D56,$A56,FALSE) -> Ethanol Inputs | G56: title49
A57: 50 | B57: Ammonia | C57: Ammoniaque | D57: Amoníaco | E57: title | F57: =HLOOKUP($C$2,$B$8:$D57,$A57,FALSE) -> Ammonia | G57: title50
A58: 51 | B58: Yeast | C58: Levure | D58: Levadura | E58: title | F58: =HLOOKUP($C$2,$B$8:$D58,$A58,FALSE) -> Yeast | G58: title51
A59: 52 | B59: Unit | C59: Unité | D59: Unidad | E59: title | F59: =HLOOKUP($C$2,$B$8:$D59,$A59,FALSE) -> Unit | G59: title52
A60: 53 | B60: Sulfuric Acid | C60: Acide Sulfurique | D60: Ácido sulfúrico | E60: title | F60: =HLOOKUP($C$2,$B$8:$D60,$A60,FALSE) -> Sulfuric Acid | G60: title53
A61: 54 | B61: Hydrated Lime | C61: Chaux Hydratée | D61: Cal hidratada | E61: title | F61: =HLOOKUP($C$2,$B$8:$D61,$A61,FALSE) -> Hydrated Lime | G61: title54
A62: 55 | B62: Services | C62: Prestations de service | D62: Servicios | E62: title | F62: =HLOOKUP($C$2,$B$8:$D62,$A62,FALSE) -> Services | G62: title55
A63: 56 | B63: Steam | C63: Vapeur | D63: Vapor | E63: title | F63: =HLOOKUP($C$2,$B$8:$D63,$A63,FALSE) -> Steam | G63: title56
A64: 57 | B64: Labour | C64: Travail | D64: Mano de obra | E64: title | F64: =HLOOKUP($C$2,$B$8:$D64,$A64,FALSE) -> Labour | G64: title57
A65: 58 | B65: Unskilled workers (operators, assistants) | C65: Ouvrier non-qualifié (opérateurs, assistants) | D65: Trabajadores no cualificados (Operarios, Auxiliares) | E65: title | F65: =HLOOKUP($C$2,$B$8:$D65,$A65,FALSE) -> Unskilled workers (operators, assistants) | G65: title58
A66: 59 | B66: Skilled workers (section chiefs, engineers) | C66: Ouvriers qualifiés (chefs de section, ingénieurs) | D66: Trabajadores cualificados (Jefes de sección, Ingenieros) | E66: title | F66: =HLOOKUP($C$2,$B$8:$D66,$A66,FALSE) -> Skilled workers (section chiefs, engineers) | G66: title59
A67: 60 | B67: Working days per year | C67: Jours de travail par An | D67: Días laborables por año | E67: title | F67: =HLOOKUP($C$2,$B$8:$D67,$A67,FALSE) -> Working days per year | G67: title60
A68: 61 | B68: Sugarcane Zafra (Harvest) Days | C68: Jours de récolte de la Canne à Sucre (jours Zafra) | D68: Días Zafra | E68: title | F68: =HLOOKUP($C$2,$B$8:$D68,$A68,FALSE) -> Sugarcane Zafra (Harvest) Days | G68: title61
A69: 62 | B69: Other costs | C69: Autres coûts | D69: Otros costos | E69: title | F69: =HLOOKUP($C$2,$B$8:$D69,$A69,FALSE) -> Other costs | G69: title62
A70: 63 | B70: Maintenance (%) | C70: Maintenance (%) | D70: Mantenimiento (%) | E70: title | F70: =HLOOKUP($C$2,$B$8:$D70,$A70,FALSE) -> Maintenance (%) | G70: title63
A71: 64 | B71: Plant overhead | C71: Frais généraux de l'usine | D71: Gastos generales de planta | E71: title | F71: =HLOOKUP($C$2,$B$8:$D71,$A71,FALSE) -> Plant overhead | G71: title64
A72: 65 | B72: General and administrative | C72: Frais généraux et administratifs | D72: Generales y administrativos | E72: title | F72: =HLOOKUP($C$2,$B$8:$D72,$A72,FALSE) -> General and administrative | G72: title65
A73: 66 | B73: Miscellaneous Costs (%) | C73: Coûts Divers (%) | D73: Costos Misceláneos (%) | E73: title | F73: =HLOOKUP($C$2,$B$8:$D73,$A73,FALSE) -> Miscellaneous Costs (%) | G73: =$E73&$A73 -> title66
A74: 67 | B74: Updating the investment cost | C74: Mise à jour du coût d'investissement | D74: Actualización del costo de inversión | E74: title | F74: =HLOOKUP($C$2,$B$8:$D74,$A74,FALSE) -> Updating the investment cost | G74: title67
A75: 68 | B75: Plant cost index during 8/2015 | C75: Indice des coûts de l'usine pendant 2/2015 | D75: Índice de costo de la planta durante 8/2015 | E75: title | F75: =HLOOKUP($C$2,$B$8:$D75,$A75,FALSE) -> Plant cost index during 8/2015 | G75: title68
A76: 69 | B76: Find values following this link: | C76: Trouvez les valeurs en suivant ce lien: | D76: Encuentre valores siguiendo este link : | E76: title | F76: =HLOOKUP($C$2,$B$8:$D76,$A76,FALSE) -> Find values following this link: | G76: title69
A77: 70 | B77: Storage | C77: Stockage | D77: Almacenamiento | E77: title | F77: =HLOOKUP($C$2,$B$8:$D77,$A77,FALSE) -> Storage | G77: title70
A78: 71 | B78: Feedstock storage cost | C78: Coût de stockage de la matière première | D78: Costo de almacenamiento de la materia prima | E78: title | F78: =HLOOKUP($C$2,$B$8:$D78,$A78,FALSE) -> Feedstock storage cost | G78: title71
A79: 72 | B79: Ethanol storage cost | C79: Coût de stockage de l'éthanol | D79: Costo de almacenamiento del etanol | E79: title | F79: =HLOOKUP($C$2,$B$8:$D79,$A79,FALSE) -> Ethanol storage cost | G79: title72
A80: 73 | B80: Percentage of ethanol in storage | C80: Pourcentage d'éthanol stocké | D80: Porcentaje de almacenamiento etanol | E80: title | F80: =HLOOKUP($C$2,$B$8:$D80,$A80,FALSE) -> Percentage of ethanol in storage | G80: title73
A81: 74 | B81: Transport | C81: Transport | D81: Transporte | E81: title | F81: =HLOOKUP($C$2,$B$8:$D81,$A81,FALSE) -> Transport | G81: title74
A82: 75 | B82: Transport cost | C82: Coût du transport | D82: Costo de Transporte | E82: title | F82: =HLOOKUP($C$2,$B$8:$D82,$A82,FALSE) -> Transport cost | G82: title75
A83: 76 | B83: Collection distance | C83: Distance de collecte | D83: Distancia de Colección | E83: title | F83: =HLOOKUP($C$2,$B$8:$D83,$A83,FALSE) -> Collection distance | G83: title76
A84: 77 | B84: (USD/year) | C84: (USD/an) | D84: (USD/año) | E84: title | F84: =HLOOKUP($C$2,$B$8:$D84,$A84,FALSE) -> (USD/year) | G84: title77
A85: 78 | B85: Step 4: Comparison Prices and Coproducts | C85: Étape 4: Comparaison des Prix et des Co-produits | D85: Paso 4: Precios de comparación y coproductos | E85: title | F85: =HLOOKUP($C$2,$B$8:$D85,$A85,FALSE) -> Step 4: Comparison Prices and Coproducts | G85: title78
A86: 79 | B86: Sale Prices | C86: Prix de Vente | D86: Precios de Venta | E86: title | F86: =HLOOKUP($C$2,$B$8:$D86,$A86,FALSE) -> Sale Prices | G86: title79
A87: 80 | B87: Ethanol FOB price | C87: Prix de l'Éthanol (FAB - Franco à bord) | D87: Etanol precio FOB | E87: title | F87: =HLOOKUP($C$2,$B$8:$D87,$A87,FALSE) -> Ethanol FOB price | G87: title80
A88: 81 | B88: Would you like to include the cogeneration system in the analysis? | C88: Voulez-vous inclure un système de cogénération dans l'analyse ? | D88: ¿Desea incluir el sistema de cogeneración en el análisis? | E88: title | F88: =HLOOKUP($C$2,$B$8:$D88,$A88,FALSE) -> Would you like to include the cogeneration system in the analysis? | G88: title81
A89: 82 | B89: Gasoline FOB price | C89: Prix de l'Essence (FAB - Franco à bord) | D89: Gasolina precio FOB | E89: title | F89: =HLOOKUP($C$2,$B$8:$D89,$A89,FALSE) -> Gasoline FOB price | G89: title82
A90: 83 | B90: Sale Price of Electricity | C90: Prix de Vente de l'Électricité | D90: Precio Venta de Electricidad | E90: title | F90: =HLOOKUP($C$2,$B$8:$D90,$A90,FALSE) -> Sale Price of Electricity | G90: title83
A91: 84 | B91: Step 5: Financial Parameters | C91: Étape 5: Paramètres Financiers | D91: Paso 5: Parametros Financieros | E91: title | F91: =HLOOKUP($C$2,$B$8:$D91,$A91,FALSE) -> Step 5: Financial Parameters | G91: title84
A92: 85 | B92: Financial parameters | C92: Paramètres Financiers | D92: Parámetros financieros | E92: title | F92: =HLOOKUP($C$2,$B$8:$D92,$A92,FALSE) -> Financial parameters | G92: title85
A93: 86 | B93: Discount rate (%) | C93: Taux d'actualisation (%) | D93: Tasa de descuento (%) | E93: title | F93: =HLOOKUP($C$2,$B$8:$D93,$A93,FALSE) -> Discount rate (%) | G93: title86
A94: 87 | B94: Loan interest rate (%) | C94: Taux d'intérêt du prêt (%) | D94: Tasa de interés de créditos (%) | E94: title | F94: =HLOOKUP($C$2,$B$8:$D94,$A94,FALSE) -> Loan interest rate (%) | G94: title87
A95: 88 | B95: Loan term (years) | C95: Durée du prêt (années) | D95: Plazo del crédito (años) | E95: title | F95: =HLOOKUP($C$2,$B$8:$D95,$A95,FALSE) -> Loan term (years) | G95: title88
A96: 89 | B96: Loan ratio | C96: Taux d'endettement | D96: Proporción de créditos | E96: title | F96: =HLOOKUP($C$2,$B$8:$D96,$A96,FALSE) -> Loan ratio | G96: title89
A97: 90 | B97: year | C97: Année | D97: año | E97: title | F97: =HLOOKUP($C$2,$B$8:$D97,$A97,FALSE) -> year | G97: title90
A98: 91 | B98: SUMMARY OF RESULTS FOR THE PRODUCTION OF ETHANOL FROM MOLASSES | C98: RÉSUMÉ DES RÉSULTATS POUR LA PRODUCTION D'ÉTHANOL À PARTIR DE MÉLASSES | D98: RESUMEN DE RESULTADOS PARA LA PRODUCCIÓN DE ETANOL DE MELAZAS | E98: title | F98: =HLOOKUP($C$2,$B$8:$D98,$A98,FALSE) -> SUMMARY OF RESULTS FOR THE PRODUCTION OF ETHANOL FROM MOLASSES | G98: title91
A99: 92 | B99: Results for production costs and investment | C99: Résultats des Coûts de production et d'investissement | D99: Resultados de costos de producción e inversión | E99: title | F99: =HLOOKUP($C$2,$B$8:$D99,$A99,FALSE) -> Results for production costs and investment | G99: title92
A100: 93 | B100: Comparison of production costs vs. fossil fuel prices | C100: Comparaison des coûts de production vs. les prix des combustibles fossiles | D100: Comparación de los costos de producción vs. precio de combustibles fósiles - | E100: title | F100: =HLOOKUP($C$2,$B$8:$D100,$A100,FALSE) -> Comparison of production costs vs. fossil fuel prices | G100: title93
A101: 94 | B101: (USD/l gasoline equivalent) | C101: USD / l équivalent essence | D101: (USD/l gasolina equivalente) | E101: title | F101: =HLOOKUP($C$2,$B$8:$D101,$A101,FALSE) -> (USD/l gasoline equivalent) | G101: title94
A102: 95 | B102: Comparison of production costs vs. biofuel prices | C102: Comparaison des coûts de production vs. les prix des biocarburants | D102: Comparación de los costos de producción vs. precio de biocombustibles - | E102: title | F102: =HLOOKUP($C$2,$B$8:$D102,$A102,FALSE) -> Comparison of production costs vs. biofuel prices | G102: title95
A103: 96 | B103: (USD/l ethanol) | C103: USD / l équivalent éthanol | D103: (USD/l etanol) | E103: title | F103: =HLOOKUP($C$2,$B$8:$D103,$A103,FALSE) -> (USD/l ethanol) | G103: title96
A104: 97 | B104: Components Production Costs | C104: Coûts de Production des Composantes | D104: Componentes del Costo de Producción | E104: title | F104: =HLOOKUP($C$2,$B$8:$D104,$A104,FALSE) -> Components Production Costs | G104: title97
A105: 98 | B105: Capital Investment | C105: Investissement en Capital | D105: Inversión de Capital | E105: title | F105: =HLOOKUP($C$2,$B$8:$D105,$A105,FALSE) -> Capital Investment | G105: title98
A106: 99 | B106: (Cogeneration included) | C106: (Cogénération incluse) | D106: (Cogeneración incluida) | E106: title | F106: =HLOOKUP($C$2,$B$8:$D106,$A106,FALSE) -> (Cogeneration included) | G106: title99
A107: 100 | B107: Operating Results | C107: Résultats d'exploitation | D107: Resultados de Operación | E107: title | F107: =HLOOKUP($C$2,$B$8:$D107,$A107,FALSE) -> Operating Results | G107: title100
A108: 101 | B108: Feedstock demand per plant | C108: Demande en matières premières par usine | D108: Demanda de materia prima por planta | E108: title | F108: =HLOOKUP($C$2,$B$8:$D108,$A108,FALSE) -> Feedstock demand per plant | G108: title101
A109: 102 | B109: Other Chemical Inputs | C109: Autres intrants chimiques | D109: Otros Insumos Químicos | E109: title | F109: =HLOOKUP($C$2,$B$8:$D109,$A109,FALSE) -> Other Chemical Inputs | G109: title102
A110: 103 | B110: Logistics | C110: Logistique | D110: Logistica | E110: title | F110: =HLOOKUP($C$2,$B$8:$D110,$A110,FALSE) -> Logistics | G110: title103
A111: 104 | B111: Depreciation and Maintenance | C111: Amortissement & maintenance | D111: Depreciación y Mantenimiento | E111: title | F111: =HLOOKUP($C$2,$B$8:$D111,$A111,FALSE) -> Depreciation and Maintenance | G111: title104
A112: 105 | B112: Total (USD/year) | C112: Total (USD/an) | D112: Total (USD/año) | E112: title | F112: =HLOOKUP($C$2,$B$8:$D112,$A112,FALSE) -> Total (USD/year) | G112: title105
A113: 106 | B113: Molasses Demand | C113: Demande en Mélasses | D113: Demanda Melazas | E113: title | F113: =HLOOKUP($C$2,$B$8:$D113,$A113,FALSE) -> Molasses Demand | G113: title106
A114: 107 | B114: Molasses Availability | C114: Mélasses Disponibles | D114: Melazas Disponibles | E114: title | F114: =HLOOKUP($C$2,$B$8:$D114,$A114,FALSE) -> Molasses Availability | G114: title107
A115: 108 | B115: Maximum Production with Available Molasses | C115: Production Maximale avec les Mélasses Disponibles | D115: Producción Maxima con Melaza Disponible | E115: title | F115: =HLOOKUP($C$2,$B$8:$D115,$A115,FALSE) -> Maximum Production with Available Molasses | G115: title108
A116: 109 | B116: Gasoline Demand in the Country | C116: Demande en Essence dans le Pays | D116: Demanda Gasolina en el País | E116: title | F116: =HLOOKUP($C$2,$B$8:$D116,$A116,FALSE) -> Gasoline Demand in the Country | G116: title109
A117: 110 | B117: Current Domestic Ethanol Balance | C117: Balance Courante Nationale en Ethanol | D117: Balance Actual del Etanol Nacional | E117: title | F117: =HLOOKUP($C$2,$B$8:$D117,$A117,FALSE) -> Current Domestic Ethanol Balance | G117: title110
A118: 111 | B118: Jobs Created at the Industrial Level | C118: Emplois Créés au Niveau Industiel | D118: Empleos Generados a Nivel Industrial | E118: title | F118: =HLOOKUP($C$2,$B$8:$D118,$A118,FALSE) -> Jobs Created at the Industrial Level | G118: title111
A119: 112 | B119: Financial Results | C119: Résultats Financiers | D119: Resultados Financieros | E119: title | F119: =HLOOKUP($C$2,$B$8:$D119,$A119,FALSE) -> Financial Results | G119: title112
A120: 113 | B120: Net Present Value (million USD) | C120: Valeur Actuelle Nette (VAN) (million USD) | D120: Valor Actual Neto (millones USD) | E120: title | F120: =HLOOKUP($C$2,$B$8:$D120,$A120,FALSE) -> Net Present Value (million USD) | G120: title113
A121: 114 | B121: Internal Rate of Return (%) | C121: Taux de rendement interne (TRI) (%) | D121: Tasa Interna de Retorno (%) | E121: title | F121: =HLOOKUP($C$2,$B$8:$D121,$A121,FALSE) -> Internal Rate of Return (%) | G121: title114
A122: 115 | B122: SENSITIVITY ANALYSIS SUGAR/ETHANOL FRACTION | C122: ANALYSE DE SENSIBILITÉ FRACTION SUCRE/ÉTHANOL | D122: ANÁLISIS SENSIBILIDAD FRACCIÓN AZÚCAR/ETANOL | E122: title | F122: =HLOOKUP($C$2,$B$8:$D122,$A122,FALSE) -> SENSITIVITY ANALYSIS SUGAR/ETHANOL FRACTION | G122: title115
A123: 116 | B123: Define Parameters for Products in Competition | C123: Définissez les paramètres des produits qui sont en concurrence | D123: Definición de Parametros de Productos en Competencia | E123: title | F123: =HLOOKUP($C$2,$B$8:$D123,$A123,FALSE) -> Define Parameters for Products in Competition | G123: title116
A124: 117 | B124: Sugar | C124: Sucre | D124: Azúcar | E124: title | F124: =HLOOKUP($C$2,$B$8:$D124,$A124,FALSE) -> Sugar | G124: title117
A125: 118 | B125: Sugar Selling Price | C125: Prix de Vente du Sucre | D125: Precio Venta Azúcar | E125: title | F125: =HLOOKUP($C$2,$B$8:$D125,$A125,FALSE) -> Sugar Selling Price | G125: title118
A126: 119 | B126: Sugar Production Cost | C126: Coût de Production du Sucre | D126: Costo Producción Azúcar | E126: title | F126: =HLOOKUP($C$2,$B$8:$D126,$A126,FALSE) -> Sugar Production Cost | G126: title119
A127: 120 | B127: USD/kg Sugar | C127: USD/kg Sucre | D127: USD/kg Azucar | E127: title | F127: =HLOOKUP($C$2,$B$8:$D127,$A127,FALSE) -> USD/kg Sugar | G127: title120
A128: 121 | B128: Ethanol | C128: Éthanol | D128: Etanol | E128: title | F128: =HLOOKUP($C$2,$B$8:$D128,$A128,FALSE) -> Ethanol | G128: title121
A129: 122 | B129: Ethanol Selling Price | C129: Prix de Vente de l'Éthanol | D129: Precio Venta Etanol | E129: title | F129: =HLOOKUP($C$2,$B$8:$D129,$A129,FALSE) -> Ethanol Selling Price | G129: title122
A130: 123 | B130: Ethanol Production Level | C130: Niveau de Production de l'Éthanol | D130: Escala Producción Etanol | E130: title | F130: =HLOOKUP($C$2,$B$8:$D130,$A130,FALSE) -> Ethanol Production Level | G130: title123
A131: 124 | B131: Profits from Sugar Sales | C131: Profits des Ventes de Sucre | D131: Ganancia Ventas Azúcar | E131: title | F131: =HLOOKUP($C$2,$B$8:$D131,$A131,FALSE) -> Profits from Sugar Sales | G131: title124
A132: 125 | B132: Profis from Ethanol Sales | C132: Profits des Ventes d'Éthanol | D132: Ganancias Venta Etanol | E132: title | F132: =HLOOKUP($C$2,$B$8:$D132,$A132,FALSE) -> Profis from Ethanol Sales | G132: title125
A133: 126 | B133: Million USD | C133: Million USD | D133: Millones USD | E133: title | F133: =HLOOKUP($C$2,$B$8:$D133,$A133,FALSE) -> Million USD | G133: title126
A134: 127 | B134: XA = Fraction of juice sent to the sugar factory | C134: Xa=la fraction de jus envoyée à l'usine de sucre | D134: XA = Fracción de jugo enviado a fabrica de Azúcar | E134: title | F134: =HLOOKUP($C$2,$B$8:$D134,$A134,FALSE) -> XA = Fraction of juice sent to the sugar factory | G134: title127
A135: 128 | B135: Profit margin per ton of sugar cane | C135: Marge bénéficiaire par tonne de canne à sucre | D135: Margen de ganancia por tonelada de caña azúcar | E135: title | F135: =HLOOKUP($C$2,$B$8:$D135,$A135,FALSE) -> Profit margin per ton of sugar cane | G135: title128
A136: 129 | B136: Sugarcane juice | C136: Jus de Canne à Sucre | D136: Jugo de Caña de Azúcar | E136: title | F136: =HLOOKUP($C$2,$B$8:$D136,$A136,FALSE) -> Sugarcane juice | G136: title129
A137: 130 | B137: Sugarcane | C137: Canne à Sucre | D137: Caña de Azúcar | E137: title | F137: =HLOOKUP($C$2,$B$8:$D137,$A137,FALSE) -> Sugarcane | G137: title130
A138: 131 | B138: Sugar Plant | C138: Usine de Sucre | D138: Planta de Azúcar | E138: title | F138: =HLOOKUP($C$2,$B$8:$D138,$A138,FALSE) -> Sugar Plant | G138: title131
A139: 132 | B139: Ethanol Plant | C139: Usine d'Éthanol | D139: Planta de Etanol | E139: title | F139: =HLOOKUP($C$2,$B$8:$D139,$A139,FALSE) -> Ethanol Plant | G139: title132
A140: 133 | B140: RAPID SELECTION COGENERATION SYSTEMS | C140: SÉLECTION RAPIDE SYTÈMES DE COGÉNÉRATION | D140: SELECCIÓN RAPIDA SISTEMAS DE COGENERACIÓN | E140: title | F140: =HLOOKUP($C$2,$B$8:$D140,$A140,FALSE) -> RAPID SELECTION COGENERATION SYSTEMS | G140: title133
A141: 134 | B141: Selected Fuel | C141: Carburant sélectionné | D141: Combustible Seleccionado | E141: title | F141: =HLOOKUP($C$2,$B$8:$D141,$A141,FALSE) -> Selected Fuel | G141: =$E141&$A141 -> title134
A142: 135 | B142: Energy Potential (MJ/kg) | C142: Potentiel Énergétique (MJ/kg) | D142: Potencial de Energia (MJ/kg) | E142: title | F142: =HLOOKUP($C$2,$B$8:$D142,$A142,FALSE) -> Energy Potential (MJ/kg) | G142: title135
A143: 136 | B143: Fuel Price (USD/kg) | C143: Prix du carburant (USD/kg) | D143: Precio Combustible (USD/kg) | E143: title | F143: =HLOOKUP($C$2,$B$8:$D143,$A143,FALSE) -> Fuel Price (USD/kg) | G143: title136
A144: 137 | B144: Technology Description | C144: Description de la Technologie | D144: Descripción de Tecnologia | E144: title | F144: =HLOOKUP($C$2,$B$8:$D144,$A144,FALSE) -> Technology Description | G144: title137
A145: 138 | B145: This technology uses a boiler to produce high pressure steam, which is then used to generate electricity. The low pressure steam obtained is used in the process. | C145: Cette technologie utilise une chaudière afin de produire de la valeur à haute pression qui est ensuite utilisée pour générer de l'électricité. La vapeur à basse pression obtenue est utilisée dans le processus | D145: Esta tecnologia usa una caldera para producir vapor a alta presión que es luego usado para generar electricidad, el vapor de baja presión obtenido es usado en el proceso | E145: title | F145: =HLOOKUP($C$2,$B$8:$D145,$A145,FALSE) -> This technology uses a boiler to produce high pressure steam, which is then used to generate electricity. The low pressure steam obtained is used in the process. | G145: title138
A146: 139 | B146: Total Thermal Efficiency | C146: Efficacité Thermique Totale | D146: Eficencia Termica Total | E146: title | F146: =HLOOKUP($C$2,$B$8:$D146,$A146,FALSE) -> Total Thermal Efficiency | G146: title139
A147: 140 | B147: Electrical Efficiency | C147: Efficacité Électrique | D147: Eficiencia Electrica | E147: title | F147: =HLOOKUP($C$2,$B$8:$D147,$A147,FALSE) -> Electrical Efficiency | G147: title140
A148: 141 | B148: Operating hours per year | C148: Heures d'Exploitation par an | D148: Horas de operación por año | E148: title | F148: =HLOOKUP($C$2,$B$8:$D148,$A148,FALSE) -> Operating hours per year | G148: title141
A149: 142 | B149: Ethanol Plant Energy Demand | C149: Demande Énergétique de l'Usine de production d'Éthanol | D149: Demanda de Energia Planta de Etanol | E149: title | F149: =HLOOKUP($C$2,$B$8:$D149,$A149,FALSE) -> Ethanol Plant Energy Demand | G149: title142
A150: 143 | B150: Heat Demand (1000 MJ) | C150: Demande en chaleur (1000 MJ) | D150: Demanda Calor (1000 MJ) | E150: title | F150: =HLOOKUP($C$2,$B$8:$D150,$A150,FALSE) -> Heat Demand (1000 MJ) | G150: title143
A151: 144 | B151: Electricity Demand (kWh) | C151: Demande en Électricité (kWh) | D151: Demanda Electricidad (kWh) | E151: title | F151: =HLOOKUP($C$2,$B$8:$D151,$A151,FALSE) -> Electricity Demand (kWh) | G151: title144
A152: 145 | B152: Cogeneration Systems Features | C152: Caratéristiques du Système de Cogénération | D152: Caracteristicas Sistemas de Cogeneración | E152: title | F152: =HLOOKUP($C$2,$B$8:$D152,$A152,FALSE) -> Cogeneration Systems Features | G152: title145
A153: 146 | B153: Fuel Demand (t Fuel/year) | C153: Demande en Carburant (t Carburant/an) | D153: Demanda Combustible (t Combustible/año) | E153: title | F153: =HLOOKUP($C$2,$B$8:$D153,$A153,FALSE) -> Fuel Demand (t Fuel/year) | G153: title146
A154: 147 | B154: Electricity Produced (kWh/year) | C154: Électricité Produite (kWh/an) | D154: Electricidad Producida (kWh/año) | E154: title | F154: =HLOOKUP($C$2,$B$8:$D154,$A154,FALSE) -> Electricity Produced (kWh/year) | G154: title147
A155: 148 | B155: Power Plant Capacity (kW) | C155: Capacité Energétique de l'Usine | D155: Capacidad Planta Electrica (kW) | E155: title | F155: =HLOOKUP($C$2,$B$8:$D155,$A155,FALSE) -> Power Plant Capacity (kW) | G155: title148
A156: 149 | B156: Required Investment in Cogeneration Systems | C156: Investissement requis dans les systèmes de cogénération | D156: Inversión Requerida en Sistema de Cogeneración | E156: title | F156: =HLOOKUP($C$2,$B$8:$D156,$A156,FALSE) -> Required Investment in Cogeneration Systems | G156: title149
A157: 150 | B157: Equipment | C157: Équipement | D157: Equipos (USD) | E157: title | F157: =HLOOKUP($C$2,$B$8:$D157,$A157,FALSE) -> Equipment | G157: title150
A158: 151 | B158: Fixed Costs O&M (USD/year) | C158: Coûts Fixes O&M (USD/an) | D158: Costos Fijos O&M (USD/año) | E158: title | F158: =HLOOKUP($C$2,$B$8:$D158,$A158,FALSE) -> Fixed Costs O&M (USD/year) | G158: title151
A159: 152 | B159: Variable Costs O&M (USD/year) | C159: Coûts Variables O&M (USD/an) | D159: Costos Variables O&M (USD/año) | E159: title | F159: =HLOOKUP($C$2,$B$8:$D159,$A159,FALSE) -> Variable Costs O&M (USD/year) | G159: title152
A160: 153 | B160: Bagasse | C160: Bagasse | D160: Bagazo de Caña | E160: title | F160: =HLOOKUP($C$2,$B$8:$D160,$A160,FALSE) -> Bagasse | G160: title153
A161: 154 | B161: Gasoline | C161: Essence | D161: Gasolina | E161: title | F161: =HLOOKUP($C$2,$B$8:$D161,$A161,FALSE) -> Gasoline | G161: title154
A162: 155 | B162: Diesel | C162: Diesel | D162: Diésel | E162: title | F162: =HLOOKUP($C$2,$B$8:$D162,$A162,FALSE) -> Diesel | G162: title155
A163: 156 | B163: Used Oils | C163: Huiles Utilisées | D163: Aceites Usados | E163: title | F163: =HLOOKUP($C$2,$B$8:$D163,$A163,FALSE) -> Used Oils | G163: title156
A164: 157 | B164: LPG | C164: GPL | D164: GLP | E164: title | F164: =HLOOKUP($C$2,$B$8:$D164,$A164,FALSE) -> LPG | G164: title157
A165: 158 | B165: Natural Gas | C165: Gaz Naturel | D165: Gas Natural | E165: title | F165: =HLOOKUP($C$2,$B$8:$D165,$A165,FALSE) -> Natural Gas | G165: title158
A166: 159 | B166: Butane | C166: Butane | D166: Butano | E166: title | F166: =HLOOKUP($C$2,$B$8:$D166,$A166,FALSE) -> Butane | G166: title159
A167: 160 | B167: Propane | C167: Propane | D167: Propano | E167: title | F167: =HLOOKUP($C$2,$B$8:$D167,$A167,FALSE) -> Propane | G167: title160
A168: 161 | B168: Methanol | C168: Méthanol | D168: Metanol | E168: title | F168: =HLOOKUP($C$2,$B$8:$D168,$A168,FALSE) -> Methanol | G168: title161
A169: 162 | B169: Biodiesel | C169: Biodiesel | D169: Biodiesel | E169: title | F169: =HLOOKUP($C$2,$B$8:$D169,$A169,FALSE) -> Biodiesel | G169: title162
A170: 163 | B170: Coal | C170: Charbon | D170: Carbon | E170: title | F170: =HLOOKUP($C$2,$B$8:$D170,$A170,FALSE) -> Coal | G170: title163
A171: 164 | B171: Firewood | C171: Bois de feu | D171: Leña | E171: title | F171: =HLOOKUP($C$2,$B$8:$D171,$A171,FALSE) -> Firewood | G171: title164
A172: 165 | B172: DETAILED BUDGET FOR THE PRODUCTION OF ETHANOL FROM SUGARCANE MOLASSES | C172: BUDGET DETAILLÉ POUR LA PRODUCTION D'ÉTHANOL À PARTIR DE CANNE À SUCRE DE MÉLASSE | D172: PRESUPUESTO DETALLADO PRODUCCIÓN DE ETANOL DE MELAZAS DE CAÑA DE AZUCAR | E172: title | F172: =HLOOKUP($C$2,$B$8:$D172,$A172,FALSE) -> DETAILED BUDGET FOR THE PRODUCTION OF ETHANOL FROM SUGARCANE MOLASSES | G172: title165
A173: 166 | B173: Details of production costs | C173: Détails des coûts de production | D173: Detalles de los costos de producción | E173: title | F173: =HLOOKUP($C$2,$B$8:$D173,$A173,FALSE) -> Details of production costs | G173: title166
A174: 167 | B174: Capacities (Millions of liters per year) | C174: Capacité (Millions de litres par an) | D174: Capacidades (Millones de litros por año) | E174: title | F174: =HLOOKUP($C$2,$B$8:$D174,$A174,FALSE) -> Capacities (Millions of liters per year) | G174: title167
A175: 168 | B175: Unit Price | C175: Prix Unitaire | D175: Precio unitario | E175: title | F175: =HLOOKUP($C$2,$B$8:$D175,$A175,FALSE) -> Unit Price | G175: title168
A176: 169 | B176: Quantity | C176: Quantité | D176: Cantidad | E176: title | F176: =HLOOKUP($C$2,$B$8:$D176,$A176,FALSE) -> Quantity | G176: title169
A177: 170 | B177: Feedstock | C177: Matière Première | D177: Materia prima | E177: title | F177: =HLOOKUP($C$2,$B$8:$D177,$A177,FALSE) -> Feedstock | G177: title170
A178: 171 | B178: Molasses | C178: Mélasses | D178: Melaza | E178: title | F178: =HLOOKUP($C$2,$B$8:$D178,$A178,FALSE) -> Molasses | G178: title171
A179: 172 | B179: Cogeneration Fuel | C179: Carburant pour la cogénération | D179: Combustible Cogeneration | E179: title | F179: =HLOOKUP($C$2,$B$8:$D179,$A179,FALSE) -> Cogeneration Fuel | G179: title172
A180: 173 | B180: Lime | C180: Chaux | D180: Cal | E180: title | F180: =HLOOKUP($C$2,$B$8:$D180,$A180,FALSE) -> Lime | G180: title173
A181: 174 | B181: Sulfuric acid | C181: Acide Sulfurique | D181: Ácido sulfúrico | E181: title | F181: =HLOOKUP($C$2,$B$8:$D181,$A181,FALSE) -> Sulfuric acid | G181: title174
A182: 175 | B182: Energy inputs | C182: Apports énergétiques | D182: Insumos energéticos | E182: title | F182: =HLOOKUP($C$2,$B$8:$D182,$A182,FALSE) -> Energy inputs | G182: title175
A183: 176 | B183: Labour and various costs | C183: Coûts du Travail et coûts divers | D183: Mano de obra y costos varios | E183: title | F183: =HLOOKUP($C$2,$B$8:$D183,$A183,FALSE) -> Labour and various costs | G183: title176
A184: 177 | B184: Unskilled workers - Fixed | C184: Ouvriers non-qualifiés - Fixes | D184: Trabajadores no cualificados-Fijos | E184: title | F184: =HLOOKUP($C$2,$B$8:$D184,$A184,FALSE) -> Unskilled workers - Fixed | G184: title177
A185: 178 | B185: Unskilled workers - Zafra (Sugarcane Harvest) | C185: Ouvriers qualifiés - Zafra (Récolte de Canne à Sucre) | D185: Trabajadores no cualificados-Zafra | E185: title | F185: =HLOOKUP($C$2,$B$8:$D185,$A185,FALSE) -> Unskilled workers - Zafra (Sugarcane Harvest) | G185: title178
A186: 179 | B186: Skilled workers | C186: Ouvriers qualifiés | D186: Trabajadores cualificados | E186: title | F186: =HLOOKUP($C$2,$B$8:$D186,$A186,FALSE) -> Skilled workers | G186: title179
A187: 180 | B187: Miscellaneous Costs | C187: Coûts Divers (%) | D187: Costos Miscelaneos | E187: title | F187: =HLOOKUP($C$2,$B$8:$D187,$A187,FALSE) -> Miscellaneous Costs | G187: title180
A188: 181 | B188: Feedstock (farm to plant) | C188: Matières premières (de la ferme à l'usine) | D188: Materia prima (finca a la planta) | E188: title | F188: =HLOOKUP($C$2,$B$8:$D188,$A188,FALSE) -> Feedstock (farm to plant) | G188: title181
A189: 182 | B189: Investment | C189: Investissement | D189: Inversión | E189: title | F189: =HLOOKUP($C$2,$B$8:$D189,$A189,FALSE) -> Investment | G189: title182
A190: 183 | B190: Equipment | C190: Équipement | D190: Equipos | E190: title | F190: =HLOOKUP($C$2,$B$8:$D190,$A190,FALSE) -> Equipment | G190: title183
A191: 184 | B191: Construction | C191: Construction | D191: Construcción | E191: title | F191: =HLOOKUP($C$2,$B$8:$D191,$A191,FALSE) -> Construction | G191: title184
A192: 185 | B192: Installation cost | C192: Coût d'installation | D192: Costo de instalación | E192: title | F192: =HLOOKUP($C$2,$B$8:$D192,$A192,FALSE) -> Installation cost | G192: title185
A193: 186 | B193: Total Investment | C193: Investissement total | D193: Inversión total | E193: title | F193: =HLOOKUP($C$2,$B$8:$D193,$A193,FALSE) -> Total Investment | G193: title186
A194: 187 | B194: Maintenance costs | C194: Coûts de maintenance | D194: Costos de mantenimiento | E194: title | F194: =HLOOKUP($C$2,$B$8:$D194,$A194,FALSE) -> Maintenance costs | G194: title187
A195: 188 | B195: Feedstock (molasses) | C195: Matières premières (mélasses) | D195: Materia prima (melaza) | E195: title | F195: =HLOOKUP($C$2,$B$8:$D195,$A195,FALSE) -> Feedstock (molasses) | G195: title188
A196: 189 | B196: Ethanol product | C196: Produit de l'éthanol | D196: Etanol producto | E196: title | F196: =HLOOKUP($C$2,$B$8:$D196,$A196,FALSE) -> Ethanol product | G196: title189
A197: 190 | B197: Interest on loans | C197: Intérêts des prêts | D197: Intereses de créditos | E197: title | F197: =HLOOKUP($C$2,$B$8:$D197,$A197,FALSE) -> Interest on loans | G197: title190
A198: 191 | B198: Total production costs (USD/year) | C198: Coûts de production totaux (USD/an) | D198: Costos de producción totales (USD/año) | E198: title | F198: =HLOOKUP($C$2,$B$8:$D198,$A198,FALSE) -> Total production costs (USD/year) | G198: title191
A199: 192 | B199: Total operating costs | C199: Coûts d’opérations totaux | D199: Costos de operación totales | E199: title | F199: =HLOOKUP($C$2,$B$8:$D199,$A199,FALSE) -> Total operating costs | G199: title192
A200: 193 | B200: Total fixed costs | C200: Coûts fixes totaux | D200: Costos fijos totales | E200: title | F200: =HLOOKUP($C$2,$B$8:$D200,$A200,FALSE) -> Total fixed costs | G200: title193
A201: 194 | B201: Other total costs | C201: Autres coûts totaux | D201: Otros costos totales | E201: title | F201: =HLOOKUP($C$2,$B$8:$D201,$A201,FALSE) -> Other total costs | G201: title194
A202: 195 | B202: Total production costs per litre (USD/l) | C202: Coûts de production totaux par litre (USD/l) | D202: Costos de producción totales por litro (USD/l) | E202: title | F202: =HLOOKUP($C$2,$B$8:$D202,$A202,FALSE) -> Total production costs per litre (USD/l) | G202: title195
... 145 more rows

Sheet START
B2: EN
D3: =title2 -> RAPID APPRAISAL ABRIDGED TOOL FOR THE PRODUCTION OF ETHANOL FROM MOLASSES
C27: =title3 -> Disclaimer
C28: =title4 -> FAO declines all responsibility for errors or deficiencies in the database or software or in the documentation accompanying it, for program maintenance and upgrading as well as for any damage that may arise from them. FAO also declines any responsibility for updating the data and assumes no responsibility for errors and omissions in the data provided. Users are, however, kindly asked to report any errors or deficiencies in this product to FAO. The choices of calculation made in this tool are those of the author(s) and do not necessarily reflect the views and choices of the Food and Agriculture Organization of the United Nations.
C32: © FAO, 2016

Sheet Process Description
C3: =title5 -> PROCESSING SYSTEMS OF LIQUID BIOFUELS FOR TRANSPORTATION
C6: =title6 -> PROCESSING OF ETHANOL FROM MOLASSES
K8: =title7 -> Chemical/Energy Inputs
O9: =title8 -> Ethanol Transport
C14: =title12 -> Feedstock Rich in Sugars
C15: =title13 -> Molasses
D26: =title17 -> Biomass Residues or other types of fuels

Sheet Label (hidden)
B2: Selection | C2: =VLOOKUP(START!B2,$A$3:$C$5,3,FALSE) -> 1
A3: EN | B3: English | C3: 1
A4: FR | B4: French | C4: 2
A5: ES | B5: Spanish | C5: 3
A7: ID | B7: English | C7: French | D7: Spanish | E7: Typeof | F7: Ref | G7: Name
A8: 1 | B8: 1 | C8: 2 | D8: 3
A9: 2 | B9: Liquid Biofuel Process Description | C9: Description du Processus de Production de Biocarburant Liquide | D9: Descripción del Proceso de Biocombustibles Liquidos | E9: label | F9: =HLOOKUP($C$2,$B$8:$D9,$A9,FALSE) -> Liquid Biofuel Process Description | G9: =$E9&$A9 -> label2
A10: 3 | B10: NEXT >> General Data Entry | C10: SUIVANT >> Saisie Générale des Données | D10: SIGUIENTE >> Entrada General de Datos | E10: label | F10: =HLOOKUP($C$2,$B$8:$D10,$A10,FALSE) -> NEXT >> General Data Entry | G10: label3
A11: 4 | B11: << BACK Start | C11: << RETOUR Début | D11: << VOLVER Inicio | E11: label | F11: =HLOOKUP($C$2,$B$8:$D11,$A11,FALSE) -> << BACK Start | G11: label4
A12: 5 | B12: Production Cost Details | C12: Détails du Coût de Production | D12: Detalles Costo de Producción | E12: label | F12: =HLOOKUP($C$2,$B$8:$D12,$A12,FALSE) -> Production Cost Details | G12: label5
A13: 6 | B13: NEXT >> Summary of Results | C13: SUIVANT >> Résumé des Résultats | D13: SIGUIENTE >> Resumen de Resultados | E13: label | F13: =HLOOKUP($C$2,$B$8:$D13,$A13,FALSE) -> NEXT >> Summary of Results | G13: label6
A14: 7 | B14: Clear data | C14: Effacer les données | D14: Borrar Datos | E14: label | F14: =HLOOKUP($C$2,$B$8:$D14,$A14,FALSE) -> Clear data | G14: label7
A15: 8 | B15: << BACK Data Entry | C15: << RETOUR Saisie de Données | D15: << VOLVER Entrada de Datos | E15: label | F15: =HLOOKUP($C$2,$B$8:$D15,$A15,FALSE) -> << BACK Data Entry | G15: label8
A16: 9 | B16: NEXT >> Sensitivity Sugar/Ethanol Production | C16: SUIVANT >> Sensibilité de la production Sucre / Éthanol | D16: SIGUIENTE >> Sensibildad producción Azucar/Etanol | E16: label | F16: =HLOOKUP($C$2,$B$8:$D16,$A16,FALSE) -> NEXT >> Sensitivity Sugar/Ethanol Production | G16: label9
A17: 10 | B17: Cogeneration System Details | C17: Détails du Système de Cogénération | D17: Detalles Sistema Cogeneración | E17: label | F17: =HLOOKUP($C$2,$B$8:$D17,$A17,FALSE) -> Cogeneration System Details | G17: label10
A18: 11 | B18: << BACK Summary of Results | C18: >> RETOUR Résumé des Résultats | D18: << VOLVER Resumen de Resultados | E18: label | F18: =HLOOKUP($C$2,$B$8:$D18,$A18,FALSE) -> << BACK Summary of Results | G18: label11
A19: 12 | B19: Financial Assessment 5 ML | C19: Analyse Financière 5 ML | D19: Análisis Financiero 5 ML | E19: label | F19: =HLOOKUP($C$2,$B$8:$D19,$A19,FALSE) -> Financial Assessment 5 ML | G19: label12
A20: 13 | B20: Financial Assessment 25 ML | C20: Analyse Financière 25 ML | D20: Análisis Financiero 25 ML | E20: label | F20: =HLOOKUP($C$2,$B$8:$D20,$A20,FALSE) -> Financial Assessment 25 ML | G20: label13
A21: 14 | B21: Financial Assessment 50 ML | C21: Analyse Financière 50 ML | D21: Análisis Financiero 50 ML | E21: label | F21: =HLOOKUP($C$2,$B$8:$D21,$A21,FALSE) -> Financial Assessment 50 ML | G21: label14
A22: 15 | B22: Financial Assessment 100 ML | C22: Analyse Financière 100 ML | D22: Análisis Financiero 100 ML | E22: label | F22: =HLOOKUP($C$2,$B$8:$D22,$A22,FALSE) -> Financial Assessment 100 ML | G22: label15
A23: 16 | B23: << BACK Production Cost | C23: << RETOUR Coût de Production | D23: << VOLVER Costo de Producción | E23: label | F23: =HLOOKUP($C$2,$B$8:$D23,$A23,FALSE) -> << BACK Production Cost | G23: label16
A24: 17 | B24: Hide this sheet | C24: Cachez cette feuille | D24: Ocultar esta Hoja | E24: label | F24: =HLOOKUP($C$2,$B$8:$D24,$A24,FALSE) -> Hide this sheet | G24: label17
A25: 18 | B25: Step 1: Fuel Demand | C25: Étape 1: Demande en carburant | D25: Paso 1 : Demanda Combustibles | E25: label | F25: =HLOOKUP($C$2,$B$8:$D25,$A25,FALSE) -> Step 1: Fuel Demand | G25: label18
A26: 19 | B26: Step 2: Define Molasses | C26: Étape 2: Définir les Mélasses | D26: Paso 2 : Definición Melaza | E26: label | F26: =HLOOKUP($C$2,$B$8:$D26,$A26,FALSE) -> Step 2: Define Molasses | G26: label19
A27: 20 | B27: Step 3: Input Costs | C27: Étape 3: Coûts d'intrant | D27: Paso 3 : Costos insumos | E27: label | F27: =HLOOKUP($C$2,$B$8:$D27,$A27,FALSE) -> Step 3: Input Costs | G27: label20
A28: 21 | B28: Step 4: Price Comparison | C28: Étape 4: Comparaison de prix | D28: Paso 4 : Precio Comparación | E28: label | F28: =HLOOKUP($C$2,$B$8:$D28,$A28,FALSE) -> Step 4: Price Comparison | G28: label21
A29: 22 | B29: Step 5: Financial Parameters | C29: Etape 5: Paramètres financiers | D29: Paso 5 : Parametros Financieros | E29: label | F29: =HLOOKUP($C$2,$B$8:$D29,$A29,FALSE) -> Step 5: Financial Parameters | G29: label22
A30: 23 | B30: Detailed Cogeneration System | C30: Détails du Système de Cogénération | D30: Sistema de Cogeneración Detallado | E30: label | F30: =HLOOKUP($C$2,$B$8:$D30,$A30,FALSE) -> Detailed Cogeneration System | G30: label23

Sheet Data Entry Needs
C3: =title20 -> BEFSRA ABRIDGED TOOL FOR THE PRODUCTION OF ETHANOL FROM MOLASSES
C9: =title21 -> Step 1: Demand and Trade Balance for Fuels
C11: =title22 -> Fossil Fuels Demand | E11: =title23 -> Biofuel Production and Trade
D12: =title24 -> Consumption | G12: =title25 -> Domestic Production | H12: =title26 -> Import | I12: =title27 -> Export
C13: =title28 -> Gasoline (ML/year) | E13: =title29 -> Ethanol (ML/year)
G14: =title30 -> Net Balance (ML/year) | I14: =G13+H13-I13 -> 0
C16: =title31 -> Fuels Trade Balance
C17: =title32 -> Fossil Fuels - Net Trade Position | D17: Select | F17: =title33 -> Biofuels - Net Trade Position | H17: Select
E18: =IF($E$19=title40,TRUE,FALSE) -> FALSE
C19: =title34 -> Is the main port located in the main city of the country? | E19: Decision | F19: =title35 -> Distance from the port to the main town (km)
C21: =title42 -> Step 2: Define Molasses Availability and Cost
C23: =title43 -> Feedstock available | E23: =title47 -> t/year | F23: =title45 -> Fermentable Sugars in Molasses
C25: =title44 -> Feedstock cost | E25: USD/t | F25: =title46 -> Molasses Supply
C27: =title48 -> Step 3: Define Input Costs, Services and Wages
C29: =title49 -> Ethanol Inputs | E29: =title52 -> Unit | I29: =title52 -> Unit
C30: =title50 -> Ammonia | E30: USD/t | F30: =title53 -> Sulfuric Acid | I30: USD/t
C31: =title51 -> Yeast | E31: USD/t | F31: =title54 -> Hydrated Lime | I31: USD/t
C33: =title55 -> Services | E33: =title52 -> Unit | I33: =title52 -> Unit
C34: =title56 -> Steam | E34: USD/t | F34: =title19 -> Electricity | I34: USD/kWh
C35: =title14 -> Water | E35: USD/m3
C37: =title57 -> Labour | E37: =title52 -> Unit | I37: =title52 -> Unit
C38: =title58 -> Unskilled workers (operators, assistants) | E38: USD/h | F38: =title60 -> Working days per year
C39: =title59 -> Skilled workers (section chiefs, engineers) | E39: USD/h | F39: =title61 -> Sugarcane Zafra (Harvest) Days
C41: =title62 -> Other costs
C42: =title63 -> Maintenance (%) | F42: =title65&" (%)" -> General and administrative (%)
C43: =title64&" (%)" -> Plant overhead (%) | F43: =title66 -> Miscellaneous Costs (%)
C45: =title67 -> Updating the investment cost
C46: =title68 -> Plant cost index during 8/2015 | F46: =title69 -> Find values following this link: | H46: http://base.intratec.us/home/ic-index
C48: =title70 -> Storage | E48: =title52 -> Unit | F48: =title74 -> Transport | I48: =title52 -> Unit
C49: =title71 -> Feedstock storage cost | E49: USD/t | F49: =title75 -> Transport cost | I49: USD/t/km
C50: =title72 -> Ethanol storage cost | E50: USD/l | F50: =title76 -> Collection distance | I50: km
C51: =title73 -> Percentage of ethanol in storage
C53: =title78 -> Step 4: Comparison Prices and Coproducts
C55: =title79 -> Sale Prices | E55: =title52 -> Unit | I55: =title52 -> Unit
C56: =IF(Calculation!$J$26,title197,title80) -> Ethanol FOB price | E56: USD/l | F56: =IF(Calculation!$J$25,title196,title82) -> Gasoline FOB price | I56: USD/l
D57: =IF('Data Entry Needs'!$D$58=title40,FALSE,TRUE) -> FALSE
C58: =title81 -> Would you like to include the cogeneration system in the analysis? | D58: yes | F58: =title83 -> Sale Price of Electricity | I58: USD/kWh
C60: =title84 -> Step 5: Financial Parameters
C62: =title85 -> Financial parameters | F62: =title89 -> Loan ratio
C63: =title86 -> Discount rate (%) | F63: ="5 ML/"&title90 -> 5 ML/year
C64: =title87 -> Loan interest rate (%) | F64: ="25 ML/"&title90 -> 25 ML/year
C65: =title88 -> Loan term (years) | F65: ="50 ML/"&title90 -> 50 ML/year
F66: ="100 ML/"&title90 -> 100 ML/year

Sheet Summary of Results
C1: 0
C3: =title91 -> SUMMARY OF RESULTS FOR THE PRODUCTION OF ETHANOL FROM MOLASSES
C8: =title92 -> Results for production costs and investment
C10: =title93&" "&'Data Entry Needs'!$D$17&" "&title94 -> Comparison of production costs vs. fossil fuel prices Select (USD/l gasoline equivalent) | J10: =title95&" "&'Data Entry Needs'!$H$17&" "&title96 -> Comparison of production costs vs. biofuel prices Select (USD/l ethanol) | Q10: =title97 -> Components Production Costs | X10: =title98&IF('Data Entry Needs'!$D$58=title40,title99,"")&"(USD)" -> Capital Investment(Cogeneration included)(USD)
C24: =title100 -> Operating Results
C26: =title101 -> Feedstock demand per plant | J26: =title327 -> Percentage of obtainable mix with ethanol produced | T26: =title111 -> Jobs Created at the Industrial Level
K28: =$AI$258 -> Gasoline Demand in the Country | N28: =$AJ$258 -> 0 | P28: =$AK$257 -> Ml/year
K29: =$AI$257 -> Maximum Production with Available Molasses | N29: =AJ257 -> 0 | P29: =$AK$257 -> Ml/year
K30: =$AI$259 -> Domestic Production | N30: =$AJ$259 -> 0 | P30: =$AK$257 -> Ml/year
C44: =title112 -> Financial Results
C46: =title113 -> Net Present Value (million USD) | Q46: =title114 -> Internal Rate of Return (%)
AJ232: g | AK232: i | AL232: k | AM232: m
AJ233: 5 ML | AK233: 25 ML | AL233: 50 ML | AM233: 100 ML
AI234: =title13 -> Molasses | AJ234: =INDIRECT("'production cost'!"&AJ$232&$AN234) -> 0 | AK234: =INDIRECT("'production cost'!"&AK$232&$AN234) -> 0 | AL234: =INDIRECT("'production cost'!"&AL$232&$AN234) -> 0 | AM234: =INDIRECT("'production cost'!"&AM$232&$AN234) -> 0 | AN234: 15
AI235: =title102 -> Other Chemical Inputs | AJ235: =SUM(INDIRECT("'production cost'!"&AJ$232&$AN$235&":"&AJ$232&$AO$235)) -> 0 | AK235: =SUM(INDIRECT("'production cost'!"&AK$232&$AN$235&":"&AK$232&$AO$235)) -> 0 | AL235: =SUM(INDIRECT("'production cost'!"&AL$232&$AN$235&":"&AL$232&$AO$235)) -> 0 | AM235: =SUM(INDIRECT("'production cost'!"&AM$232&$AN$235&":"&AM$232&$AO$235)) -> 0 | AN235: 19 | AO235: 23
AI236: =title55 -> Services | AJ236: =SUM(INDIRECT("'production cost'!"&AJ$232&$AN236&":"&AJ$232&$AO236)) -> 0 | AK236: =SUM(INDIRECT("'production cost'!"&AK$232&$AN236&":"&AK$232&$AO236)) -> 0 | AL236: =SUM(INDIRECT("'production cost'!"&AL$232&$AN236&":"&AL$232&$AO236)) -> 0 | AM236: =SUM(INDIRECT("'production cost'!"&AM$232&$AN236&":"&AM$232&$AO236)) -> 0 | AN236: 26 | AO236: 27
AI237: =title57 -> Labour | AJ237: =INDIRECT("'production cost'!"&AJ$232&$AN237) -> 0 | AK237: =INDIRECT("'production cost'!"&AK$232&$AN237) -> 0 | AL237: =INDIRECT("'production cost'!"&AL$232&$AN237) -> 0 | AM237: =INDIRECT("'production cost'!"&AM$232&$AN237) -> 0 | AN237: 36
AI238: =title103 -> Logistics | AJ238: =INDIRECT("'production cost'!"&AJ$232&$AN238)+INDIRECT("'production cost'!"&AJ$232&$AO238) -> 0 | AK238: =INDIRECT("'production cost'!"&AK$232&$AN238)+INDIRECT("'production cost'!"&AK$232&$AO238) -> 0 | AL238: =INDIRECT("'production cost'!"&AL$232&$AN238)+INDIRECT("'production cost'!"&AL$232&$AO238) -> 0 | AM238: =INDIRECT("'production cost'!"&AM$232&$AN238)+INDIRECT("'production cost'!"&AM$232&$AO238) -> 0 | AN238: 40 | AO238: 57
AI239: =title62 -> Other costs | AJ239: =INDIRECT("'production cost'!"&AJ$232&$AN239) ->  | AN239: 64
AI240: =title104 -> Depreciation and Maintenance | AN240: 51
AI241: =title105 -> Total (USD/year) | AJ241: =SUM(AJ234:AJ240) ->  | AK241: =SUM(AK234:AK240) ->  | AL241: =SUM(AL234:AL240) ->  | AM241: =SUM(AM234:AM240) -> 
AI243: USD | AJ243: f | AK243: h | AL243: j | AM243: l
AJ244: 5 ML | AK244: 25 ML | AL244: 50 ML | AM244: 100 ML
AI245: Total Investment | AJ245: =ROUND(INDIRECT("'production cost'!"&AJ$243&$AN245)/1000000,2) ->  | AK245: =ROUND(INDIRECT("'production cost'!"&AK$243&$AN245)/1000000,2) ->  | AL245: =ROUND(INDIRECT("'production cost'!"&AL$243&$AN245)/1000000,2) ->  | AM245: =ROUND(INDIRECT("'production cost'!"&AM$243&$AN245)/1000000,2) ->  | AN245: 48
AI247: =title47 -> t/year | AJ247: 5 ML | AK247: 25 ML | AL247: 50 ML | AM247: 100 ML
AI248: Feedstock consumption (t/year) | AJ248: =INDIRECT("'production cost'!"&AJ$243&$AN248) -> -4753012.048 | AK248: =INDIRECT("'production cost'!"&AK$243&$AN248) -> -23765060.24 | AL248: =INDIRECT("'production cost'!"&AL$243&$AN248) -> -47530120.48 | AM248: =INDIRECT("'production cost'!"&AM$243&$AN248) -> -95060240.96 | AN248: 15
AI250: Jobs | AJ250: 5 ML | AK250: 25 ML | AL250: 50 ML | AM250: 100 ML
AI251: Empleos | AJ251: =SUM(INDIRECT("'production cost'!"&AJ$243&$AN251&":"&AJ$243&$AO251)) -> 23 | AK251: =SUM(INDIRECT("'production cost'!"&AK$243&$AN251&":"&AK$243&$AO251)) -> 26 | AL251: =SUM(INDIRECT("'production cost'!"&AL$243&$AN251&":"&AL$243&$AO251)) -> 49 | AM251: =SUM(INDIRECT("'production cost'!"&AM$243&$AN251&":"&AM$243&$AO251)) -> 98 | AN251: 32 | AO251: 34
AJ253: MJ/KG | AK253: KG/L
AI254: =title154 -> Gasoline | AJ254: 44.3 | AK254: 0.89 | AL254: =AJ254*AK254 -> 39.427 | AM254: =AL254/AL255 -> 1.854093485
AI255: =title121 -> Ethanol | AJ255: 26.95163409 | AK255: 0.789 | AL255: =AJ255*AK255 -> 21.2648393
AI257: =title108 -> Maximum Production with Available Molasses | AJ257: =$AJ$297*Database!$C$4/Calculation!$J$2/1000 -> 0 | AK257: ="Ml/"&title90 -> Ml/year
AI258: =title109 -> Gasoline Demand in the Country | AJ258: =ROUND('Data Entry Needs'!$D$13,0) -> 0
AI259: =title25 -> Domestic Production | AJ259: =ROUND('Data Entry Needs'!G13,0) -> 0
AJ260: 0.05 | AK260: 0.1 | AL260: 0.15 | AM260: 0.2 | AN260: 1
AJ261: E5 | AK261: E10 | AL261: E15 | AM261: E20 | AN261: E100
AI262: =title328 -> Demand of mix (Ml/year) | AJ262: =IF(AJ$260*$AJ$258<0,0,AJ$260*$AJ$258) -> 0 | AK262: =IF(AK$260*$AJ$258<0,0,AK$260*$AJ$258) -> 0 | AL262: =IF(AL$260*$AJ$258<0,0,AL$260*$AJ$258) -> 0 | AM262: =IF(AM$260*$AJ$258<0,0,AM$260*$AJ$258) -> 0 | AN262: =IF(AN$260*$AJ$258<0,0,AN$260*$AJ$258) -> 0
AI263: Etanol Maximo Disponible (Ml/año) | AJ263: =$AJ$257+$AJ$259 -> 0 | AK263: =$AJ$257+$AJ$259 -> 0 | AL263: =$AJ$257+$AJ$259 -> 0 | AM263: =$AJ$257+$AJ$259 -> 0 | AN263: =$AJ$257+$AJ$259 -> 0
AI265: Tamaños de planta | AJ265: 5000000 | AK265: 25000000 | AL265: 50000000 | AM265: 100000000
AI266: Chart1 - Etanol
AJ267: 5 ML | AK267: 25 ML | AL267: 50 ML | AM267: 100 ML
AI268: Costo Maximo | AJ268: =(AJ$241/AJ$265)*(1+$C$1) ->  | AK268: =(AK$241/AK$265)*(1+$C$1) ->  | AL268: =(AL$241/AL$265)*(1+$C$1) ->  | AM268: =(AM$241/AM$265)*(1+$C$1) -> 
AH269: =IF($C$1<=0,FALSE,TRUE) -> FALSE | AI269: Costo Minimo | AJ269: =IF($AH$269,(AJ$241/AJ$265)*(1-$C$1),"") ->  | AK269: =IF($AH$269,(AK$241/AK$265)*(1-$C$1),"") ->  | AL269: =IF($AH$269,(AL$241/AL$265)*(1-$C$1),"") ->  | AM269: =IF($AH$269,(AM$241/AM$265)*(1-$C$1),"") -> 
AI270: ='Data Entry Needs'!$C$56&Calculation!$M$22 ->  | AJ270: =Calculation!$L$22 ->  | AK270: =Calculation!$L$22 ->  | AL270: =Calculation!$L$22 ->  | AM270: =Calculation!$L$22 ->  | AN270: =Calculation!$L$22 -> 
AI272: Chart2 - Gasolina
AJ273: 5 ML | AK273: 25 ML | AL273: 50 ML | AM273: 100 ML
AI274: Costo Maximo | AJ274: =(AJ$241/AJ$265)*(1+$C$1)*$AM$254 ->  | AK274: =(AK$241/AK$265)*(1+$C$1)*$AM$254 ->  | AL274: =(AL$241/AL$265)*(1+$C$1)*$AM$254 ->  | AM274: =(AM$241/AM$265)*(1+$C$1)*$AM$254 -> 
AH275: =IF($C$1<=0,FALSE,TRUE) -> FALSE | AI275: Costo Minimo | AJ275: =IF($AH$275,(AJ$241/AJ$265)*(1-$C$1)*$AM$254,"") ->  | AK275: =IF($AH$275,(AK$241/AK$265)*(1-$C$1)*$AM$254,"") ->  | AL275: =IF($AH$275,(AL$241/AL$265)*(1-$C$1)*$AM$254,"") ->  | AM275: =IF($AH$275,(AM$241/AM$265)*(1-$C$1)*$AM$254,"") -> 
AI276: ='Data Entry Needs'!$F$56&Calculation!$M$21 ->  | AJ276: =Calculation!$L$21 ->  | AK276: =Calculation!$L$21 ->  | AL276: =Calculation!$L$21 ->  | AM276: =Calculation!$L$21 ->  | AN276: =Calculation!$L$21 -> 
AI279: Chart3 - Inversión
AJ280: 5 ML | AK280: 25 ML | AL280: 50 ML | AM280: 100 ML
AI281: Inversión de Capital | AJ281: =AJ245 ->  | AK281: =AK245 ->  | AL281: =AL245 ->  | AM281: =AM245 -> 
AI283: Chart4 - Composición Costos
AJ284: 5 ML | AK284: 25 ML | AL284: 50 ML | AM284: 100 ML
AI285: =title329 -> Feedstocks | AJ285: =(AJ$234+AJ$235)/AJ$241 ->  | AK285: =(AK$234+AK$235)/AK$241 ->  | AL285: =(AL$234+AL$235)/AL$241 ->  | AM285: =(AM$234+AM$235)/AM$241 -> 
AI286: =title55 -> Services | AJ286: =(AJ$236)/AJ$241 ->  | AK286: =(AK$236)/AK$241 ->  | AL286: =(AL$236)/AL$241 ->  | AM286: =(AM$236)/AM$241 -> 
AI287: =title57 -> Labour | AJ287: =(AJ$237)/AJ$241 ->  | AK287: =(AK$237)/AK$241 ->  | AL287: =(AL$237)/AL$241 ->  | AM287: =(AM$237)/AM$241 -> 
AI288: =title103 -> Logistics | AJ288: =(AJ$238)/AJ$241 ->  | AK288: =(AK$238)/AK$241 ->  | AL288: =(AL$238)/AL$241 ->  | AM288: =(AM$238)/AM$241 -> 
AI289: =title62 -> Other costs | AJ289: =(AJ$239)/AJ$241 ->  | AK289: =(AK$239)/AK$241 ->  | AL289: =(AL$239)/AL$241 ->  | AM289: =(AM$239)/AM$241 -> 
AI290: =title104 -> Depreciation and Maintenance | AJ290: =(AJ$240)/AJ$241 ->  | AK290: =(AK$240)/AK$241 ->  | AL290: =(AL$240)/AL$241 ->  | AM290: =(AM$240)/AM$241 -> 
AI293: Chart5 - Comparación de Supply
AJ295: 5 ML | AK295: 25 ML | AL295: 50 ML | AM295: 100 ML
AI296: =title106 -> Molasses Demand | AJ296: =INDIRECT("'production cost'!"&AJ$243&$AO296) -> -4753012.048 | AK296: =INDIRECT("'production cost'!"&AK$243&$AO296) -> -23765060.24 | AL296: =INDIRECT("'production cost'!"&AL$243&$AO296) -> -47530120.48 | AM296: =INDIRECT("'production cost'!"&AM$243&$AO296) -> -95060240.96 | AO296: 15
AI297: =title107 -> Molasses Availability | AJ297: ='Data Entry Needs'!$D$23 -> 0 | AK297: ='Data Entry Needs'!$D$23 -> 0 | AL297: ='Data Entry Needs'!$D$23 -> 0 | AM297: ='Data Entry Needs'!$D$23 -> 0 | AN297: ='Data Entry Needs'!$D$23 -> 0
AI299: Chart6 - Demanda Etanol Cubierta con Maxima Producción
AJ300: E5 | AK300: E10 | AL300: E15 | AM300: E20 | AN300: E100
AJ301: 1 | AK301: 1 | AL301: 1 | AM301: 1 | AN301: 1
AI302: Demanda Sumninstrada | AJ302: =IF($AJ$257/(AJ$262-$AJ$259)<0,1,$AJ$257/(AJ$262-$AJ$259)) ->  | AK302: =IF($AJ$257/(AK$262-$AJ$259)<0,1,$AJ$257/(AK$262-$AJ$259)) ->  | AL302: =IF($AJ$257/(AL$262-$AJ$259)<0,1,$AJ$257/(AL$262-$AJ$259)) ->  | AM302: =IF($AJ$257/(AM$262-$AJ$259)<0,1,$AJ$257/(AM$262-$AJ$259)) ->  | AN302: =IF($AJ$257/(AN$262-$AJ$259)<0,1,$AJ$257/(AN$262-$AJ$259)) -> 
AI304: Chart7 - Empleos Generados
AJ305: 5 ML | AK305: 25 ML | AL305: 50 ML | AM305: 100 ML
AI306: Empleos Generados | AJ306: =AJ251 -> 23 | AK306: =AK251 -> 26 | AL306: =AL251 -> 49 | AM306: =AM251 -> 98
AI307: Fijos | AJ307: =INDIRECT("'production cost'!"&AJ$243&$AN307)+INDIRECT("'production cost'!"&AJ$243&$AO307) -> 23 | AK307: =INDIRECT("'production cost'!"&AK$243&$AN307)+INDIRECT("'production cost'!"&AK$243&$AO307) -> 26 | AL307: =INDIRECT("'production cost'!"&AL$243&$AN307)+INDIRECT("'production cost'!"&AL$243&$AO307) -> 49 | AM307: =INDIRECT("'production cost'!"&AM$243&$AN307)+INDIRECT("'production cost'!"&AM$243&$AO307) -> 98 | AN307: 32 | AO307: 34
AI308: Zafra | AJ308: =INDIRECT("'production cost'!"&AJ$243&$AN308) -> 0 | AK308: =INDIRECT("'production cost'!"&AK$243&$AN308) -> 0 | AL308: =INDIRECT("'production cost'!"&AL$243&$AN308) -> 0 | AM308: =INDIRECT("'production cost'!"&AM$243&$AN308) -> 0 | AN308: 33
AI310: Chart8 - VPB | AJ310: FA5ML! | AK310: FA25ML! | AL310: FA50ML! | AM310: FA100ML!
AJ311: 5 ML | AK311: 25 ML | AL311: 50 ML | AM311: 100 ML
AI312: VAN | AJ312: =INDIRECT(AJ$310&"$C$79") ->  | AK312: =INDIRECT(AK$310&"$C$79") ->  | AL312: =INDIRECT(AL$310&"$C$79") ->  | AM312: =INDIRECT(AM$310&"$C$79") -> 
AI314: Chart9 - ROI | AJ314: FA5ML! | AK314: FA25ML! | AL314: FA50ML! | AM314: FA100ML!
AJ315: 5 ML | AK315: 25 ML | AL315: 50 ML | AM315: 100 ML
AI316: ROI | AJ316: =INDIRECT(AJ$310&"$C$80") ->  | AK316: =INDIRECT(AK$310&"$C$80") ->  | AL316: =INDIRECT(AL$310&"$C$80") ->  | AM316: =INDIRECT(AM$310&"$C$80") -> 

Sheet Sensitivity Sugar-EtOH
C3: =title115 -> SENSITIVITY ANALYSIS SUGAR/ETHANOL FRACTION
C6: =title116 -> Define Parameters for Products in Competition
C7: =title117 -> Sugar | G7: =title121 -> Ethanol
C8: =title118 -> Sugar Selling Price | E8: =title120 -> USD/kg Sugar | G8: =title122 -> Ethanol Selling Price | H8: =+'Data Entry Needs'!$D$56 -> 0 | I8: USD/l
C9: =title119 -> Sugar Production Cost | E9: =title120 -> USD/kg Sugar | G9: =title123 -> Ethanol Production Level | H9: Select
AD52: =title36 -> Select
AD53: 5 ML | AE53: =+'PRODUCTION COST'!$G$74 -> 
AD54: 25 ML | AE54: =+'PRODUCTION COST'!$I$74 -> 
AD55: 50 ML | AE55: =+'PRODUCTION COST'!$K$74 -> 
AD56: 100 ML | AE56: =+'PRODUCTION COST'!$M$74 -> 
AL61: http://iopscience.iop.org/1748-9326/4/4/044005/fulltext/
AD62: Initial Sugar | AE62: =+'Data Entry Needs'!$D$23 -> 0 | AF62: t | AH62: Ps | AI62: =+$D$8 -> 0 | AJ62: USD/kg raw sugar | AL62: http://www.ft.com/cms/s/0/7e4e89f4-9eab-11e1-a767-00144feabdc0.html#axzz364NxRGTe
AD63: nj | AE63: =+Database!$C$2 -> 0.1325 | AF63: t recover sugar/kg cane | AH63: Pe | AI63: ='Data Entry Needs'!$D$56/0.789 -> 0 | AJ63: USD/kg ethanol
AD64: ns | AE64: 0.8 | AF64: t sucrose/t recovere sugar | AH64: C raw sugar | AI64: =+$D$9 -> 0 | AJ64: USD/kg raw sugar | AL64: http://www.ft.com/cms/s/0/7e4e89f4-9eab-11e1-a767-00144feabdc0.html#axzz364NxRGTe
AD65: ne | AE65: 0.51 | AF65: t EtOH/t sucrose | AH65: CEtOHmolasses | AI65: =VLOOKUP($H$9,$AD$53:$AE$56,2,FALSE)/0.789 ->  | AJ65: USD/kg EtOH | AK65: From molasses | AL65: http://www.fao.org/bioenergy/21033-0beadac706b22b10c59e72c747bea1c05.pdf
AH66: CEtOHsugar | AI66: =0.27/0.789 -> 0.3422053232 | AJ66: USD/kg EtOH | AK66: From juice | AL66: http://www.fao.org/bioenergy/21033-0beadac706b22b10c59e72c747bea1c05.pdf
AD67: x | AE67: Sugar (kg) | AF67: Ethanol (kg EtOH) | AG67: Income Sugar | AH67: Income Ethanol | AI67: =title124 -> Profits from Sugar Sales | AJ67: =title125 -> Profis from Ethanol Sales | AL67: Margen de ganancia por tonelada de caña azúcar
AD68: 0 | AE68: =+$AE$62*AD68*$AE$64*$AE$63 -> 0 | AF68: =+$AE$62*$AE$65*$AE$63*(1-AD68*$AE$64) -> 0 | AG68: =+AE68*$AI$62 -> 0 | AH68: =+AF68*$AI$63 -> 0 | AI68: 0 | AJ68: =+AF68*($AI$63-$AI$66) -> 0 | AK68: From Juice | AL68: =+AI68+AJ68 -> 0
AD69: 0.1 | AE69: 0 | AF69: 0 | AG69: 0 | AH69: 0 | AI69: =+AE69*($AI$62-$AI$64) -> 0 | AJ69: =+AF69*($AI$63-$AI$65) ->  | AK69: From molasses and Juice | AL69: =+AI69+AJ69 -> 
AD70: 0.2 | AE70: 0 | AF70: 0 | AG70: 0 | AH70: 0 | AI70: 0 | AK70: From molasses
AD71: 0.3 | AE71: 0 | AF71: 0 | AG71: 0 | AH71: 0 | AI71: 0 | AK71: From molasses
AD72: 0.4 | AE72: 0 | AF72: 0 | AG72: 0 | AH72: 0 | AI72: 0 | AK72: From molasses
AD73: 0.5 | AE73: 0 | AF73: 0 | AG73: 0 | AH73: 0 | AI73: 0 | AK73: From molasses
AD74: 0.6 | AE74: 0 | AF74: 0 | AG74: 0 | AH74: 0 | AI74: 0 | AK74: From molasses
AD75: 0.7 | AE75: 0 | AF75: 0 | AG75: 0 | AH75: 0 | AI75: 0 | AK75: From molasses
AD76: 0.8 | AE76: 0 | AF76: 0 | AG76: 0 | AH76: 0 | AI76: 0 | AK76: From molasses
AD77: 0.9 | AE77: 0 | AF77: 0 | AG77: 0 | AH77: 0 | AI77: 0 | AK77: From molasses
AD78: 1 | AE78: 0 | AF78: 0 | AG78: 0 | AH78: 0 | AI78: 0 | AK78: From molasses | AL78: =+AI78+AJ78 -> 

Sheet COGENERATION
C3: =title133 -> RAPID SELECTION COGENERATION SYSTEMS
C5: =title134 -> Selected Fuel | D5: Select
C6: =title135 -> Energy Potential (MJ/kg) | D6: =IFERROR(VLOOKUP($D$5,$AL$43:$AM$56,2,FALSE),0) -> 0 | E6: =title136 -> Fuel Price (USD/kg)
C8: =title137 -> Technology Description
C9: =title138 -> This technology uses a boiler to produce high pressure steam, which is then used to generate electricity. The low pressure steam obtained is used in the process. | E9: =title139 -> Total Thermal Efficiency | G9: 0.53
E10: =title140 -> Electrical Efficiency | G10: 0.2
E11: =title141 -> Operating hours per year | G11: ='Data Entry Needs'!$H$38*24 -> 0
C13: =title142 -> Ethanol Plant Energy Demand
D14: 5 ML | E14: 25 ML | F14: 50 ML | G14: 100 ML
C15: =title143 -> Heat Demand (1000 MJ) | D15: =$AM$35*Calculation!C$11/1000 -> 39937.95582 | E15: =$AM$35*Calculation!D$11/1000 -> 199689.7791 | F15: =$AM$35*Calculation!E$11/1000 -> 399379.5582 | G15: =$AM$35*Calculation!F$11/1000 -> 798759.1164
C16: =title144 -> Electricity Demand (kWh) | D16: =Calculation!C10 -> 250000 | E16: =Calculation!D10 -> 1250000 | F16: =Calculation!E10 -> 2500000 | G16: =Calculation!F10 -> 5000000
C18: =title145 -> Cogeneration Systems Features | AL18: Energia Requerida (MJ) | AM18: =$D$15*1000*(1-($G$10/0.75))/($G$9-$G$10) -> 88751012.93 | AN18: =$E$15*1000*(1-($G$10/0.75))/($G$9-$G$10) -> 443755064.7 | AO18: =$F$15*1000*(1-($G$10/0.75))/($G$9-$G$10) -> 887510129.3 | AP18: =$G$15*1000*(1-($G$10/0.75))/($G$9-$G$10) -> 1775020259
D19: 5 ML | E19: 25 ML | F19: 50 ML | G19: 100 ML
C20: =title146 -> Fuel Demand (t Fuel/year) | D20: =AM$18/$D$6/1000 ->  | E20: =AN$18/$D$6/1000 ->  | F20: =AO$18/$D$6/1000 ->  | G20: =AP$18/$D$6/1000 ->  | AL20: Costo Combustible | AM20: =($G$6/1000)*D$20 ->  | AN20: =($G$6/1000)*E$20 ->  | AO20: =($G$6/1000)*F$20 ->  | AP20: =($G$6/1000)*G$20 -> 
C21: =title147 -> Electricity Produced (kWh/year) | D21: =(AM$18*$G$9-D$15*1000)/3.6 -> 1972244.732 | E21: =(AN$18*$G$9-E$15*1000)/3.6 -> 9861223.659 | F21: =(AO$18*$G$9-F$15*1000)/3.6 -> 19722447.32 | G21: =(AP$18*$G$9-G$15*1000)/3.6 -> 39444894.64
C22: =title148 -> Power Plant Capacity (kW) | D22: =D$21/$G$11 ->  | E22: =E$21/$G$11 ->  | F22: =F$21/$G$11 ->  | G22: =G$21/$G$11 -> 
C24: =title149 -> Required Investment in Cogeneration Systems
D25: 5 ML | E25: 25 ML | F25: 50 ML | G25: 100 ML
C26: =title150 -> Equipment | D26: =(((Calculation!C$11*1000/COGENERATION!$G$11)*$AW$40)^0.95+($AX$40*D$22)^0.95)*('Data Entry Needs'!$D$46/125) ->  | E26: =(((Calculation!D$11*1000/COGENERATION!$G$11)*$AW$40)^0.95+($AX$40*E$22)^0.95)*('Data Entry Needs'!$D$46/125) ->  | F26: =(((Calculation!E$11*1000/COGENERATION!$G$11)*$AW$40)^0.95+($AX$40*F$22)^0.95)*('Data Entry Needs'!$D$46/125) ->  | G26: =(((Calculation!F$11*1000/COGENERATION!$G$11)*$AW$40)^0.95+($AX$40*G$22)^0.95)*('Data Entry Needs'!$D$46/125) -> 
C27: =title151 -> Fixed Costs O&M (USD/year) | D27: =D$22*$AU$40 ->  | E27: =E$22*$AU$40 ->  | F27: =F$22*$AU$40 ->  | G27: =G$22*$AU$40 -> 
C28: =title152 -> Variable Costs O&M (USD/year) | D28: =D$22*$AV$40 ->  | E28: =E$22*$AV$40 ->  | F28: =F$22*$AV$40 ->  | G28: =G$22*$AV$40 -> 
AL35: Steam @10 Bar | AM35: 2013.56 | AN35: MJ/t
AL37: Output calculated usin formulas presented in: | AN37: http://www.epa.gov/chp/basic/methods.html
AL38: Cogeneration | AO38: Number | AP38: Thermal Efficiency | AQ38: Electric efficiency | AR38: Ref | AT38: Investment (USD/kW) | AU38: Fixed O&M Cost (USD/Kw/YEAR) | AV38: Variable O&M Cost (USD/Kw/YEAR) | AW38: Boiler and Equipment (USD/kg steam/h) | AX38: Turbine (USD/kW) | AY38: Reference year | AZ38: Ref
AL39: =title36 -> Select | AM39: Technolgy | AN39: Product
AL40: Semi-Avanzada | AM40: Back-pressure Steam Turbine | AN40: Heat and Power | AO40: 2 | AP40: 0.53 | AQ40: 0.2 | AR40: http://almondtree.com/TechTalk/RefMatl/Steam%20Turbines.pdf | AT40: n/a | AU40: =(0.25)*8000/100 -> 20 | AV40: =(0.25+2.5)*8000/100 -> 220 | AW40: =111.165223665224+110.462428517984 -> 221.6276522 | AX40: 561.1111111 | AY40: 2004 | AZ40: http://www.understandingchp.com/appguide/Chapters/Chap6/6-8_Rules_of_Thumb_Costs.htm
AL42: Fuel | AM42: Calorific Value (MJ/Kg)
AL43: =title36 -> Select
AL44: =title153 -> Bagasse | AM44: 16.1820485
AL45: =title154 -> Gasoline | AM45: 44.3
AL46: =title155 -> Diesel | AM46: 43
AL47: =title156 -> Used Oils | AM47: 40.2
AL48: =title157 -> LPG | AM48: 47.3
AL49: =title158 -> Natural Gas | AM49: 48
AL50: =title159 -> Butane | AM50: 45.27677204
AL51: =title160 -> Propane | AM51: 46.29553566
AL52: =title161 -> Methanol | AM52: 20.09356275
AL53: =title121 -> Ethanol | AM53: 26.95163409
AL54: =title162 -> Biodiesel | AM54: =35.7/0.88 -> 40.56818182
AL55: =title163 -> Coal | AM55: 22.732203
AL56: =title164 -> Firewood | AM56: 19.55106924

Sheet PRODUCTION COST
C3: =title165 -> DETAILED BUDGET FOR THE PRODUCTION OF ETHANOL FROM SUGARCANE MOLASSES
C7: =title166 -> Details of production costs
F9: =title167 -> Capacities (Millions of liters per year)
F10: 5 | H10: 25 | J10: 50 | L10: 100
F11: =title141 -> Operating hours per year | G11: ='Data Entry Needs'!$H$38*24 -> 0 | H11: =title141 -> Operating hours per year | I11: ='Data Entry Needs'!$H$38*24 -> 0 | J11: =title141 -> Operating hours per year | K11: ='Data Entry Needs'!$H$38*24 -> 0 | L11: =title141 -> Operating hours per year | M11: ='Data Entry Needs'!$H$38*24 -> 0
C13: =title170 -> Feedstock | D13: =title52 -> Unit | E13: =title168 -> Unit Price | F13: =title169 -> Quantity | G13: =title332 -> Total | H13: =title169 -> Quantity | I13: =title332 -> Total | J13: =title169 -> Quantity | K13: =title332 -> Total | L13: =title169 -> Quantity | M13: =title332 -> Total
E14: (USD) | F14: ="("&title52&")" -> (Unit) | G14: =title77 -> (USD/year) | H14: ="("&title52&")" -> (Unit) | I14: =title77 -> (USD/year) | J14: ="("&title52&")" -> (Unit) | K14: =title77 -> (USD/year) | L14: ="("&title52&")" -> (Unit) | M14: =title77 -> (USD/year)
C15: =title171 -> Molasses | D15: t | E15: ='Data Entry Needs'!D25 -> 0 | F15: =Calculation!C$3 -> -4753012.048 | G15: =$E$15*F15 -> 0 | H15: =Calculation!D$3 -> -23765060.24 | I15: =$E$15*H15 -> 0 | J15: =Calculation!E$3 -> -47530120.48 | K15: =$E$15*J15 -> 0 | L15: =Calculation!F$3 -> -95060240.96 | M15: =$E$15*L15 -> 0
B16: =IF('Data Entry Needs'!$D$58=title40,TRUE,FALSE) -> TRUE | C16: =title333 -> Cogeneration fuel | D16: t | E16: =COGENERATION!$G$6 -> 0 | F16: =IF($B$16,COGENERATION!$D$20,0) ->  | G16: =$E$16*F16 ->  | H16: =IF($B$16,COGENERATION!$E$20,0) ->  | I16: =$E$16*H16 ->  | J16: =IF($B$16,COGENERATION!$F$20,0) ->  | K16: =$E$16*J16 ->  | L16: =IF($B$16,COGENERATION!$G$20,0) ->  | M16: =$E$16*L16 -> 
C17: =title102 -> Other Chemical Inputs | D17: =title52 -> Unit | E17: =title168 -> Unit Price | F17: =title169 -> Quantity | G17: =title332 -> Total | H17: =title169 -> Quantity | I17: =title332 -> Total | J17: =title169 -> Quantity | K17: =title332 -> Total | L17: =title169 -> Quantity | M17: =title332 -> Total
E18: (USD) | F18: ="("&title52&")" -> (Unit) | G18: =title77 -> (USD/year) | H18: ="("&title52&")" -> (Unit) | I18: =title77 -> (USD/year) | J18: ="("&title52&")" -> (Unit) | K18: =title77 -> (USD/year) | L18: ="("&title52&")" -> (Unit) | M18: =title77 -> (USD/year)
C19: =title173 -> Lime | D19: =title47 -> t/year | E19: ='Data Entry Needs'!H31 -> 0 | F19: =Calculation!$C5 -> 5.2107 | G19: =F19*$E19 -> 0 | H19: =Calculation!$D5 -> 5.2107 | I19: =H19*$E19 -> 0 | J19: =Calculation!$E5 -> 5.2107 | K19: =J19*$E19 -> 0 | L19: =Calculation!$F5 -> 5.2107 | M19: =L19*$E19 -> 0
C20: =title174 -> Sulfuric acid | D20: =title47 -> t/year | E20: ='Data Entry Needs'!H30 -> 0 | F20: =Calculation!$C6 -> 6.6092 | G20: =F20*$E20 -> 0 | H20: =Calculation!$D6 -> 6.6092 | I20: 0 | J20: =Calculation!$E6 -> 6.6092 | K20: =J20*$E20 -> 0 | L20: =Calculation!$F6 -> 6.6092 | M20: =L20*$E20 -> 0
C21: =title14 -> Water | D21: =title330 -> m^3/year | E21: ='Data Entry Needs'!D35 -> 0 | F21: =Calculation!$C7 -> -1060.8 | G21: 0 | H21: =Calculation!$D7 -> -1060.8 | I21: 0 | J21: =Calculation!$E7 -> -1060.8 | K21: =J21*$E21 -> 0 | L21: =Calculation!$F7 -> -1060.8 | M21: =L21*$E21 -> 0
C22: =title50 -> Ammonia | D22: =title47 -> t/year | E22: ='Data Entry Needs'!D30 -> 0 | F22: =Calculation!$C8 -> 1.7744 | G22: 0 | H22: =Calculation!$D8 -> 1.7744 | I22: 0 | J22: =Calculation!$E8 -> 1.7744 | K22: =J22*$E22 -> 0 | L22: =Calculation!$F8 -> 1.7744 | M22: =L22*$E22 -> 0
C23: =title51 -> Yeast | D23: =title47 -> t/year | E23: ='Data Entry Needs'!$D$31 -> 0 | F23: =Calculation!$C9 -> 0.30096 | G23: 0 | H23: =Calculation!$D9 -> 0.30096 | I23: 0 | J23: =Calculation!$E9 -> 0.30096 | K23: =J23*$E23 -> 0 | L23: =Calculation!$F9 -> 0.30096 | M23: =L23*$E23 -> 0
C24: =title175 -> Energy inputs | D24: =title52 -> Unit | E24: =title168 -> Unit Price | F24: =title169 -> Quantity | G24: =title332 -> Total | H24: =title169 -> Quantity | I24: =title332 -> Total | J24: =title169 -> Quantity | K24: =title332 -> Total | L24: =title169 -> Quantity | M24: =title332 -> Total
E25: (USD) | F25: ="("&title52&")" -> (Unit) | G25: =title77 -> (USD/year) | H25: ="("&title52&")" -> (Unit) | I25: =title77 -> (USD/year) | J25: ="("&title52&")" -> (Unit) | K25: =title77 -> (USD/year) | L25: ="("&title52&")" -> (Unit) | M25: =title77 -> (USD/year)
B26: =IF('Data Entry Needs'!$D$58=title40,FALSE,TRUE) -> FALSE | C26: =title19 -> Electricity | D26: =title278 -> kWh/year | E26: ='Data Entry Needs'!H34 -> 0 | F26: =IF($B26,Calculation!$C10,0) -> 0 | G26: =F26*$E26 -> 0 | H26: =IF($B26,Calculation!$D10,0) -> 0 | I26: =H26*$E26 -> 0 | J26: =IF($B26,Calculation!$E10,0) -> 0 | K26: =J26*$E26 -> 0 | L26: =IF($B26,Calculation!$F10,0) -> 0 | M26: =L26*$E26 -> 0
B27: =IF('Data Entry Needs'!$D$58=title40,FALSE,TRUE) -> FALSE | C27: =title56 -> Steam | D27: =title47 -> t/year | E27: ='Data Entry Needs'!$D$34 -> 0 | F27: =IF($B27,Calculation!$C11,0) -> 0 | G27: =F27*$E27 -> 0 | H27: =IF($B27,Calculation!$D11,0) -> 0 | I27: =H27*$E27 -> 0 | J27: =IF($B27,Calculation!$E11,0) -> 0 | K27: =J27*$E27 -> 0 | L27: =IF($B27,Calculation!$F11,0) -> 0 | M27: =L27*$E27 -> 0
C28: =title334 -> Subtotal | G28: =SUM(G19:G27) -> 0 | I28: =SUM(I19:I27) -> 0 | K28: =SUM(K19:K27) -> 0 | M28: =SUM(M19:M27) -> 0
C30: =title176 -> Labour and various costs | D30: =title52 -> Unit | E30: =title168 -> Unit Price | F30: =title169 -> Quantity | G30: =title332 -> Total | H30: =title169 -> Quantity | I30: =title332 -> Total | J30: =title169 -> Quantity | K30: =title332 -> Total | L30: =title169 -> Quantity | M30: =title332 -> Total
E31: (USD/h) | F31: ="("&title52&")" -> (Unit) | G31: =title77 -> (USD/year) | H31: ="("&title52&")" -> (Unit) | I31: =title77 -> (USD/year) | J31: ="("&title52&")" -> (Unit) | K31: =title77 -> (USD/year) | L31: ="("&title52&")" -> (Unit) | M31: =title77 -> (USD/year)
C32: =title177 -> Unskilled workers - Fixed | D32: =title331 -> # workers | E32: ='Data Entry Needs'!$D$38 -> 0 | F32: =+IF((F10/3.785)<6,6,ROUND(F10/3.785,0))*3 -> 18 | G32: =+E32*F32*$G$11 -> 0 | H32: =+IF((H10/3.785)<6,6,ROUND(H10/3.785,0))*3 -> 21 | I32: =+$E32*H32*$I$11 -> 0 | J32: =+IF((J10/3.785)<6,6,ROUND(J10/3.785,0))*3 -> 39 | K32: =+$E32*J32*$K$11 -> 0 | L32: =+IF((L10/3.785)<6,6,ROUND(L10/3.785,0))*3 -> 78 | M32: =+$E32*L32*$M$11 -> 0
C33: =title178 -> Unskilled workers - Zafra (Sugarcane Harvest) | D33: =title331 -> # workers | E33: ='Data Entry Needs'!$D$38 -> 0 | F33: =IF(OR('Data Entry Needs'!$H$39="",'Data Entry Needs'!$H$39=" "),0,IF((F10/4)<3,3,ROUND(F10/4,0))*2) -> 0 | G33: =+E33*F33*$G$11 -> 0 | H33: =IF(OR('Data Entry Needs'!$H$39="",'Data Entry Needs'!$H$39=" "),0,IF((H10/4)<3,3,ROUND(H10/4,0))*2) -> 0 | I33: =+$E33*H33*$I$11 -> 0 | J33: =IF(OR('Data Entry Needs'!$H$39="",'Data Entry Needs'!$H$39=" "),0,IF((J10/4)<3,3,ROUND(J10/4,0))*2) -> 0 | K33: =+$E33*J33*$K$11 -> 0 | L33: =IF(OR('Data Entry Needs'!$H$39="",'Data Entry Needs'!$H$39=" "),0,IF((L10/4)<3,3,ROUND(L10/4,0))*2) -> 0 | M33: =+$E33*L33*$M$11 -> 0
C34: =title179 -> Skilled workers | D34: =title331 -> # workers | E34: ='Data Entry Needs'!$D$39 -> 0 | F34: =+ROUND(F32/4,0) -> 5 | G34: =+E34*F34*$G$11 -> 0 | H34: =+ROUND(H32/4,0) -> 5 | I34: =+$E34*H34*$I$11 -> 0 | J34: =+ROUND(J32/4,0) -> 10 | K34: =+$E34*J34*$K$11 -> 0 | L34: =+ROUND(L32/4,0) -> 20 | M34: =+$E34*L34*$M$11 -> 0
C35: =title180 -> Miscellaneous Costs | F35: ='Data Entry Needs'!$H$43 -> 0 | G35: =+F35*SUM(G32:G34) -> 0 | H35: ='Data Entry Needs'!$H$43 -> 0 | I35: =+H35*SUM(I32:I34) -> 0 | J35: ='Data Entry Needs'!$H$43 -> 0 | K35: =+J35*SUM(K32:K34) -> 0 | L35: ='Data Entry Needs'!$H$43 -> 0 | M35: =+L35*SUM(M32:M34) -> 0
C36: =title334 -> Subtotal | G36: =SUM(G32:G35) -> 0 | I36: =SUM(I32:I35) -> 0 | K36: =SUM(K32:K35) -> 0 | M36: =SUM(M32:M35) -> 0
C38: =title74 -> Transport | D38: =title52 -> Unit | E38: =title168 -> Unit Price | F38: =title169 -> Quantity | G38: =title332 -> Total | H38: =title169 -> Quantity | I38: =title332 -> Total | J38: =title169 -> Quantity | K38: =title332 -> Total | L38: =title169 -> Quantity | M38: =title332 -> Total
E39: =title335 -> (USD/t/unity) | F39: ="("&title52&")" -> (Unit) | G39: =title77 -> (USD/year) | H39: ="("&title52&")" -> (Unit) | I39: =title77 -> (USD/year) | J39: ="("&title52&")" -> (Unit) | K39: =title77 -> (USD/year) | L39: ="("&title52&")" -> (Unit) | M39: =title77 -> (USD/year)
C40: =title181 -> Feedstock (farm to plant) | D40: km | E40: ='Data Entry Needs'!$H$49 -> 0 | F40: ='Data Entry Needs'!$H$50 -> 0 | G40: =$E$40*F40*F15 -> 0 | H40: ='Data Entry Needs'!$H$50 -> 0 | I40: =$E$40*H40*H15 -> 0 | J40: ='Data Entry Needs'!$H$50 -> 0 | K40: =$E$40*J40*J15 -> 0 | L40: ='Data Entry Needs'!$H$50 -> 0 | M40: =$E$40*L40*L15 -> 0
C41: =title334 -> Subtotal | G41: =SUM(G40:G40) -> 0 | I41: =SUM(I40:I40) -> 0 | K41: =SUM(K40:K40) -> 0 | M41: =SUM(M40:M40) -> 0
F42: d | H42: e | J42: f | L42: g
C43: =title182 -> Investment | D43: =title52 -> Unit | E43: =title90 -> year | F43: =title332 -> Total | G43: =title259 -> Depreciation | H43: =title332 -> Total | I43: =title259 -> Depreciation | J43: =title332 -> Total | K43: =title259 -> Depreciation | L43: =title332 -> Total | M43: =title259 -> Depreciation
F44: (USD) | G44: =title77 -> (USD/year) | H44: (USD) | I44: =title77 -> (USD/year) | J44: (USD) | K44: =title77 -> (USD/year) | L44: (USD) | M44: =title77 -> (USD/year)
B45: =IF('Data Entry Needs'!$D$58=title40,TRUE,FALSE) -> TRUE | C45: =title183 -> Equipment | D45: USD | E45: 20 | F45: =Calculation!$C15*('Data Entry Needs'!$D$46/146)+IF($B45,INDIRECT("'Cogeneration'!"&$F$42&26),0) ->  | G45: =F45/$E45 ->  | H45: =Calculation!$D15*('Data Entry Needs'!$D$46/146)+IF($B45,INDIRECT("'Cogeneration'!"&$H$42&26),0) ->  | I45: =H45/$E45 ->  | J45: =Calculation!$E15*('Data Entry Needs'!$D$46/146)+IF($B45,INDIRECT("'Cogeneration'!"&$J$42&26),0) ->  | K45: =J45/$E45 ->  | L45: =Calculation!$F15*('Data Entry Needs'!$D$46/146)+IF($B45,INDIRECT("'Cogeneration'!"&$L$42&26),0) ->  | M45: =L45/$E45 -> 
C46: =title184 -> Construction | D46: USD | E46: =+E45/2 -> 10 | F46: =Calculation!$C16*('Data Entry Needs'!$D$46/146)+IF($B45,INDIRECT("'Cogeneration'!"&$F$42&27),0) ->  | G46: =F46/$E46 ->  | H46: =Calculation!$D16*('Data Entry Needs'!$D$46/146)+IF($B45,INDIRECT("'Cogeneration'!"&$H$42&27),0) ->  | J46: =Calculation!$E16*('Data Entry Needs'!$D$46/146)+IF($B45,INDIRECT("'Cogeneration'!"&$J$42&27),0) ->  | K46: =J46/$E46 ->  | L46: =Calculation!$F16*('Data Entry Needs'!$D$46/146)+IF($B45,INDIRECT("'Cogeneration'!"&$L$42&27),0) ->  | M46: =L46/$E46 -> 
C47: =title185 -> Installation cost | D47: USD | E47: =+E45/2 -> 10 | F47: =Calculation!$C17*('Data Entry Needs'!$D$46/146)+IF($B45,INDIRECT("'Cogeneration'!"&$F$42&28),0) ->  | H47: =Calculation!$D17*('Data Entry Needs'!$D$46/146)+IF($B45,INDIRECT("'Cogeneration'!"&$H$42&27),0) ->  | J47: =Calculation!$E17*('Data Entry Needs'!$D$46/146)+IF($B45,INDIRECT("'Cogeneration'!"&$J$42&28),0) ->  | K47: =J47/$E47 ->  | L47: =Calculation!$F17*('Data Entry Needs'!$D$46/146)+IF($B45,INDIRECT("'Cogeneration'!"&$L$42&28),0) ->  | M47: =L47/$E47 -> 
C48: =title186 -> Total Investment | F48: =SUM(F45:F47) ->  | H48: =SUM(H45:H47) ->  | J48: =SUM(J45:J47) ->  | L48: =SUM(L45:L47) -> 
F49: =title261 -> Total depreciation (USD) | G49: =SUM(G45:G47) ->  | H49: =title261 -> Total depreciation (USD) | I49: =SUM(I45:I47) ->  | J49: =title261 -> Total depreciation (USD) | K49: =SUM(K45:K47) ->  | L49: =title261 -> Total depreciation (USD) | M49: =SUM(M45:M47) -> 
C50: =title187 -> Maintenance costs | E50: ='Data Entry Needs'!D42 -> 0 | G50: =+$E$50*G49 ->  | I50: =+$E$50*I49 ->  | K50: =+$E$50*K49 ->  | M50: =+$E$50*M49 -> 
C51: =title334 -> Subtotal | G51: =SUM(G49:G50) ->  | I51: =SUM(I49:I50) ->  | K51: =SUM(K49:K50) ->  | M51: =SUM(M49:M50) -> 
C53: =title70 -> Storage | D53: =title52 -> Unit | E53: =title168 -> Unit Price | F53: =title169 -> Quantity | G53: =title332 -> Total | H53: =title169 -> Quantity | I53: =title332 -> Total | J53: =title169 -> Quantity | K53: =title332 -> Total | L53: =title169 -> Quantity | M53: =title332 -> Total
D54: (%) | E54: (USD) | F54: ="("&title52&")" -> (Unit) | G54: =title77 -> (USD/year) | H54: ="("&title52&")" -> (Unit) | I54: =title77 -> (USD/year) | J54: ="("&title52&")" -> (Unit) | K54: =title77 -> (USD/year) | L54: ="("&title52&")" -> (Unit) | M54: =title77 -> (USD/year)
C55: =title188 -> Feedstock (molasses) | D55: t | E55: ='Data Entry Needs'!$D$49 -> 0 | F55: =STORAGE!$F$38 -> 0 | G55: =$E$55*F55 -> 0 | H55: =STORAGE!$I$38 -> 0 | I55: =$E$55*H55 -> 0 | J55: =STORAGE!$L$38 -> 0 | K55: =$E$55*J55 -> 0 | L55: =STORAGE!$O$38 -> 0 | M55: =$E$55*L55 -> 0
C56: =title189 -> Ethanol product | D56: =title336 -> liter | E56: ='Data Entry Needs'!$D$50 -> 0 | F56: =F10*1000000*'Data Entry Needs'!$D$51 -> 0 | G56: =F56*$E$56 -> 0 | H56: =H10*1000000*'Data Entry Needs'!$D$51 -> 0 | I56: =H56*$E$56 -> 0 | J56: =J10*1000000*'Data Entry Needs'!$D$51 -> 0 | K56: =J56*$E$56 -> 0 | L56: =L10*1000000*'Data Entry Needs'!$D$51 -> 0 | M56: =L56*$E$56 -> 0
C57: =title334 -> Subtotal | G57: =SUM(G55:G56) -> 0 | I57: =SUM(I55:I56) -> 0 | K57: =SUM(K55:K56) -> 0 | M57: =SUM(M55:M56) -> 0
C59: =title62 -> Other costs | D59: =title52 -> Unit | E59: =title317 ->  | G59: =title332 -> Total | I59: =title332 -> Total | K59: =title332 -> Total | M59: =title332 -> Total
G60: =title77 -> (USD/year) | I60: =title77 -> (USD/year) | K60: =title77 -> (USD/year) | M60: =title77 -> (USD/year)
C61: =title64 -> Plant overhead | D61: USD | E61: ='Data Entry Needs'!D43 -> 0 | G61: =+(G32+G34+G50)*$E$61 ->  | I61: =+(I32+I34+I50)*$E$61 ->  | K61: =+(K32+K34+K50)*$E$61 ->  | M61: =+(M32+M34+M50)*$E$61 -> 
C62: =title65 -> General and administrative | D62: USD | E62: ='Data Entry Needs'!H42 -> 0 | G62: =+(G28+G36+G61+G51)*$E$62 ->  | I62: =+(I28+I36+I61+I51)*$E$62 ->  | K62: =+(K28+K36+K61+K51)*$E$62 ->  | M62: =+(M28+M36+M61+M51)*$E$62 -> 
C63: =title190 -> Interest on loans | D63: USD | G63: =-FA5ML!$G$62 ->  | I63: =-FA25ML!$G$62 ->  | K63: =-FA50ML!$G$62 ->  | M63: =-FA100ML!$G$62 -> 
C64: =title334 -> Subtotal | G64: =SUM(G61:G63) ->  | I64: =SUM(I61:I63) ->  | K64: =SUM(K61:K63) ->  | M64: =SUM(M61:M63) -> 
C66: =title191 -> Total production costs (USD/year)
F68: =title332 -> Total | G68: Total | H68: Total | I68: Total | J68: Total | K68: Total | L68: Total | M68: Total
F69: =title77 -> (USD/year) | G69: (USD/l) | H69: =title77 -> (USD/year) | I69: (USD/l) | J69: =title77 -> (USD/year) | K69: (USD/l) | L69: =title77 -> (USD/year) | M69: (USD/l)
C70: =title192 -> Total operating costs | F70: =G15+G28+G41+G36+G16 ->  | G70: =+F70/5000000 ->  | H70: =I15+I28+I41+I36+I16 ->  | I70: =+H70/25000000 ->  | J70: =K15+K28+K41+K36+K16 ->  | K70: =+J70/50000000 ->  | L70: =M15+M28+M41+M36+M16 ->  | M70: =+L70/100000000 -> 
C71: =title193 -> Total fixed costs | F71: =G51+G57 ->  | G71: =+F71/5000000 ->  | H71: =I51+I57 ->  | I71: =+H71/25000000 ->  | J71: =K51+K57 ->  | K71: =+J71/50000000 ->  | L71: =M51+M57 ->  | M71: =+L71/100000000 -> 
C72: =title194 -> Other total costs | F72: =+G64 ->  | G72: =+F72/5000000 ->  | H72: =+I64 ->  | I72: =+H72/25000000 ->  | J72: =+K64 ->  | K72: =+J72/50000000 ->  | L72: =+M64 ->  | M72: =+L72/100000000 -> 
C73: =title191 -> Total production costs (USD/year) | F73: =SUM(F70:F72) ->  | H73: =SUM(H70:H72) ->  | J73: =SUM(J70:J72) ->  | L73: =SUM(L70:L72) -> 
C74: =title195 -> Total production costs per litre (USD/l) | G74: =SUM(G70:G72) ->  | I74: =SUM(I70:I72) ->  | K74: =SUM(K70:K73) ->  | M74: =SUM(M70:M73) -> 

Sheet STORAGE (hidden)
C3: =title198 -> BIOMASS STORAGE CALCULATION FOR MOLASSES
C5: =title199 -> Biomass Safety Stock Rate Definition
F8: =title207 -> Capacity (million of litres)
D9: =title52 -> Unit | F9: 5 | I9: 25 | L9: 50 | O9: 100
C10: =title200 -> Biomass consumption | D10: =title47 -> t/year | F10: ='PRODUCTION COST'!$F$15 -> -4753012.048 | I10: ='PRODUCTION COST'!$H$15 -> -23765060.24 | L10: ='PRODUCTION COST'!$J$15 -> -47530120.48 | O10: ='PRODUCTION COST'!$L$15 -> -95060240.96
D11: =title205 -> t/month | F11: =F10/12 -> -396084.3373 | I11: =I10/12 -> -1980421.687 | L11: =L10/12 -> -3960843.373 | O11: =O10/12 -> -7921686.747
D12: =title206 -> kg/day | F12: =F10/365 -> -13021.95082 | I12: =I10/365 -> -65109.75408 | L12: =L10/365 -> -130219.5082 | O12: =O10/365 -> -260439.0163
C14: =title201 -> Biomass production within a specific distance | D14: =title47 -> t/year | F14: ='Data Entry Needs'!$D$23 -> 0 | I14: =F14 -> 0 | L14: =I14 -> 0 | O14: =L14 -> 0
C16: =title202 -> Biomass safety stock rate | F16: =+F17/100 -> 0.25 | G16: =+G17/100 -> 0 | H16: 0 | I16: 0.25 | J16: 0 | K16: 0 | L16: 0.25 | M16: 0 | N16: 0 | O16: 0.25
F17: 25 | I17: 25 | L17: 25 | O17: 25
C18: =title203 -> Biomass stock pile capacity | D18: t | F18: =+MAX(F25:F36) -> 0 | I18: =+MAX(I25:I36) -> 0 | L18: =+MAX(L25:L36) -> 0 | O18: =+MAX(O25:O36) -> 0
C20: =title204 -> Maximum Storage Definition
F22: =title207 -> Capacity (million of litres)
F23: 5 | I23: 25 | L23: 50 | O23: 100 | AD23: Depletion time definition
C24: =title208 -> Harvest Month Selection | D24: =title221 -> Storage Month | E24: Monthly Consumption (t/month) | F24: =title222 -> Cumulative Storage (ton) | G24: Storage Depletion (t/month) | H24: Monthly Consumption (t/month) | I24: =title222 -> Cumulative Storage (ton) | J24: Storage Depletion (t/month) | K24: Monthly Consumption (t/month) | L24: =title222 -> Cumulative Storage (ton) | M24: Storage Depletion (t/month) | N24: Monthly Consumption (t/month) | O24: =title222 -> Cumulative Storage (ton) | P24: Storage Depletion (t/month) | AB24: Harvest Period | AC24: Harvest Period | AD24: Depletion term | AE24: Depletion month | AF24: EQ term | AG24: Depletion time | AH24: Storageterm | AI24: =title221 -> Storage Month | AJ24: EQ term | AK24: Storage time
C25: =title209 -> January | D25: =+IF($AC25=0,0,IF($AC25>$AC36,1,IF($AC25=$AC36,$D36+1,IF($AC36>$AC25,0)))) -> 4 | E25: =+F$11 -> -396084.3373 | F25: =+IF(AND($D$25=1,$D$36=0,$D$26=0),$F$11*$AG25+$F$11*$F$16,IF($D25>0,($AG25*$F$11/$AK25)*$D25+$F$11*$F$16,0)) -> -1230690.62 | G25: =IF(AND($D$25=1,$D$36=0,$D$26=0),$F$11*$AG25+$G$36-E25,IF($D25>0,IFERROR(($AG25*$F$11/$AK25)*$D25,"")+$F$11*$F$16,IF($D25=0,G36-E25))) -> -1230690.62 | H25: =+I$11 -> -1980421.687 | I25: =+IF(AND($D$25=1,$D$36=0,$D$26=0),$I$11*$AG25+$I$11*$I$16,IF($D25>0,($AG25*$I$11/$AK25)*$D25+$I$11*$I$16,0)) -> -6153453.098 | J25: =IF(AND($D$25=1,$D$36=0,$D$26=0),$I$11*$AG25+$J$36-H25,IF($D25>0,IFERROR(($AG25*$I$11/$AK25)*$D25,"")+$I$11*$I$16,IF($D25=0,J36-H25))) -> -6153453.098 | K25: =+L$11 -> -3960843.373 | L25: =+IF(AND($D$25=1,$D$36=0,$D$26=0),$L$11*$AG25+$L$11*$L$16,IF($D25>0,($AG25*$L$11/$AK25)*$D25+$L$11*$L$16,0)) -> -12306906.2 | M25: =IF(AND($D$25=1,$D$36=0,$D$26=0),$L$11*$AG25+$M$36-K25,IF($D25>0,IFERROR(($AG25*$L$11/$AK25)*$D25,"")+$L$11*$L$16,IF($D25=0,M36-K25))) -> -12306906.2 | N25: =+O$11 -> -7921686.747 | O25: =+IF(AND($D$25=1,$D$36=0,$D$26=0),$O$11*$AG25+$O$11*$O$16,IF($D25>0,($AG25*$O$11/$AK25)*$D25+$O$11*$O$16,0)) -> -24613812.39 | P25: =IF(AND($D$25=1,$D$36=0,$D$26=0),$O$11*$AG25+$P$36-N25,IF($D25>0,IFERROR(($AG25*$O$11/$AK25)*$D25,"")+$O$11*$O$16,IF($D25=0,P36-N25))) -> -24613812.39 | AB25: TRUE | AC25: =+N(AB25) -> 1 | AD25: =+IF(AND(AC26>AC25,AC25=0),"Last"&AF25,"") ->  | AE25: =+IF($AC25=1,0,IF($AC25<$AC36,1,IF($AC25=$AC36,$AE36+1,IF($AC36>$AC25,1)))) -> 0 | AF25: 1 | AG25: =IFERROR(VLOOKUP("LAST"&AF25,$AD$25:$AE$36,2,FALSE),AK25) -> 5 | AH25: =+IF(AND(AI25>AI26,AI26=0),"Last"&AJ25,"") ->  | AI25: =+IF($AC25=0,0,IF($AC25>$AC36,1,IF($AC25=$AC36,$AI36+1,IF($AC36>$AC25,0)))) -> 4 | AJ25: 1 | AK25: =IFERROR(VLOOKUP("LAST"&AJ25,$AH$25:$AI$36,2,FALSE),VLOOKUP("LAST"&1,$AH$25:$AI$36,2,FALSE)) -> 7
C26: =title210 -> February | D26: =+IF($AC26=0,0,IF($AC26>$AC25,1,IF($AC26=$AC25,$D25+1,IF($AC25>$AC26,0)))) -> 5 | E26: -396084.3373 | F26: =IF($D26>0,($AG26*$F$11/$AK26)*$D26+$F$11*$F$16,0) -> -1513608.003 | G26: =+IF($D26>0,IFERROR(($AG26*$F$11/$AK26)*$D26,"")+$F$11*$F$16,IF($D26=0,G25-E26)) -> -1513608.003 | H26: -1980421.687 | I26: =IF($D26>0,($AG26*$I$11/$AK26)*$D26+$I$11*$I$16,0) -> -7568040.017 | J26: =+IF($D26>0,IFERROR(($AG26*$I$11/$AK26)*$D26,"")+$I$11*$I$16,IF($D26=0,J25-H26)) -> -7568040.017 | K26: -3960843.373 | L26: =IF($D26>0,($AG26*$L$11/$AK26)*$D26+$L$11*$L$16,0) -> -15136080.03 | M26: =+IF($D26>0,IFERROR(($AG26*$L$11/$AK26)*$D26,"")+$L$11*$L$16,IF($D26=0,M25-K26)) -> -15136080.03 | N26: -7921686.747 | O26: =IF($D26>0,($AG26*$O$11/$AK26)*$D26+$O$11*$O$16,0) -> -30272160.07 | P26: =+IF($D26>0,IFERROR(($AG26*$O$11/$AK26)*$D26,"")+$O$11*$O$16,IF($D26=0,P25-N26)) -> -30272160.07 | AB26: TRUE | AC26: =+N(AB26) -> 1 | AD26: =+IF(AND(AC27>AC26,AC26=0),"Last"&AF26,"") ->  | AE26: =+IF($AC26=1,0,IF($AC26<$AC25,1,IF($AC26=$AC25,$AE25+1,IF($AC25>$AC26,1)))) -> 0 | AF26: =+IF($AE25>$AE26,$AF25+1,$AF25) -> 1 | AG26: =IFERROR(VLOOKUP("LAST"&AF26,$AD$25:$AE$36,2,FALSE),$AG$25) -> 5 | AH26: =+IF(AND(AI26>AI27,AI27=0),"Last"&AJ26,"") ->  | AI26: =+IF($AC26=0,0,IF($AC26>$AC25,1,IF($AC26=$AC25,$AI25+1,IF($AC25>$AC26,0)))) -> 5 | AJ26: =+IF($AI25>$AI26,$AJ25+1,$AJ25) -> 1 | AK26: 7
C27: =title211 -> March | D27: 6 | E27: -396084.3373 | F27: -1796525.387 | G27: -1796525.387 | H27: -1980421.687 | I27: -8982626.936 | J27: -8982626.936 | K27: -3960843.373 | L27: -17965253.87 | M27: -17965253.87 | N27: -7921686.747 | O27: -35930507.75 | P27: -35930507.75 | AB27: TRUE | AC27: 1 | AD27: =+IF(AND(AC28>AC27,AC27=0),"Last"&AF27,"") ->  | AE27: 0 | AF27: 1 | AG27: 5 | AH27: =+IF(AND(AI27>AI28,AI28=0),"Last"&AJ27,"") ->  | AI27: 6 | AJ27: 1 | AK27: 7
C28: =title212 -> April | D28: 7 | E28: -396084.3373 | F28: -2079442.771 | G28: -2079442.771 | H28: -1980421.687 | I28: -10397213.86 | J28: -10397213.86 | K28: -3960843.373 | L28: -20794427.71 | M28: -20794427.71 | N28: -7921686.747 | O28: -41588855.42 | P28: -41588855.42 | AB28: TRUE | AC28: 1 | AD28: =+IF(AND(AC29>AC28,AC28=0),"Last"&AF28,"") ->  | AE28: 0 | AF28: 1 | AG28: 5 | AH28: =+IF(AND(AI28>AI29,AI29=0),"Last"&AJ28,"") -> Last1 | AI28: 7 | AJ28: 1 | AK28: 7
C29: =title213 -> May | D29: 0 | E29: -396084.3373 | F29: 0 | G29: -1683358.434 | H29: -1980421.687 | I29: 0 | J29: -8416792.169 | K29: -3960843.373 | L29: 0 | M29: -16833584.34 | N29: -7921686.747 | O29: 0 | P29: -33667168.67 | AB29: FALSE | AC29: 0 | AE29: 1 | AF29: 1 | AG29: 5 | AH29: =+IF(AND(AI29>AI30,AI30=0),"Last"&AJ29,"") ->  | AI29: 0 | AJ29: 2 | AK29: 7
C30: =title214 -> June | D30: 0 | E30: -396084.3373 | F30: 0 | G30: -1287274.096 | H30: -1980421.687 | I30: 0 | J30: -6436370.482 | K30: -3960843.373 | L30: 0 | M30: -12872740.96 | N30: -7921686.747 | O30: 0 | P30: -25745481.93 | AB30: FALSE | AC30: 0 | AE30: 2 | AF30: 1 | AG30: 5 | AI30: 0 | AJ30: 2 | AK30: 7
C31: =title215 -> July | D31: 0 | E31: -396084.3373 | F31: 0 | G31: -891189.759 | H31: -1980421.687 | I31: 0 | J31: -4455948.795 | K31: -3960843.373 | L31: 0 | M31: -8911897.59 | N31: -7921686.747 | O31: 0 | P31: -17823795.18 | AB31: FALSE | AC31: 0 | AE31: 3 | AF31: 1 | AG31: 5 | AI31: 0 | AJ31: 2 | AK31: 7
C32: =title216 -> August | D32: 0 | E32: -396084.3373 | F32: 0 | G32: -495105.4217 | H32: -1980421.687 | I32: 0 | J32: -2475527.108 | K32: -3960843.373 | L32: 0 | M32: -4951054.217 | N32: -7921686.747 | O32: 0 | P32: -9902108.434 | AB32: FALSE | AC32: 0 | AE32: 4 | AF32: 1 | AG32: 5 | AI32: 0 | AJ32: 2 | AK32: 7
C33: =title217 -> September | D33: 0 | E33: -396084.3373 | F33: 0 | G33: -99021.08434 | H33: -1980421.687 | I33: 0 | J33: -495105.4217 | K33: -3960843.373 | L33: 0 | M33: -990210.8434 | N33: -7921686.747 | O33: 0 | P33: -1980421.687 | AB33: FALSE | AC33: 0 | AD33: Last1 | AE33: 5 | AF33: 1 | AG33: 5 | AI33: 0 | AJ33: 2 | AK33: 7
C34: =title218 -> October | D34: 1 | E34: -396084.3373 | F34: -381938.4682 | G34: -381938.4682 | H34: -1980421.687 | I34: -1909692.341 | J34: -1909692.341 | K34: -3960843.373 | L34: -3819384.682 | M34: -3819384.682 | N34: -7921686.747 | O34: -7638769.363 | P34: -7638769.363 | AB34: TRUE | AC34: 1 | AE34: 0 | AF34: 2 | AG34: 5 | AI34: 1 | AJ34: 2 | AK34: 7
C35: =title219 -> November | D35: 2 | E35: -396084.3373 | F35: -664855.852 | G35: -664855.852 | H35: -1980421.687 | I35: -3324279.26 | J35: -3324279.26 | K35: -3960843.373 | L35: -6648558.52 | M35: -6648558.52 | N35: -7921686.747 | O35: -13297117.04 | P35: -13297117.04 | AB35: TRUE | AC35: 1 | AE35: 0 | AF35: 2 | AG35: 5 | AI35: 2 | AJ35: 2 | AK35: 7
C36: =title220 -> December | D36: 3 | E36: -396084.3373 | F36: -947773.2358 | G36: -947773.2358 | H36: -1980421.687 | I36: -4738866.179 | J36: -4738866.179 | K36: -3960843.373 | L36: -9477732.358 | M36: -9477732.358 | N36: -7921686.747 | O36: -18955464.72 | P36: -18955464.72 | AB36: TRUE | AC36: 1 | AD36: =+IF(AND(AC25>AC36,AC36=0),"Last"&AF36,"") ->  | AE36: 0 | AF36: 2 | AG36: 5 | AH36: =+IF(AND(AI36>AI25,AI25=0),"Last"&AJ36,"") ->  | AI36: 3 | AJ36: 2 | AK36: 7
C38: =title223 -> Maximum Storage Capacity Required (ton) | F38: =+ROUNDUP(MAX(F25:F36),0) -> 0 | I38: =+ROUNDUP(MAX(I25:I36),0) -> 0 | L38: =+ROUNDUP(MAX(L25:L36),0) -> 0 | O38: =+ROUNDUP(MAX(O25:O36),0) -> 0
C39: =title224 -> Minimum Safety Storage (ton) | F39: =+ROUNDUP(MIN(G25:G36),0) -> -2079443 | I39: =+ROUNDUP(MIN(J25:J36),0) -> -10397214 | L39: =+ROUNDUP(MIN(M25:M36),0) -> -20794428 | O39: =+ROUNDUP(MIN(P25:P36),0) -> -41588856
AB40: No. Storage Months | AC40: =+COUNTIF(AC25:AC36,">0") -> 7
C41: =title225 -> Monthly Consumption of Biomass Stocked | AB41: Total Depletion Period | AC41: =12-AC40 -> 5
AH82: =5&" "&title226 -> 5 (ML/year) | AI82: =25&" "&title226 -> 25 (ML/year) | AJ82: =50&" "&title226 -> 50 (ML/year) | AK82: =100&" "&title226 -> 100 (ML/year)
AG83: =+LEFT(C25,3) -> Jan | AH83: =+G25 -> -1230690.62 | AI83: =+J25 -> -6153453.098 | AJ83: =+M25 -> -12306906.2 | AK83: =+P25 -> -24613812.39
AG84: Feb | AH84: -1513608.003 | AI84: -7568040.017 | AJ84: -15136080.03 | AK84: -30272160.07
AG85: Mar | AH85: -1796525.387 | AI85: -8982626.936 | AJ85: -17965253.87 | AK85: -35930507.75
AG86: Apr | AH86: -2079442.771 | AI86: -10397213.86 | AJ86: -20794427.71 | AK86: -41588855.42
AG87: May | AH87: -1683358.434 | AI87: -8416792.169 | AJ87: -16833584.34 | AK87: -33667168.67
AG88: Jun | AH88: -1287274.096 | AI88: -6436370.482 | AJ88: -12872740.96 | AK88: -25745481.93
AG89: =+LEFT(C32,3) -> Aug | AH89: =+G32 -> -495105.4217 | AI89: =+J32 -> -2475527.108 | AJ89: =+M32 -> -4951054.217 | AK89: =+P32 -> -9902108.434
AG90: =+LEFT(C33,3) -> Sep | AH90: =+G33 -> -99021.08434 | AI90: =+J33 -> -495105.4217 | AJ90: =+M33 -> -990210.8434 | AK90: =+P33 -> -1980421.687
AG91: =+LEFT(C34,3) -> Oct | AH91: =+G34 -> -381938.4682 | AI91: =+J34 -> -1909692.341 | AJ91: =+M34 -> -3819384.682 | AK91: =+P34 -> -7638769.363
AG92: =+LEFT(C35,3) -> Nov | AH92: =+G35 -> -664855.852 | AI92: =+J35 -> -3324279.26 | AJ92: =+M35 -> -6648558.52 | AK92: =+P35 -> -13297117.04
AG93: =+LEFT(C36,3) -> Dec | AH93: =+G36 -> -947773.2358 | AI93: =+J36 -> -4738866.179 | AJ93: =+M36 -> -9477732.358 | AK93: =+P36 -> -18955464.72

Sheet FA5ML (hidden)
B2: =title225 -> Monthly Consumption of Biomass Stocked
A5: =title228 -> Ethanol Revenue (Earnings)
B7: =title237 -> Operating Year | C7: 0 | D7: 1 | E7: 2 | F7: 3 | G7: 4 | H7: 5 | I7: 6 | J7: 7 | K7: 8 | L7: 9 | M7: 10 | N7: 11 | O7: 12 | P7: 13 | Q7: 14 | R7: 15 | S7: 16 | T7: 17 | U7: 18 | V7: 19 | W7: 20
B9: =title207 -> Capacity (million of litres) | C9: 5 | D9: =C9 -> 5 | E9: 5 | F9: 5 | G9: 5 | H9: 5 | I9: 5 | J9: 5 | K9: 5 | L9: 5 | M9: 5 | N9: 5 | O9: 5 | P9: 5 | Q9: 5 | R9: 5 | S9: 5 | T9: 5 | U9: 5 | V9: 5 | W9: 5
B10: =title229 -> Annual production (litres per year) | C10: =+C9*1000000 -> 5000000 | D10: =+C10 -> 5000000 | E10: 5000000 | F10: 5000000 | G10: 5000000 | H10: 5000000 | I10: 5000000 | J10: 5000000 | K10: 5000000 | L10: 5000000 | M10: 5000000 | N10: 5000000 | O10: 5000000 | P10: 5000000 | Q10: 5000000 | R10: 5000000 | S10: 5000000 | T10: 5000000 | U10: 5000000 | V10: 5000000 | W10: 5000000
B12: =title230 -> Ethanol Price (USD/litre) | C12: =Calculation!$L$22 ->  | D12: =C12 ->  | E12: =D12 -> 
B13: =title231 -> Electricity Selling Price (USD/kWh) | C13: ='Data Entry Needs'!$H$58 -> 0 | D13: =C13 -> 0 | E13: =D13 -> 0 | F13: 0 | G13: 0 | H13: 0 | I13: 0 | J13: 0 | K13: 0 | L13: 0 | M13: 0 | N13: 0 | O13: 0 | P13: 0 | Q13: 0 | R13: 0 | S13: 0 | T13: 0 | U13: 0 | V13: 0 | W13: 0
A15: =IF('Data Entry Needs'!$D$58=title40,TRUE,FALSE) -> TRUE | B15: =title232 -> Electricity Sales | C15: =IF($A$15,COGENERATION!$D$21-COGENERATION!$D$16,0) -> 1722244.732 | D15: =C15 -> 1722244.732 | E15: =D15 -> 1722244.732 | F15: 1722244.732 | G15: 1722244.732 | H15: 1722244.732 | I15: 1722244.732 | J15: 1722244.732 | K15: 1722244.732 | L15: 1722244.732 | M15: 1722244.732 | N15: 1722244.732 | O15: 1722244.732 | P15: 1722244.732 | Q15: 1722244.732 | R15: 1722244.732 | S15: 1722244.732 | T15: 1722244.732 | U15: 1722244.732 | V15: 1722244.732 | W15: 1722244.732
B17: =title233 -> Ethanol Sales Revenue | C17: =C12*C10 ->  | D17: =D12*D10 -> 
B18: =title234 -> Electricity Sales Revenue | C18: =C15*C13 -> 0 | D18: =D15*D13 -> 0 | E18: 0 | F18: 0 | G18: 0 | H18: 0 | I18: 0 | J18: 0 | K18: 0 | L18: 0 | M18: 0 | N18: 0 | O18: 0 | P18: 0 | Q18: 0 | R18: 0 | S18: 0 | T18: 0 | U18: 0 | V18: 0 | W18: 0
B20: =title235 -> Total Revenue | C20: =SUM(C17:C19) ->  | D20: =SUM(D17:D19) -> 
A23: =title236 -> Capital and operating cost | C23: =+'PRODUCTION COST'!G16 -> 
C24: f | D24: d
B25: =title237 -> Operating Year | C25: =title269 -> Appraisal | D25: 1 | E25: 2 | F25: 3 | G25: 4 | H25: 5 | I25: 6 | J25: 7 | K25: 8 | L25: 9 | M25: 10 | N25: 11 | O25: 12 | P25: 13 | Q25: 14 | R25: 15 | S25: 16 | T25: 17 | U25: 18 | V25: 19 | W25: 20
B26: =title238 -> Capital cost (USD)
A27: =IF('Data Entry Needs'!$D$58=title40,TRUE,FALSE) -> TRUE | B27: =title183 -> Equipment | C27: =INDIRECT("'PRODUCTION COST'!"&$C$24&45) -> 
A28: =IF('Data Entry Needs'!$D$58=title40,TRUE,FALSE) -> TRUE | B28: =title184 -> Construction | C28: =INDIRECT("'PRODUCTION COST'!"&$C$24&46) ->  | N28: =+C28 -> 
A29: =IF('Data Entry Needs'!$D$58=title40,TRUE,FALSE) -> TRUE | B29: =title239 -> Installation | C29: =INDIRECT("'PRODUCTION COST'!"&$C$24&47) ->  | N29: =+C29 -> 
B31: =title240 -> Total capital cost (USD) | C31: =C27+C28+C29 ->  | D31: 0 | E31: 0 | F31: 0 | G31: 0 | H31: 0 | I31: 0 | J31: 0 | K31: 0 | L31: 0 | M31: 0 | O31: 0 | P31: 0 | Q31: 0 | R31: 0 | S31: 0 | T31: 0 | U31: 0 | V31: 0 | W31: 0
B32: =title241 -> Capital cost (USD/MLN litres) | C32: =+C31/C9 -> 
B33: =title242 -> Capital cost (USD/litre) | C33: =+C31/C10 -> 
C35: g
B36: =title237 -> Operating Year | C36: =title269 -> Appraisal | D36: 1 | E36: 2 | F36: 3 | G36: 4 | H36: 5 | I36: 6 | J36: 7 | K36: 8 | L36: 9 | M36: 10 | N36: 11 | O36: 12 | P36: 13 | Q36: 14 | R36: 15 | S36: 16 | T36: 17 | U36: 18 | V36: 19 | W36: 20
B37: =title243 -> Annual operating and maintenance cost
B38: =title244 -> Subtotal cost of inputs (USD) | C38: =+C39+C40 -> 0 | D38: 0 | E38: 0 | F38: 0 | G38: 0 | H38: 0 | I38: 0 | J38: 0 | K38: 0 | L38: 0 | M38: 0 | N38: 0 | O38: 0 | P38: 0 | Q38: 0 | R38: 0 | S38: 0 | T38: 0 | U38: 0 | V38: 0 | W38: 0
B39: =title245 -> Feedstock cost (USD/year) | C39: =INDIRECT("'PRODUCTION COST'!"&$C$35&15) -> 0 | D39: =+C39 -> 0 | E39: 0 | F39: 0 | G39: 0 | H39: 0 | I39: 0 | J39: 0 | K39: 0 | L39: 0 | M39: 0 | N39: 0 | O39: 0 | P39: 0 | Q39: 0 | R39: 0 | S39: 0 | T39: 0 | U39: 0 | V39: 0 | W39: 0
B40: =title246 -> Other feedstock costs (USD/year) | C40: =INDIRECT("'PRODUCTION COST'!"&$C$35&28) -> 0 | D40: 0 | E40: 0 | F40: 0 | G40: 0 | H40: 0 | I40: 0 | J40: 0 | K40: 0 | L40: 0 | M40: 0 | N40: 0 | O40: 0 | P40: 0 | Q40: 0 | R40: 0 | S40: 0 | T40: 0 | U40: 0 | V40: 0 | W40: 0
B41: =title247 -> Labour cost (USD/yeear) | C41: =INDIRECT("'PRODUCTION COST'!"&$C$35&36) -> 0 | D41: =C41 -> 0 | E41: =D41 -> 0 | F41: 0 | G41: 0 | H41: 0 | I41: 0 | J41: 0 | K41: 0 | L41: 0 | M41: 0 | N41: 0 | O41: 0 | P41: 0 | Q41: 0 | R41: 0 | S41: 0 | T41: 0 | U41: 0 | V41: 0 | W41: 0
B42: =title75&" "&title77 -> Transport cost (USD/year) | C42: =INDIRECT("'PRODUCTION COST'!"&$C$35&40) -> 0 | D42: =+C42 -> 0 | E42: 0 | F42: 0 | G42: 0 | H42: 0 | I42: 0 | J42: 0 | K42: 0 | L42: 0 | M42: 0 | N42: 0 | O42: 0 | P42: 0 | Q42: 0 | R42: 0 | S42: 0 | T42: 0 | U42: 0 | V42: 0 | W42: 0
B43: =title187&" "&title77 -> Maintenance costs (USD/year) | C43: =INDIRECT("'PRODUCTION COST'!"&$C$35&50) -> 
B44: =title248 -> Storage costs (USD/year) | C44: =INDIRECT("'PRODUCTION COST'!"&$C$35&57) -> 0 | D44: =C44 -> 0 | E44: 0 | F44: 0 | G44: 0 | H44: 0 | I44: 0 | J44: 0 | K44: 0 | L44: 0 | M44: 0 | N44: 0 | O44: 0 | P44: 0 | Q44: 0 | R44: 0 | S44: 0 | T44: 0 | U44: 0 | V44: 0 | W44: 0
B45: =title64&" "&title77 -> Plant overhead (USD/year) | C45: =INDIRECT("'PRODUCTION COST'!"&$C$35&61) ->  | D45: =+C45 -> 
B46: =title249 -> General and administrative costs (USD/year) | C46: =INDIRECT("'PRODUCTION COST'!"&$C$35&62) -> 
B47: =title250 -> Total annualized cost (USD) | C47: =SUM(C39:C46) -> 
B48: =title251 -> Total cost per litre (USD/l) | C48: =+C47/C10 ->  | D48: =+D47/D10 -> 
A50: =title85 -> Financial parameters
B51: =title237 -> Operating Year | C51: =title269 -> Appraisal | D51: 1 | E51: 2 | F51: 3 | G51: 4 | H51: 5 | I51: 6 | J51: 7 | K51: 8 | L51: 9 | M51: 10 | N51: 11 | O51: 12 | P51: 13 | Q51: 14 | R51: 15 | S51: 16 | T51: 17 | U51: 18 | V51: 19 | W51: 20
B52: =title86 -> Discount rate (%) | C52: ='Data Entry Needs'!$D$63 -> 0
B53: =title252 -> Debt percentage (%) | C53: ='Data Entry Needs'!$H$63 -> 0
B55: =title253 -> Loan | D55: 1 | E55: 2 | F55: 3 | G55: 4 | H55: 5 | I55: 6 | J55: 7 | K55: 8 | L55: 9 | M55: 10 | N55: 11 | O55: 12 | P55: 13 | Q55: 14 | R55: 15 | S55: 16 | T55: 17 | U55: 18 | V55: 19 | W55: 20
B56: =title254 -> Loan amount (USD ) | C56: =C53*C31 -> 
B57: =title87 -> Loan interest rate (%) | C57: ='Data Entry Needs'!$D$64 -> 0
B58: =title88 -> Loan term (years) | C58: ='Data Entry Needs'!$D$65 -> 0
B59: =title255 -> Loan payment (USD/month) | C59: =(PMT(C57/12,(12*C58),C56)) -> 
B60: =title256 -> Loan payment (USD/year) | D60: =IF(D51<=$C$58,$C$59*12,0) -> 0 | E60: 0 | F60: 0 | G60: 0 | H60: 0 | I60: 0 | J60: 0 | K60: 0 | L60: 0 | M60: 0 | N60: 0 | O60: 0 | P60: 0 | Q60: 0 | R60: 0 | S60: 0 | T60: 0 | U60: 0 | V60: 0 | W60: 0
B61: =title257 -> Total loan payment (USD) | C61: =SUM(D60:W60) -> 0
B62: =title258 -> Loan interest payment (USD) | C62: =C61+C56 ->  | D62: =title271 -> Average loan interest payment for the life of the project | G62: =C62/20 ->  | H62: =title272 -> USD per year
A64: =title259 -> Depreciation
B65: =title237 -> Operating Year | C65: =title269 -> Appraisal | D65: 1 | E65: 2 | F65: 3 | G65: 4 | H65: 5 | I65: 6 | J65: 7 | K65: 8 | L65: 9 | M65: 10 | N65: 11 | O65: 12 | P65: 13 | Q65: 14 | R65: 15 | S65: 16 | T65: 17 | U65: 18 | V65: 19 | W65: 20
B66: =title260 -> Depreciation method | C66: =title270 -> Straight-line
B67: =title261 -> Total depreciation (USD) | D67: =$C$27/'PRODUCTION COST'!$E$45+FA5ML!$C$28/'PRODUCTION COST'!$E$46+FA5ML!$C$29/'PRODUCTION COST'!$E$47 ->  | E67: =D67 -> 
A69: =title262 -> Summary of this project - before tax
B70: =title237 -> Operating Year | C70: =title269 -> Appraisal | D70: 1 | E70: 2 | F70: 3 | G70: 4 | H70: 5 | I70: 6 | J70: 7 | K70: 8 | L70: 9 | M70: 10 | N70: 11 | O70: 12 | P70: 13 | Q70: 14 | R70: 15 | S70: 16 | T70: 17 | U70: 18 | V70: 19 | W70: 20
B71: =title235&" (USD)" -> Total Revenue (USD) | D71: =+D20 -> 
B72: =title240 -> Total capital cost (USD) | C72: =-(C31-C56) -> 
B73: =title263 -> Total operation and maintenance cost (USD) | D73: =-D47 ->  | E73: =-E47 -> 
B74: =title264 -> Debt payment (USD) | D74: =D60 -> 0 | E74: 0 | F74: 0 | G74: 0 | H74: 0 | I74: 0 | J74: 0 | K74: 0 | L74: 0 | M74: 0 | N74: 0 | O74: 0 | P74: 0 | Q74: 0 | R74: 0 | S74: 0 | T74: 0 | U74: 0 | V74: 0 | W74: 0
B75: =title265 -> Cash Flow | C75: =SUM(C71:C74) -> 
A77: =title266 -> Financial analysis result
B79: =title267 -> Net Present Value (NPV) (USD) - before tax | C79: =NPV(C52,D75:W75)+C75 -> 
B80: =title268 -> Internal Rate of Return (IRR) (%) - before tax | C80: =IF(C79<0,"No es factible",IRR(C75:W75,0.000001)) -> 

Sheet FA25ML (hidden)
B2: =title273 -> FINANCIAL ASSESSMENT OF ETHANOL PRODUCTION 25 MILLION LITRES/YEAR
A5: =title228 -> Ethanol Revenue (Earnings)
B7: =title237 -> Operating Year | C7: 0 | D7: 1 | E7: 2 | F7: 3 | G7: 4 | H7: 5 | I7: 6 | J7: 7 | K7: 8 | L7: 9 | M7: 10 | N7: 11 | O7: 12 | P7: 13 | Q7: 14 | R7: 15 | S7: 16 | T7: 17 | U7: 18 | V7: 19 | W7: 20
B9: =title207 -> Capacity (million of litres) | C9: 25 | D9: =C9 -> 25 | E9: 25 | F9: 25 | G9: 25 | H9: 25 | I9: 25 | J9: 25 | K9: 25 | L9: 25 | M9: 25 | N9: 25 | O9: 25 | P9: 25 | Q9: 25 | R9: 25 | S9: 25 | T9: 25 | U9: 25 | V9: 25 | W9: 25
B10: =title229 -> Annual production (litres per year) | C10: =+C9*1000000 -> 25000000 | D10: =+C10 -> 25000000 | E10: 25000000 | F10: 25000000 | G10: 25000000 | H10: 25000000 | I10: 25000000 | J10: 25000000 | K10: 25000000 | L10: 25000000 | M10: 25000000 | N10: 25000000 | O10: 25000000 | P10: 25000000 | Q10: 25000000 | R10: 25000000 | S10: 25000000 | T10: 25000000 | U10: 25000000 | V10: 25000000 | W10: 25000000
B12: =title230 -> Ethanol Price (USD/litre) | C12: =Calculation!$L$22 ->  | D12: =C12 ->  | E12: =D12 -> 
B13: =title231 -> Electricity Selling Price (USD/kWh) | C13: ='Data Entry Needs'!$H$58 -> 0 | D13: =C13 -> 0 | E13: 0 | F13: 0 | G13: 0 | H13: 0 | I13: 0 | J13: 0 | K13: 0 | L13: 0 | M13: 0 | N13: 0 | O13: 0 | P13: 0 | Q13: 0 | R13: 0 | S13: 0 | T13: 0 | U13: 0 | V13: 0 | W13: 0
A15: =IF('Data Entry Needs'!$D$58="si",TRUE,FALSE) -> FALSE | B15: =title232 -> Electricity Sales | C15: =IF($A$15,COGENERATION!$E$21-COGENERATION!$E$16,0) -> 0 | D15: =C15 -> 0 | E15: =D15 -> 0 | F15: 0 | G15: 0 | H15: 0 | I15: 0 | J15: 0 | K15: 0 | L15: 0 | M15: 0 | N15: 0 | O15: 0 | P15: 0 | Q15: 0 | R15: 0 | S15: 0 | T15: 0 | U15: 0 | V15: 0 | W15: 0
B17: =title233 -> Ethanol Sales Revenue | C17: =C12*C10 ->  | D17: =D12*D10 -> 
B18: =title234 -> Electricity Sales Revenue | C18: =C15*C13 -> 0 | D18: =D15*D13 -> 0 | E18: 0 | F18: 0 | G18: 0 | H18: 0 | I18: 0 | J18: 0 | K18: 0 | L18: 0 | M18: 0 | N18: 0 | O18: 0 | P18: 0 | Q18: 0 | R18: 0 | S18: 0 | T18: 0 | U18: 0 | V18: 0 | W18: 0
B20: =title235 -> Total Revenue | C20: =SUM(C17:C19) ->  | D20: =SUM(D17:D19) -> 
A23: =title236 -> Capital and operating cost
C24: H | D24: E
B25: =title237 -> Operating Year | C25: =title269 -> Appraisal | D25: 1 | E25: 2 | F25: 3 | G25: 4 | H25: 5 | I25: 6 | J25: 7 | K25: 8 | L25: 9 | M25: 10 | N25: 11 | O25: 12 | P25: 13 | Q25: 14 | R25: 15 | S25: 16 | T25: 17 | U25: 18 | V25: 19 | W25: 20
B26: =title238 -> Capital cost (USD)
A27: =IF('Data Entry Needs'!$D$58="si",TRUE,FALSE) -> FALSE | B27: =title183 -> Equipment | C27: =INDIRECT("'PRODUCTION COST'!"&$C$24&45) -> 
A28: =IF('Data Entry Needs'!$D$58="si",TRUE,FALSE) -> FALSE | B28: =title184 -> Construction | C28: =INDIRECT("'PRODUCTION COST'!"&$C$24&46) ->  | N28: =+C28 -> 
A29: =IF('Data Entry Needs'!$D$58="si",TRUE,FALSE) -> FALSE | B29: =title239 -> Installation | C29: =INDIRECT("'PRODUCTION COST'!"&$C$24&47) ->  | N29: =+C29 -> 
B31: =title240 -> Total capital cost (USD) | C31: =C27+C28+C29 ->  | D31: 0 | E31: 0 | F31: 0 | G31: 0 | H31: 0 | I31: 0 | J31: 0 | K31: 0 | L31: 0 | M31: 0 | O31: 0 | P31: 0 | Q31: 0 | R31: 0 | S31: 0 | T31: 0 | U31: 0 | V31: 0 | W31: 0
B32: =title241 -> Capital cost (USD/MLN litres) | C32: =+C31/C9 -> 
B33: =title242 -> Capital cost (USD/litre) | C33: =+C31/C10 -> 
C35: I
B36: =title237 -> Operating Year | C36: =title269 -> Appraisal | D36: 1 | E36: 2 | F36: 3 | G36: 4 | H36: 5 | I36: 6 | J36: 7 | K36: 8 | L36: 9 | M36: 10 | N36: 11 | O36: 12 | P36: 13 | Q36: 14 | R36: 15 | S36: 16 | T36: 17 | U36: 18 | V36: 19 | W36: 20
B37: =title243 -> Annual operating and maintenance cost
B38: =title244 -> Subtotal cost of inputs (USD) | C38: =+C39+C40 -> 0 | D38: 0 | E38: 0 | F38: 0 | G38: 0 | H38: 0 | I38: 0 | J38: 0 | K38: 0 | L38: 0 | M38: 0 | N38: 0 | O38: 0 | P38: 0 | Q38: 0 | R38: 0 | S38: 0 | T38: 0 | U38: 0 | V38: 0 | W38: 0
B39: =title245 -> Feedstock cost (USD/year) | C39: =INDIRECT("'PRODUCTION COST'!"&$C$35&15) -> 0 | D39: =+C39 -> 0 | E39: 0 | F39: 0 | G39: 0 | H39: 0 | I39: 0 | J39: 0 | K39: 0 | L39: 0 | M39: 0 | N39: 0 | O39: 0 | P39: 0 | Q39: 0 | R39: 0 | S39: 0 | T39: =+S39 -> 0 | U39: 0 | V39: 0 | W39: 0
B40: =title246 -> Other feedstock costs (USD/year) | C40: =INDIRECT("'PRODUCTION COST'!"&$C$35&28) -> 0 | D40: 0 | E40: 0 | F40: 0 | G40: 0 | H40: 0 | I40: 0 | J40: 0 | K40: 0 | L40: 0 | M40: 0 | N40: 0 | O40: 0 | P40: 0 | Q40: 0 | R40: 0 | S40: 0 | T40: 0 | U40: 0 | V40: 0 | W40: 0
B41: =title247 -> Labour cost (USD/yeear) | C41: =INDIRECT("'PRODUCTION COST'!"&$C$35&36) -> 0 | D41: =C41 -> 0 | E41: =D41 -> 0 | F41: 0 | G41: 0 | H41: 0 | I41: 0 | J41: 0 | K41: 0 | L41: 0 | M41: 0 | N41: 0 | O41: 0 | P41: 0 | Q41: 0 | R41: 0 | S41: 0 | T41: 0 | U41: 0 | V41: 0 | W41: 0
B42: =title75&" "&title77 -> Transport cost (USD/year) | C42: =INDIRECT("'PRODUCTION COST'!"&$C$35&40) -> 0 | D42: =+C42 -> 0 | E42: 0 | F42: 0 | G42: 0 | H42: 0 | I42: 0 | J42: 0 | K42: 0 | L42: 0 | M42: 0 | N42: 0 | O42: 0 | P42: 0 | Q42: 0 | R42: 0 | S42: 0 | T42: =+S42 -> 0 | U42: 0 | V42: 0 | W42: 0
B43: =title187&" "&title77 -> Maintenance costs (USD/year) | C43: =INDIRECT("'PRODUCTION COST'!"&$C$35&50) -> 
B44: =title248 -> Storage costs (USD/year) | C44: =INDIRECT("'PRODUCTION COST'!"&$C$35&57) -> 0 | D44: =C44 -> 0 | E44: 0 | F44: 0 | G44: 0 | H44: 0 | I44: 0 | J44: 0 | K44: 0 | L44: 0 | M44: 0 | N44: 0 | O44: 0 | P44: 0 | Q44: 0 | R44: 0 | S44: 0 | T44: 0 | U44: 0 | V44: 0 | W44: 0
B45: =title64&" "&title77 -> Plant overhead (USD/year) | C45: =INDIRECT("'PRODUCTION COST'!"&$C$35&61) ->  | D45: =+C45 ->  | T45: =+S45 -> 
B46: =title249 -> General and administrative costs (USD/year) | C46: =INDIRECT("'PRODUCTION COST'!"&$C$35&62) -> 
B47: =title250 -> Total annualized cost (USD) | C47: =SUM(C39:C46) -> 
B48: =title251 -> Total cost per litre (USD/l) | C48: =+C47/C10 ->  | D48: =+D47/D10 -> 
A50: =title85 -> Financial parameters
B51: =title237 -> Operating Year | C51: =title269 -> Appraisal | D51: 1 | E51: 2 | F51: 3 | G51: 4 | H51: 5 | I51: 6 | J51: 7 | K51: 8 | L51: 9 | M51: 10 | N51: 11 | O51: 12 | P51: 13 | Q51: 14 | R51: 15 | S51: 16 | T51: 17 | U51: 18 | V51: 19 | W51: 20
B52: =title86 -> Discount rate (%) | C52: ='Data Entry Needs'!$D$63 -> 0
B53: =title252 -> Debt percentage (%) | C53: ='Data Entry Needs'!$H$63 -> 0
B55: =title253 -> Loan | D55: 1 | E55: 2 | F55: 3 | G55: 4 | H55: 5 | I55: 6 | J55: 7 | K55: 8 | L55: 9 | M55: 10 | N55: 11 | O55: 12 | P55: 13 | Q55: 14 | R55: 15 | S55: 16 | T55: 17 | U55: 18 | V55: 19 | W55: 20
B56: =title254 -> Loan amount (USD ) | C56: =C53*C31 -> 
B57: =title87 -> Loan interest rate (%) | C57: ='Data Entry Needs'!$D$64 -> 0
B58: =title88 -> Loan term (years) | C58: ='Data Entry Needs'!$D$65 -> 0
B59: =title255 -> Loan payment (USD/month) | C59: =(PMT(C57/12,(12*C58),C56)) -> 
B60: =title256 -> Loan payment (USD/year) | D60: =IF(D51<=$C$58,$C$59*12,0) -> 0 | E60: 0 | F60: 0 | G60: 0 | H60: 0 | I60: 0 | J60: 0 | K60: 0 | L60: 0 | M60: 0 | N60: 0 | O60: 0 | P60: 0 | Q60: 0 | R60: 0 | S60: 0 | T60: 0 | U60: 0 | V60: 0 | W60: 0
B61: =title257 -> Total loan payment (USD) | C61: =SUM(D60:W60) -> 0
B62: =title258 -> Loan interest payment (USD) | C62: =C61+C56 ->  | D62: =title271 -> Average loan interest payment for the life of the project | G62: =C62/20 ->  | H62: =title272 -> USD per year
A64: =title259 -> Depreciation
B65: =title237 -> Operating Year | C65: =title269 -> Appraisal | D65: 1 | E65: 2 | F65: 3 | G65: 4 | H65: 5 | I65: 6 | J65: 7 | K65: 8 | L65: 9 | M65: 10 | N65: 11 | O65: 12 | P65: 13 | Q65: 14 | R65: 15 | S65: 16 | T65: 17 | U65: 18 | V65: 19 | W65: 20
B66: =title260 -> Depreciation method | C66: =title270 -> Straight-line
B67: =title261 -> Total depreciation (USD) | D67: =$C$27/'PRODUCTION COST'!$E$45+FA25ML!$C$28/'PRODUCTION COST'!$E$46+FA25ML!$C$29/'PRODUCTION COST'!$E$47 ->  | E67: =D67 -> 
A69: =title262 -> Summary of this project - before tax
B70: =title237 -> Operating Year | C70: =title269 -> Appraisal | D70: 1 | E70: 2 | F70: 3 | G70: 4 | H70: 5 | I70: 6 | J70: 7 | K70: 8 | L70: 9 | M70: 10 | N70: 11 | O70: 12 | P70: 13 | Q70: 14 | R70: 15 | S70: 16 | T70: 17 | U70: 18 | V70: 19 | W70: 20
B71: =title235&" (USD)" -> Total Revenue (USD) | D71: =+D20 -> 
B72: =title240 -> Total capital cost (USD) | C72: =-(C31-C56) -> 
B73: =title263 -> Total operation and maintenance cost (USD) | D73: =-D47 ->  | E73: =-E47 -> 
B74: =title264 -> Debt payment (USD) | D74: =D60 -> 0 | E74: 0 | F74: 0 | G74: 0 | H74: 0 | I74: 0 | J74: 0 | K74: 0 | L74: 0 | M74: 0 | N74: 0 | O74: 0 | P74: 0 | Q74: 0 | R74: 0 | S74: 0 | T74: 0 | U74: 0 | V74: 0 | W74: 0
B75: =title265 -> Cash Flow | C75: =SUM(C71:C74) -> 
A77: =title266 -> Financial analysis result
B79: =title267 -> Net Present Value (NPV) (USD) - before tax | C79: =NPV(C52,D75:W75)+C75 -> 
B80: =title268 -> Internal Rate of Return (IRR) (%) - before tax | C80: =IF(C79<0,"No es factible",IRR(C75:W75,0.000001)) -> 

Sheet FA50ML (hidden)
B2: =title274 -> FINANCIAL ASSESSMENT OF ETHANOL PRODUCTION 50 MILLION LITRES/YEAR
A5: =title228 -> Ethanol Revenue (Earnings)
B7: =title237 -> Operating Year | C7: 0 | D7: 1 | E7: 2 | F7: 3 | G7: 4 | H7: 5 | I7: 6 | J7: 7 | K7: 8 | L7: 9 | M7: 10 | N7: 11 | O7: 12 | P7: 13 | Q7: 14 | R7: 15 | S7: 16 | T7: 17 | U7: 18 | V7: 19 | W7: 20
B9: =title207 -> Capacity (million of litres) | C9: 50 | D9: =C9 -> 50 | E9: 50 | F9: 50 | G9: 50 | H9: 50 | I9: 50 | J9: 50 | K9: 50 | L9: 50 | M9: 50 | N9: 50 | O9: 50 | P9: 50 | Q9: 50 | R9: 50 | S9: 50 | T9: 50 | U9: 50 | V9: 50 | W9: 50
B10: =title229 -> Annual production (litres per year) | C10: =+C9*1000000 -> 50000000 | D10: =+C10 -> 50000000 | E10: 50000000 | F10: 50000000 | G10: 50000000 | H10: 50000000 | I10: 50000000 | J10: 50000000 | K10: 50000000 | L10: 50000000 | M10: 50000000 | N10: 50000000 | O10: 50000000 | P10: 50000000 | Q10: 50000000 | R10: 50000000 | S10: 50000000 | T10: 50000000 | U10: 50000000 | V10: 50000000 | W10: 50000000
B12: =title230 -> Ethanol Price (USD/litre) | C12: =Calculation!$L$22 ->  | D12: =C12 ->  | E12: =D12 -> 
B13: =title231 -> Electricity Selling Price (USD/kWh) | C13: ='Data Entry Needs'!$H$58 -> 0 | D13: =C13 -> 0 | E13: 0 | F13: 0 | G13: 0 | H13: 0 | I13: 0 | J13: 0 | K13: 0 | L13: 0 | M13: 0 | N13: 0 | O13: 0 | P13: 0 | Q13: 0 | R13: 0 | S13: 0 | T13: 0 | U13: 0 | V13: 0 | W13: 0
A15: =IF('Data Entry Needs'!$D$58="si",TRUE,FALSE) -> FALSE | B15: =title232 -> Electricity Sales | C15: =IF($A$15,COGENERATION!$F$21-COGENERATION!$F$16,0) -> 0 | D15: =C15 -> 0 | E15: =D15 -> 0 | F15: 0 | G15: 0 | H15: 0 | I15: 0 | J15: 0 | K15: 0 | L15: 0 | M15: 0 | N15: 0 | O15: 0 | P15: 0 | Q15: 0 | R15: 0 | S15: 0 | T15: 0 | U15: 0 | V15: 0 | W15: 0
B17: =title233 -> Ethanol Sales Revenue | C17: =C12*C10 ->  | D17: =D12*D10 -> 
B18: =title234 -> Electricity Sales Revenue | C18: =C15*C13 -> 0 | D18: =D15*D13 -> 0 | E18: 0 | F18: 0 | G18: 0 | H18: 0 | I18: 0 | J18: 0 | K18: 0 | L18: 0 | M18: 0 | N18: 0 | O18: 0 | P18: 0 | Q18: 0 | R18: 0 | S18: 0 | T18: 0 | U18: 0 | V18: 0 | W18: 0
B20: =title235 -> Total Revenue | C20: =SUM(C17:C19) ->  | D20: =SUM(D17:D19) -> 
A23: =title236 -> Capital and operating cost
C24: J | D24: F
B25: =title237 -> Operating Year | C25: =title269 -> Appraisal | D25: 1 | E25: 2 | F25: 3 | G25: 4 | H25: 5 | I25: 6 | J25: 7 | K25: 8 | L25: 9 | M25: 10 | N25: 11 | O25: 12 | P25: 13 | Q25: 14 | R25: 15 | S25: 16 | T25: 17 | U25: 18 | V25: 19 | W25: 20
B26: =title238 -> Capital cost (USD)
A27: =IF('Data Entry Needs'!$D$58="si",TRUE,FALSE) -> FALSE | B27: =title183 -> Equipment | C27: =INDIRECT("'PRODUCTION COST'!"&$C$24&45) -> 
A28: =IF('Data Entry Needs'!$D$58="si",TRUE,FALSE) -> FALSE | B28: =title184 -> Construction | C28: =INDIRECT("'PRODUCTION COST'!"&$C$24&46) ->  | N28: =+C28 -> 
A29: =IF('Data Entry Needs'!$D$58="si",TRUE,FALSE) -> FALSE | B29: =title239 -> Installation | C29: =INDIRECT("'PRODUCTION COST'!"&$C$24&47) ->  | N29: =+C29 -> 
B31: =title240 -> Total capital cost (USD) | C31: =C27+C28+C29 ->  | D31: 0 | E31: 0 | F31: 0 | G31: 0 | H31: 0 | I31: 0 | J31: 0 | K31: 0 | L31: 0 | M31: 0 | O31: 0 | P31: 0 | Q31: 0 | R31: 0 | S31: 0 | T31: 0 | U31: 0 | V31: 0 | W31: 0
B32: =title241 -> Capital cost (USD/MLN litres) | C32: =+C31/C9 -> 
B33: =title242 -> Capital cost (USD/litre) | C33: =+C31/C10 -> 
C35: K
B36: =title237 -> Operating Year | C36: =title269 -> Appraisal | D36: 1 | E36: 2 | F36: 3 | G36: 4 | H36: 5 | I36: 6 | J36: 7 | K36: 8 | L36: 9 | M36: 10 | N36: 11 | O36: 12 | P36: 13 | Q36: 14 | R36: 15 | S36: 16 | T36: 17 | U36: 18 | V36: 19 | W36: 20
B37: =title243 -> Annual operating and maintenance cost
B38: =title244 -> Subtotal cost of inputs (USD) | C38: =+C39+C40 -> 0 | D38: 0 | E38: 0 | F38: 0 | G38: 0 | H38: 0 | I38: 0 | J38: 0 | K38: 0 | L38: 0 | M38: 0 | N38: 0 | O38: 0 | P38: 0 | Q38: 0 | R38: 0 | S38: 0 | T38: 0 | U38: 0 | V38: 0 | W38: 0
B39: =title245 -> Feedstock cost (USD/year) | C39: =INDIRECT("'PRODUCTION COST'!"&$C$35&15) -> 0 | D39: =+C39 -> 0 | E39: 0 | F39: 0 | G39: 0 | H39: 0 | I39: 0 | J39: 0 | K39: 0 | L39: 0 | M39: 0 | N39: 0 | O39: 0 | P39: 0 | Q39: 0 | R39: 0 | S39: 0 | T39: =+S39 -> 0 | U39: 0 | V39: 0 | W39: 0
B40: =title246 -> Other feedstock costs (USD/year) | C40: =INDIRECT("'PRODUCTION COST'!"&$C$35&28) -> 0 | D40: 0 | E40: 0 | F40: 0 | G40: 0 | H40: 0 | I40: 0 | J40: 0 | K40: 0 | L40: 0 | M40: 0 | N40: 0 | O40: 0 | P40: 0 | Q40: 0 | R40: 0 | S40: 0 | T40: 0 | U40: 0 | V40: 0 | W40: 0
B41: =title247 -> Labour cost (USD/yeear) | C41: =INDIRECT("'PRODUCTION COST'!"&$C$35&36) -> 0 | D41: =C41 -> 0 | E41: =D41 -> 0 | F41: 0 | G41: 0 | H41: 0 | I41: 0 | J41: 0 | K41: 0 | L41: 0 | M41: 0 | N41: 0 | O41: 0 | P41: 0 | Q41: 0 | R41: 0 | S41: 0 | T41: 0 | U41: 0 | V41: 0 | W41: 0
B42: =title75&" "&title77 -> Transport cost (USD/year) | C42: =INDIRECT("'PRODUCTION COST'!"&$C$35&40) -> 0 | D42: =+C42 -> 0 | E42: 0 | F42: 0 | G42: 0 | H42: 0 | I42: 0 | J42: 0 | K42: 0 | L42: 0 | M42: 0 | N42: 0 | O42: 0 | P42: 0 | Q42: 0 | R42: 0 | S42: 0 | T42: =+S42 -> 0 | U42: 0 | V42: 0 | W42: 0
B43: =title187&" "&title77 -> Maintenance costs (USD/year) | C43: =INDIRECT("'PRODUCTION COST'!"&$C$35&50) -> 
B44: =title248 -> Storage costs (USD/year) | C44: =INDIRECT("'PRODUCTION COST'!"&$C$35&57) -> 0 | D44: =C44 -> 0 | E44: 0 | F44: 0 | G44: 0 | H44: 0 | I44: 0 | J44: 0 | K44: 0 | L44: 0 | M44: 0 | N44: 0 | O44: 0 | P44: 0 | Q44: 0 | R44: 0 | S44: 0 | T44: 0 | U44: 0 | V44: 0 | W44: 0
B45: =title64&" "&title77 -> Plant overhead (USD/year) | C45: =INDIRECT("'PRODUCTION COST'!"&$C$35&61) ->  | D45: =+C45 ->  | T45: =+S45 -> 
B46: =title249 -> General and administrative costs (USD/year) | C46: =INDIRECT("'PRODUCTION COST'!"&$C$35&62) -> 
B47: =title250 -> Total annualized cost (USD) | C47: =SUM(C39:C46) -> 
B48: =title251 -> Total cost per litre (USD/l) | C48: =+C47/C10 ->  | D48: =+D47/D10 -> 
A50: =title85 -> Financial parameters
B51: =title237 -> Operating Year | C51: =title269 -> Appraisal | D51: 1 | E51: 2 | F51: 3 | G51: 4 | H51: 5 | I51: 6 | J51: 7 | K51: 8 | L51: 9 | M51: 10 | N51: 11 | O51: 12 | P51: 13 | Q51: 14 | R51: 15 | S51: 16 | T51: 17 | U51: 18 | V51: 19 | W51: 20
B52: =title86 -> Discount rate (%) | C52: ='Data Entry Needs'!$D$63 -> 0
B53: =title252 -> Debt percentage (%) | C53: ='Data Entry Needs'!$H$63 -> 0
B55: =title253 -> Loan | D55: 1 | E55: 2 | F55: 3 | G55: 4 | H55: 5 | I55: 6 | J55: 7 | K55: 8 | L55: 9 | M55: 10 | N55: 11 | O55: 12 | P55: 13 | Q55: 14 | R55: 15 | S55: 16 | T55: 17 | U55: 18 | V55: 19 | W55: 20
B56: =title254 -> Loan amount (USD ) | C56: =C53*C31 -> 
B57: =title87 -> Loan interest rate (%) | C57: ='Data Entry Needs'!$D$64 -> 0
B58: =title88 -> Loan term (years) | C58: ='Data Entry Needs'!$D$65 -> 0
B59: =title255 -> Loan payment (USD/month) | C59: =(PMT(C57/12,(12*C58),C56)) -> 
B60: =title256 -> Loan payment (USD/year) | D60: =IF(D51<=$C$58,$C$59*12,0) -> 0 | E60: 0 | F60: 0 | G60: 0 | H60: 0 | I60: 0 | J60: 0 | K60: 0 | L60: 0 | M60: 0 | N60: 0 | O60: 0 | P60: 0 | Q60: 0 | R60: 0 | S60: 0 | T60: 0 | U60: 0 | V60: 0 | W60: 0
B61: =title257 -> Total loan payment (USD) | C61: =SUM(D60:W60) -> 0
B62: =title258 -> Loan interest payment (USD) | C62: =C61+C56 ->  | D62: =title271 -> Average loan interest payment for the life of the project | G62: =C62/20 ->  | H62: =title272 -> USD per year
A64: =title259 -> Depreciation
B65: =title237 -> Operating Year | C65: =title269 -> Appraisal | D65: 1 | E65: 2 | F65: 3 | G65: 4 | H65: 5 | I65: 6 | J65: 7 | K65: 8 | L65: 9 | M65: 10 | N65: 11 | O65: 12 | P65: 13 | Q65: 14 | R65: 15 | S65: 16 | T65: 17 | U65: 18 | V65: 19 | W65: 20
B66: =title260 -> Depreciation method | C66: =title270 -> Straight-line
B67: =title261 -> Total depreciation (USD) | D67: =$C$27/'PRODUCTION COST'!$E$45+FA50ML!$C$28/'PRODUCTION COST'!$E$46+FA50ML!$C$29/'PRODUCTION COST'!$E$47 ->  | E67: =D67 -> 
A69: =title262 -> Summary of this project - before tax
B70: =title237 -> Operating Year | C70: =title269 -> Appraisal | D70: 1 | E70: 2 | F70: 3 | G70: 4 | H70: 5 | I70: 6 | J70: 7 | K70: 8 | L70: 9 | M70: 10 | N70: 11 | O70: 12 | P70: 13 | Q70: 14 | R70: 15 | S70: 16 | T70: 17 | U70: 18 | V70: 19 | W70: 20
B71: =title235&" (USD)" -> Total Revenue (USD) | D71: =+D20 -> 
B72: =title240 -> Total capital cost (USD) | C72: =-(C31-C56) -> 
B73: =title263 -> Total operation and maintenance cost (USD) | D73: =-D47 ->  | E73: =-E47 -> 
B74: =title264 -> Debt payment (USD) | D74: =D60 -> 0 | E74: 0 | F74: 0 | G74: 0 | H74: 0 | I74: 0 | J74: 0 | K74: 0 | L74: 0 | M74: 0 | N74: 0 | O74: 0 | P74: 0 | Q74: 0 | R74: 0 | S74: 0 | T74: 0 | U74: 0 | V74: 0 | W74: 0
B75: =title265 -> Cash Flow | C75: =SUM(C71:C74) -> 
A77: =title266 -> Financial analysis result
B79: =title267 -> Net Present Value (NPV) (USD) - before tax | C79: =NPV(C52,D75:W75)+C75 -> 
B80: =title268 -> Internal Rate of Return (IRR) (%) - before tax | C80: =IF(C79<0,"No es factible",IRR(C75:W75,0.000001)) -> 

Sheet FA100ML (hidden)
B2: =title275 -> FINANCIAL ASSESSMENT OF ETHANOL PRODUCTION 100 MILLION LITRES/YEAR
A5: =title228 -> Ethanol Revenue (Earnings)
B7: =title237 -> Operating Year | C7: 0 | D7: 1 | E7: 2 | F7: 3 | G7: 4 | H7: 5 | I7: 6 | J7: 7 | K7: 8 | L7: 9 | M7: 10 | N7: 11 | O7: 12 | P7: 13 | Q7: 14 | R7: 15 | S7: 16 | T7: 17 | U7: 18 | V7: 19 | W7: 20
B9: =title207 -> Capacity (million of litres) | C9: 100 | D9: =C9 -> 100 | E9: 100 | F9: 100 | G9: 100 | H9: 100 | I9: 100 | J9: 100 | K9: 100 | L9: 100 | M9: 100 | N9: 100 | O9: 100 | P9: 100 | Q9: 100 | R9: 100 | S9: 100 | T9: 100 | U9: 100 | V9: 100 | W9: 100
B10: =title229 -> Annual production (litres per year) | C10: =+C9*1000000 -> 100000000 | D10: =+C10 -> 100000000 | E10: 100000000 | F10: 100000000 | G10: 100000000 | H10: 100000000 | I10: 100000000 | J10: 100000000 | K10: 100000000 | L10: 100000000 | M10: 100000000 | N10: 100000000 | O10: 100000000 | P10: 100000000 | Q10: 100000000 | R10: 100000000 | S10: 100000000 | T10: 100000000 | U10: 100000000 | V10: 100000000 | W10: 100000000
B12: =title230 -> Ethanol Price (USD/litre) | C12: =Calculation!$L$22 ->  | D12: =C12 ->  | E12: =D12 -> 
B13: =title231 -> Electricity Selling Price (USD/kWh) | C13: ='Data Entry Needs'!$H$58 -> 0 | D13: =C13 -> 0 | E13: 0 | F13: 0 | G13: 0 | H13: 0 | I13: 0 | J13: 0 | K13: 0 | L13: 0 | M13: 0 | N13: 0 | O13: 0 | P13: 0 | Q13: 0 | R13: 0 | S13: 0 | T13: 0 | U13: 0 | V13: 0 | W13: 0
A15: =IF('Data Entry Needs'!$D$58="si",TRUE,FALSE) -> FALSE | B15: =title232 -> Electricity Sales | C15: =IF($A$15,COGENERATION!$G$21-COGENERATION!$G$16,0) -> 0 | D15: =C15 -> 0 | E15: =D15 -> 0 | F15: 0 | G15: 0 | H15: 0 | I15: 0 | J15: 0 | K15: 0 | L15: 0 | M15: 0 | N15: 0 | O15: 0 | P15: 0 | Q15: 0 | R15: 0 | S15: 0 | T15: 0 | U15: 0 | V15: 0 | W15: 0
B17: =title233 -> Ethanol Sales Revenue | C17: =C12*C10 ->  | D17: =D12*D10 -> 
B18: =title234 -> Electricity Sales Revenue | C18: =C15*C13 -> 0 | D18: =D15*D13 -> 0 | E18: 0 | F18: 0 | G18: 0 | H18: 0 | I18: 0 | J18: 0 | K18: 0 | L18: 0 | M18: 0 | N18: 0 | O18: 0 | P18: 0 | Q18: 0 | R18: 0 | S18: 0 | T18: 0 | U18: 0 | V18: 0 | W18: 0
B20: =title235 -> Total Revenue | C20: =SUM(C17:C19) ->  | D20: =SUM(D17:D19) -> 
A23: =title236 -> Capital and operating cost
C24: l | D24: g
B25: =title237 -> Operating Year | C25: =title269 -> Appraisal | D25: 1 | E25: 2 | F25: 3 | G25: 4 | H25: 5 | I25: 6 | J25: 7 | K25: 8 | L25: 9 | M25: 10 | N25: 11 | O25: 12 | P25: 13 | Q25: 14 | R25: 15 | S25: 16 | T25: 17 | U25: 18 | V25: 19 | W25: 20
B26: =title238 -> Capital cost (USD)
A27: =IF('Data Entry Needs'!$D$58="si",TRUE,FALSE) -> FALSE | B27: =title183 -> Equipment | C27: =INDIRECT("'PRODUCTION COST'!"&$C$24&45) -> 
A28: =IF('Data Entry Needs'!$D$58="si",TRUE,FALSE) -> FALSE | B28: =title184 -> Construction | C28: =INDIRECT("'PRODUCTION COST'!"&$C$24&46) ->  | N28: =+C28 -> 
A29: =IF('Data Entry Needs'!$D$58="si",TRUE,FALSE) -> FALSE | B29: =title239 -> Installation | C29: =INDIRECT("'PRODUCTION COST'!"&$C$24&47) ->  | N29: =+C29 -> 
B31: =title240 -> Total capital cost (USD) | C31: =C27+C28+C29 ->  | D31: 0 | E31: 0 | F31: 0 | G31: 0 | H31: 0 | I31: 0 | J31: 0 | K31: 0 | L31: 0 | M31: 0 | O31: 0 | P31: 0 | Q31: 0 | R31: 0 | S31: 0 | T31: 0 | U31: 0 | V31: 0 | W31: 0
B32: =title241 -> Capital cost (USD/MLN litres) | C32: =+C31/C9 -> 
B33: =title242 -> Capital cost (USD/litre) | C33: =+C31/C10 -> 
C35: m
B36: =title237 -> Operating Year | C36: =title269 -> Appraisal | D36: 1 | E36: 2 | F36: 3 | G36: 4 | H36: 5 | I36: 6 | J36: 7 | K36: 8 | L36: 9 | M36: 10 | N36: 11 | O36: 12 | P36: 13 | Q36: 14 | R36: 15 | S36: 16 | T36: 17 | U36: 18 | V36: 19 | W36: 20
B37: =title243 -> Annual operating and maintenance cost
B38: =title244 -> Subtotal cost of inputs (USD) | C38: =+C39+C40 -> 0 | D38: 0 | E38: 0 | F38: 0 | G38: 0 | H38: 0 | I38: 0 | J38: 0 | K38: 0 | L38: 0 | M38: 0 | N38: 0 | O38: 0 | P38: 0 | Q38: 0 | R38: 0 | S38: 0 | T38: 0 | U38: 0 | V38: 0 | W38: 0
B39: =title245 -> Feedstock cost (USD/year) | C39: =INDIRECT("'PRODUCTION COST'!"&$C$35&15) -> 0 | D39: =+C39 -> 0 | E39: 0 | F39: 0 | G39: 0 | H39: 0 | I39: 0 | J39: 0 | K39: 0 | L39: 0 | M39: 0 | N39: 0 | O39: 0 | P39: 0 | Q39: 0 | R39: 0 | S39: 0 | T39: =+S39 -> 0 | U39: 0 | V39: 0 | W39: 0
B40: =title246 -> Other feedstock costs (USD/year) | C40: =INDIRECT("'PRODUCTION COST'!"&$C$35&28) -> 0 | D40: 0 | E40: 0 | F40: 0 | G40: 0 | H40: 0 | I40: 0 | J40: 0 | K40: 0 | L40: 0 | M40: 0 | N40: 0 | O40: 0 | P40: 0 | Q40: 0 | R40: 0 | S40: 0 | T40: 0 | U40: 0 | V40: 0 | W40: 0
B41: =title247 -> Labour cost (USD/yeear) | C41: =INDIRECT("'PRODUCTION COST'!"&$C$35&36) -> 0 | D41: =C41 -> 0 | E41: =D41 -> 0 | F41: 0 | G41: 0 | H41: 0 | I41: 0 | J41: 0 | K41: 0 | L41: 0 | M41: 0 | N41: 0 | O41: 0 | P41: 0 | Q41: 0 | R41: 0 | S41: 0 | T41: 0 | U41: 0 | V41: 0 | W41: 0
B42: =title75&" "&title77 -> Transport cost (USD/year) | C42: =INDIRECT("'PRODUCTION COST'!"&$C$35&40) -> 0 | D42: =+C42 -> 0 | E42: 0 | F42: 0 | G42: 0 | H42: 0 | I42: 0 | J42: 0 | K42: 0 | L42: 0 | M42: 0 | N42: 0 | O42: 0 | P42: 0 | Q42: 0 | R42: 0 | S42: 0 | T42: =+S42 -> 0 | U42: 0 | V42: 0 | W42: 0
B43: =title187&" "&title77 -> Maintenance costs (USD/year) | C43: =INDIRECT("'PRODUCTION COST'!"&$C$35&50) -> 
B44: =title248 -> Storage costs (USD/year) | C44: =INDIRECT("'PRODUCTION COST'!"&$C$35&57) -> 0 | D44: =C44 -> 0 | E44: 0 | F44: 0 | G44: 0 | H44: 0 | I44: 0 | J44: 0 | K44: 0 | L44: 0 | M44: 0 | N44: 0 | O44: 0 | P44: 0 | Q44: 0 | R44: 0 | S44: 0 | T44: 0 | U44: 0 | V44: 0 | W44: 0
B45: =title64&" "&title77 -> Plant overhead (USD/year) | C45: =INDIRECT("'PRODUCTION COST'!"&$C$35&61) ->  | D45: =+C45 ->  | T45: =+S45 -> 
B46: =title249 -> General and administrative costs (USD/year) | C46: =INDIRECT("'PRODUCTION COST'!"&$C$35&62) -> 
B47: =title250 -> Total annualized cost (USD) | C47: =SUM(C39:C46) -> 
B48: =title251 -> Total cost per litre (USD/l) | C48: =+C47/C10 ->  | D48: =+D47/D10 -> 
A50: =title85 -> Financial parameters
B51: =title237 -> Operating Year | C51: =title269 -> Appraisal | D51: 1 | E51: 2 | F51: 3 | G51: 4 | H51: 5 | I51: 6 | J51: 7 | K51: 8 | L51: 9 | M51: 10 | N51: 11 | O51: 12 | P51: 13 | Q51: 14 | R51: 15 | S51: 16 | T51: 17 | U51: 18 | V51: 19 | W51: 20
B52: =title86 -> Discount rate (%) | C52: ='Data Entry Needs'!$D$63 -> 0
B53: =title252 -> Debt percentage (%) | C53: ='Data Entry Needs'!$H$63 -> 0
B55: =title253 -> Loan | D55: 1 | E55: 2 | F55: 3 | G55: 4 | H55: 5 | I55: 6 | J55: 7 | K55: 8 | L55: 9 | M55: 10 | N55: 11 | O55: 12 | P55: 13 | Q55: 14 | R55: 15 | S55: 16 | T55: 17 | U55: 18 | V55: 19 | W55: 20
B56: =title254 -> Loan amount (USD ) | C56: =C53*C31 -> 
B57: =title87 -> Loan interest rate (%) | C57: ='Data Entry Needs'!$D$64 -> 0
B58: =title88 -> Loan term (years) | C58: ='Data Entry Needs'!$D$65 -> 0
B59: =title255 -> Loan payment (USD/month) | C59: =(PMT(C57/12,(12*C58),C56)) -> 
B60: =title256 -> Loan payment (USD/year) | D60: =IF(D51<=$C$58,$C$59*12,0) -> 0 | E60: 0 | F60: 0 | G60: 0 | H60: 0 | I60: 0 | J60: 0 | K60: 0 | L60: 0 | M60: 0 | N60: 0 | O60: 0 | P60: 0 | Q60: 0 | R60: 0 | S60: 0 | T60: 0 | U60: 0 | V60: 0 | W60: 0
B61: =title257 -> Total loan payment (USD) | C61: =SUM(D60:W60) -> 0
B62: =title258 -> Loan interest payment (USD) | C62: =C61+C56 ->  | D62: =title271 -> Average loan interest payment for the life of the project | G62: =C62/20 ->  | H62: =title272 -> USD per year
A64: =title259 -> Depreciation
B65: =title237 -> Operating Year | C65: =title269 -> Appraisal | D65: 1 | E65: 2 | F65: 3 | G65: 4 | H65: 5 | I65: 6 | J65: 7 | K65: 8 | L65: 9 | M65: 10 | N65: 11 | O65: 12 | P65: 13 | Q65: 14 | R65: 15 | S65: 16 | T65: 17 | U65: 18 | V65: 19 | W65: 20
B66: =title260 -> Depreciation method | C66: =title270 -> Straight-line
B67: =title261 -> Total depreciation (USD) | D67: =$C$27/'PRODUCTION COST'!$E$45+FA100ML!$C$28/'PRODUCTION COST'!$E$46+FA100ML!$C$29/'PRODUCTION COST'!$E$47 ->  | E67: =D67 -> 
A69: =title262 -> Summary of this project - before tax
B70: =title237 -> Operating Year | C70: =title269 -> Appraisal | D70: 1 | E70: 2 | F70: 3 | G70: 4 | H70: 5 | I70: 6 | J70: 7 | K70: 8 | L70: 9 | M70: 10 | N70: 11 | O70: 12 | P70: 13 | Q70: 14 | R70: 15 | S70: 16 | T70: 17 | U70: 18 | V70: 19 | W70: 20
B71: =title235&" (USD)" -> Total Revenue (USD) | D71: =+D20 -> 
B72: =title240 -> Total capital cost (USD) | C72: =-(C31-C56) -> 
B73: =title263 -> Total operation and maintenance cost (USD) | D73: =-D47 ->  | E73: =-E47 -> 
B74: =title264 -> Debt payment (USD) | D74: =D60 -> 0 | E74: 0 | F74: 0 | G74: 0 | H74: 0 | I74: 0 | J74: 0 | K74: 0 | L74: 0 | M74: 0 | N74: 0 | O74: 0 | P74: 0 | Q74: 0 | R74: 0 | S74: 0 | T74: 0 | U74: 0 | V74: 0 | W74: 0
B75: =title265 -> Cash Flow | C75: =SUM(C71:C74) -> 
A77: =title266 -> Financial analysis result
B79: =title267 -> Net Present Value (NPV) (USD) - before tax | C79: =NPV(C52,D75:W75)+C75 -> 
B80: =title268 -> Internal Rate of Return (IRR) (%) - before tax | C80: =IF(C79<0,"No es factible",IRR(C75:W75,0.000001)) -> 
